{"text_format":"3","workbook":"xlsx","n_sheets":75,"sheets":["Instructions","Classroom 1 - to school","Classroom 1 - from school","Classroom 2 - to school","Classroom 2 - from school","Classroom 3 - to school","Classroom 3 - from school","Classroom 4 - to school","Classroom 4 - from school","Classroom 5 - to school","Classroom 5 - from school","Classroom 6 - to school","Classroom 6 - from school","Classroom 7 - to school","Classroom 7 - from school","Classroom 8 - to school","Classroom 8 - from school","Classroom 9 - to school","Classroom 9 - from school","Classroom 10 - to school","Classroom 10 - from school","Classroom 11 - to school","Classroom 11 - from school","Classroom 12 - to school","Classroom 12 - from school","Classroom 13 - to school","Classroom 13 - from school","Classroom 14 - to school","Classroom 14 - from school","Classroom 15 - to school","Classroom 15 - from school","Classroom 16 - to school","Classroom 16 - from school","Classroom 17 - to school","Classroom 17 - from school","Classroom 18 - to school","Classroom 18 - from school","Classroom 19 - to school","Classroom 19 - from school","Classroom 20 - to school","Classroom 20 - from school","Classroom 21 - to school","Classroom 21 - from school","Classroom 22 - to school","Classroom 22 - from school","Classroom 23 - to school","Classroom 23 - from school","Classroom 24 - to school","Classroom 24 - from school","Classroom 25 - to school","Classroom 25 - from school","Classroom 26 - to school","Classroom 26 - from school","Classroom 27 - to school","Classroom 27 - from school","Classroom 28 - to school","Classroom 28 - from school","Classroom 29 - to school","Classroom 29 - from school","Classroom 30 - to school","Classroom 30 - from school","Classroom 31 - to school","Classroom 31 - from school","Classroom 32 - to school","Classroom 32 - from school","Classroom 33 - to school","Classroom 33 - from school","Classroom 34 - to school","Classroom 34 - from school","Classroom 35 - to school","Classroom 35 - from school","SUMMARY - TO SCHOOL","SUMMARY - FROM SCHOOL","Mode TO","Mode FROM"],"not_rendered":{"charts":4,"images":1,"defined_names":2},"unopened":[{"sheet":"Mode TO","index":73,"reason":"not_a_worksheet"},{"sheet":"Mode FROM","index":74,"reason":"not_a_worksheet"}],"read":"whole","date_system":"1900"}

{"sheet":"Instructions","index":0,"n_rows":22,"n_cols":1,"rows_kept":22}
["STUDENT TRAVEL SURVEY DATA ENTRY TOOL - AGGREGATED BY SCHOOL"]
["TIPS FOR USING THIS TOOL:"]
[]
["This tool provides a template for 35 classes. If your school has more than 35 classes, simply add more worksheets and cut and paste the info there."]
["If you add more classes (worksheets), you'll need to adjust the formula in the Summary Sheets to include the data for those added worksheets."]
["It is recommended that you create a separate list/file that identifies teacher name and/or classroom number for Classroom 1, Classroom 2 and so forth so that Classroom 1 Baseline and Classroom 1 Follow-up Classroom Travel Surveys refer to the same class. Use a separate spreadsheet file for EACH SCHOOL and rename the file starting with the Ontario School Number (see Column F in https://www.ontario.ca/data/ontario-public-school-contact-information), and specify whether the file refers to Baseline or Follow-up data with final data aggregation by school (e.g., \"123456BaselineBySchool.xls\"). "]
[]
["Worksheet tabs for TO SCHOOL are coloured in blue and FROM SCHOOL are coloured in red."]
[]
["Please be sure to enter data in each respective worksheets, i.e. travel mode to school's information is entered in a 'to school' work sheet and the same applies for 'from school'.  Otherwise, the values generated in the Summary Sheets will not correspond accordingly."]
["If you are filling out a worksheet for a split class, enter the lower grade in cell B2 (e.g., SK/1 split would be entered as SK)."]
["**Note: Due to a technical fault in Excel, enter the total # Students Absent Today cells I8:K8 FIRST before inputting daily modes of travel for each worksheet tab TO SCHOOL and FROM SCHOOL "]
[]
["The following cells will autofill across the To/From for each class, as long as they are entered in the TO sheet:"]
["Classroom"]
["Grade"]
["# of students in class"]
[]
["The following cells will autofill from Classroom 1 to all other sheets:"]
["Weather"]
["Date (start date corresponds with Monday in the data collection week)"]
["Ontario School Number"]

{"sheet":"Classroom 1 - to school","index":1,"n_rows":17,"n_cols":12,"rows_kept":17,"merged":[[3,0,3,2],[5,2,6,2],[5,3,6,3],[5,4,6,4],[5,5,6,5],[5,6,6,6],[5,7,6,7],[5,8,6,8],[5,9,6,9],[5,10,6,10],[5,11,6,11],[15,0,15,2],[16,0,16,2]]}
["CLASSROOM","Grade"]
[null,null,"TO SCHOOL"]
[]
["Date (dd/mm/yyyy)"]
[]
["Ontario School Number","Weather","Biked (all or most of the way)","Walked (all or most of the way","Rolled (includes skateboard, wheelchair, scooter, etc.)","School Bus (includes any shared vehicles for students only)","Public Transit (all or most of the way. Includes trains, ferries, buses, etc.","Car","# Students absent today","Other","Total\n (not including absent students)","Total Students in class\n (including absent students. Use this column as a validation check for # students registered in the class)"]
["<enter 6-digit number from https://www.ontario.ca/data/ontario-public-school-contact-information> ","(descriptive)"]
["Monday",{"$nulls":9},{"$f":"SUM(C8:I8)","v":0},{"$f":"SUM(C8:I8)","v":0}]
["Tuesday",{"$nulls":9},{"$f":"SUM(C9:I9)","v":0},{"$f":"SUM(C9:I9)","v":0}]
["Wednesday",{"$nulls":9},{"$f":"SUM(C10:I10)","v":0},0]
["Thursday",{"$nulls":9},{"$f":"SUM(C11:I11)","v":0},0]
["Friday",{"$nulls":9},{"$f":"SUM(C12:I12)","v":0},0]
["Total",null,{"$f":"SUM(C8:C12)","v":0},{"$f":"SUM(D8:D12)","v":0},{"$f":"SUM(E8:E12)","v":0},0,0,0,0,0,{"$f":"SUM(K8:K12)","v":0}]
["Average",null,{"$f":"AVERAGE(C8:C12)","v":{"$error":"#DIV/0!"}},{"$f":"AVERAGE(D8:D12)","v":{"$error":"#DIV/0!"}},{"$error":"#DIV/0!"},{"$error":"#DIV/0!"},{"$error":"#DIV/0!"},{"$error":"#DIV/0!"},{"$error":"#DIV/0!"},{"$error":"#DIV/0!"},{"$f":"AVERAGE(K8:K12)","v":{"v":0,"d":"0.0"}}]
[]
["# students registered in the class"]
["average # students participating",null,null,{"$f":"K14","v":{"v":0,"d":"0.0"}}]

{"sheet":"Classroom 1 - from school","index":2,"n_rows":17,"n_cols":12,"rows_kept":17,"merged":[[3,0,3,2],[5,2,6,2],[5,3,6,3],[5,4,6,4],[5,5,6,5],[5,6,6,6],[5,7,6,7],[5,8,6,8],[5,9,6,9],[5,10,6,10],[5,11,6,11],[15,0,15,2],[16,0,16,2]]}
["CLASSROOM","Grade"]
[{"$f":"'Classroom 2 - to school'!A2","v":0},{"$f":"'Classroom 1 - to school'!B2","v":0},"FROM SCHOOL"]
[]
["Date (dd/mm/yyyy)",null,null,{"$f":"'Classroom 1 - to school'!D4","v":"00:00:00"}]
[]
["SCHOOL ID","Weather","Biked (all or most of the way)","Walked (all or most of the way","Rolled (includes skateboard, wheelchair, scooter, etc.)","School Bus (includes any shared vehicles for students only)","Public Transit (all or most of the way. Includes trains, ferries, buses, etc.","Car","# Students absent today","Other","Total\n (not including absent students)","Total Students in class\n (including absent students. Use this column as a validation check for # students registered in the class)"]
[{"$f":"'Classroom 1 - to school'!A7","v":"<enter 6-digit number from https://www.ontario.ca/data/ontario-public-school-contact-information> "},"(descriptive)"]
["Monday",{"$f":"'Classroom 2 - to school'!B8","v":0},{"$nulls":8},{"$f":"SUM(C8:H8)","v":0},{"$f":"SUM(C8:I8)","v":0}]
["Tuesday",{"$f":"'Classroom 1 - to school'!B9","v":0},{"$nulls":8},{"$f":"SUM(C9:H9)","v":0},{"$f":"SUM(C9:I9)","v":0}]
["Wednesday",{"$f":"'Classroom 1 - to school'!B10","v":0},{"$nulls":8},{"$f":"SUM(C10:H10)","v":0},0]
["Thursday",{"$f":"'Classroom 1 - to school'!B11","v":0},{"$nulls":8},{"$f":"SUM(C11:H11)","v":0},0]
["Friday",{"$f":"'Classroom 1 - to school'!B12","v":0},{"$nulls":8},{"$f":"SUM(C12:H12)","v":0},0]
["Total",null,{"$f":"SUM(C8:C12)","v":0},0,0,0,0,0,0,0,{"$f":"SUM(K8:K12)","v":0}]
["Average",null,{"$f":"AVERAGE(C8:C12)","v":{"$error":"#DIV/0!"}},{"$error":"#DIV/0!"},{"$error":"#DIV/0!"},{"$error":"#DIV/0!"},{"$error":"#DIV/0!"},{"$error":"#DIV/0!"},{"$error":"#DIV/0!"},{"$error":"#DIV/0!"},{"v":0,"d":"0.0"}]
[]
["# students registered in the class",null,null,{"$f":"'Classroom 1 - to school'!D16","v":0}]
["average # students participating",null,null,{"$f":"K14","v":{"v":0,"d":"0.0"}}]

{"sheet":"Classroom 2 - to school","index":3,"n_rows":17,"n_cols":12,"rows_kept":17,"merged":[[3,0,3,2],[5,2,6,2],[5,3,6,3],[5,4,6,4],[5,5,6,5],[5,6,6,6],[5,7,6,7],[5,8,6,8],[5,9,6,9],[5,10,6,10],[5,11,6,11],[15,0,15,2],[16,0,16,2]]}
["CLASSROOM","Grade"]
[null,null,"TO SCHOOL"]
[]
["Date (dd/mm/yyyy)",null,null,{"$f":"'Classroom 1 - to school'!D4","v":"00:00:00"}]
[]
["Ontario School Number","Weather","Biked (all or most of the way)","Walked (all or most of the way","Rolled (includes skateboard, wheelchair, scooter, etc.)","School Bus (includes any shared vehicles for students only)","Public Transit (all or most of the way. Includes trains, ferries, buses, etc.","Car","# Students absent today","Other","Total\n (not including absent students)","Total Students in class\n (including absent students. Use this column as a validation check for # students registered in the class)"]
[{"$f":"'Classroom 1 - to school'!A7","v":"<enter 6-digit number from https://www.ontario.ca/data/ontario-public-school-contact-information> "},"(descriptive)"]
["Monday",{"$f":"'Classroom 1 - to school'!B8","v":0},{"$nulls":8},{"$f":"SUM(C8:I8)","v":0},{"$f":"SUM(C8:I8)","v":0}]
["Tuesday",{"$f":"'Classroom 1 - to school'!B9","v":0},{"$nulls":8},{"$f":"SUM(C9:I9)","v":0},{"$f":"SUM(C9:I9)","v":0}]
["Wednesday",{"$f":"'Classroom 1 - to school'!B10","v":0},{"$nulls":8},{"$f":"SUM(C10:I10)","v":0},0]
["Thursday",{"$f":"'Classroom 1 - to school'!B11","v":0},{"$nulls":8},{"$f":"SUM(C11:I11)","v":0},0]
["Friday",{"$f":"'Classroom 1 - to school'!B12","v":0},{"$nulls":8},{"$f":"SUM(C12:I12)","v":0},0]
["Total",null,{"$f":"SUM(C8:C12)","v":0},0,0,0,0,0,0,0,{"$f":"SUM(K8:K12)","v":0}]
["Average",null,{"$f":"AVERAGE(C8:C12)","v":{"$error":"#DIV/0!"}},{"$error":"#DIV/0!"},{"$error":"#DIV/0!"},{"$error":"#DIV/0!"},{"$error":"#DIV/0!"},{"$error":"#DIV/0!"},{"$error":"#DIV/0!"},{"$error":"#DIV/0!"},{"v":0,"d":"0.0"}]
[]
["# students registered in the class"]
["average # students participating",null,null,{"$f":"K14","v":{"v":0,"d":"0.0"}}]

{"sheet":"Classroom 2 - from school","index":4,"n_rows":17,"n_cols":12,"rows_kept":17,"merged":[[3,0,3,2],[5,2,6,2],[5,3,6,3],[5,4,6,4],[5,5,6,5],[5,6,6,6],[5,7,6,7],[5,8,6,8],[5,9,6,9],[5,10,6,10],[5,11,6,11],[15,0,15,2],[16,0,16,2]]}
["CLASSROOM","Grade"]
[{"$f":"'Classroom 2 - to school'!A2","v":0},{"$f":"'Classroom 2 - to school'!B2","v":0},"FROM SCHOOL"]
[]
["Date (dd/mm/yyyy)",null,null,{"$f":"'Classroom 1 - to school'!D4","v":"00:00:00"}]
[]
[{"$f":"'Classroom 1 - to school'!A6","v":"Ontario School Number"},"Weather","Biked (all or most of the way)","Walked (all or most of the way","Rolled (includes skateboard, wheelchair, scooter, etc.)","School Bus (includes any shared vehicles for students only)","Public Transit (all or most of the way. Includes trains, ferries, buses, etc.","Car","# Students absent today","Other","Total\n (not including absent students)","Total Students in class\n (including absent students. Use this column as a validation check for # students registered in the class)"]
[{"$f":"'Classroom 1 - to school'!A7","v":"<enter 6-digit number from https://www.ontario.ca/data/ontario-public-school-contact-information> "},"(descriptive)"]
["Monday",{"$f":"'Classroom 1 - to school'!B8","v":0},{"$nulls":8},{"$f":"SUM(C8:H8)","v":0},{"$f":"SUM(C8:I8)","v":0}]
["Tuesday",{"$f":"'Classroom 1 - to school'!B9","v":0},{"$nulls":8},{"$f":"SUM(C9:H9)","v":0},{"$f":"SUM(C9:I9)","v":0}]
["Wednesday",{"$f":"'Classroom 1 - to school'!B10","v":0},{"$nulls":8},{"$f":"SUM(C10:H10)","v":0},0]
["Thursday",{"$f":"'Classroom 1 - to school'!B11","v":0},{"$nulls":8},{"$f":"SUM(C11:H11)","v":0},0]
["Friday",{"$f":"'Classroom 1 - to school'!B12","v":0},{"$nulls":8},{"$f":"SUM(C12:H12)","v":0},0]
["Total",null,{"$f":"SUM(C8:C12)","v":0},0,0,0,0,0,0,0,{"$f":"SUM(K8:K12)","v":0}]
["Average",null,{"$f":"AVERAGE(C8:C12)","v":{"$error":"#DIV/0!"}},{"$error":"#DIV/0!"},{"$error":"#DIV/0!"},{"$error":"#DIV/0!"},{"$error":"#DIV/0!"},{"$error":"#DIV/0!"},{"$error":"#DIV/0!"},{"$error":"#DIV/0!"},{"v":0,"d":"0.0"}]
[]
["# students registered in the class",null,null,{"$f":"'Classroom 2 - to school'!D16","v":0}]
["average # students participating",null,null,{"$f":"K14","v":{"v":0,"d":"0.0"}}]

{"sheet":"Classroom 3 - to school","index":5,"n_rows":17,"n_cols":12,"rows_kept":17,"merged":[[3,0,3,2],[5,2,6,2],[5,3,6,3],[5,4,6,4],[5,5,6,5],[5,6,6,6],[5,7,6,7],[5,8,6,8],[5,9,6,9],[5,10,6,10],[5,11,6,11],[15,0,15,2],[16,0,16,2]]}
["CLASSROOM","Grade"]
[null,null,"TO SCHOOL"]
[]
["Date (dd/mm/yyyy)",null,null,{"$f":"'Classroom 1 - to school'!D4","v":"00:00:00"}]
[]
["Ontario School Number","Weather","Biked (all or most of the way)","Walked (all or most of the way","Rolled (includes skateboard, wheelchair, scooter, etc.)","School Bus (includes any shared vehicles for students only)","Public Transit (all or most of the way. Includes trains, ferries, buses, etc.","Car","# Students absent today","Other","Total\n (not including absent students)","Total Students in class\n (including absent students. Use this column as a validation check for # students registered in the class)"]
[{"$f":"'Classroom 1 - to school'!A7","v":"<enter 6-digit number from https://www.ontario.ca/data/ontario-public-school-contact-information> "},"(descriptive)"]
["Monday",{"$f":"'Classroom 1 - to school'!B8","v":0},{"$nulls":8},{"$f":"SUM(C8:H8)","v":0},{"$f":"SUM(C8:I8)","v":0}]
["Tuesday",{"$f":"'Classroom 1 - to school'!B9","v":0},{"$nulls":8},{"$f":"SUM(C9:H9)","v":0},{"$f":"SUM(C9:I9)","v":0}]
["Wednesday",{"$f":"'Classroom 1 - to school'!B10","v":0},{"$nulls":8},{"$f":"SUM(C10:H10)","v":0},0]
["Thursday",{"$f":"'Classroom 1 - to school'!B11","v":0},{"$nulls":8},{"$f":"SUM(C11:H11)","v":0},0]
["Friday",{"$f":"'Classroom 1 - to school'!B12","v":0},{"$nulls":8},{"$f":"SUM(C12:H12)","v":0},0]
["Total",null,{"$f":"SUM(C8:C12)","v":0},0,0,0,0,0,0,0,{"$f":"SUM(K8:K12)","v":0}]
["Average",null,{"$f":"AVERAGE(C8:C12)","v":{"$error":"#DIV/0!"}},{"$error":"#DIV/0!"},{"$error":"#DIV/0!"},{"$error":"#DIV/0!"},{"$error":"#DIV/0!"},{"$error":"#DIV/0!"},{"$error":"#DIV/0!"},{"$error":"#DIV/0!"},{"v":0,"d":"0.0"}]
[]
["# students registered in the class"]
["average # students participating",null,null,{"$f":"K14","v":{"v":0,"d":"0.0"}}]

{"sheet":"Classroom 3 - from school","index":6,"n_rows":17,"n_cols":12,"rows_kept":17,"merged":[[3,0,3,2],[5,2,6,2],[5,3,6,3],[5,4,6,4],[5,5,6,5],[5,6,6,6],[5,7,6,7],[5,8,6,8],[5,9,6,9],[5,10,6,10],[5,11,6,11],[15,0,15,2],[16,0,16,2]]}
["CLASSROOM","Grade"]
[{"$f":"'Classroom 3 - to school'!A2","v":0},{"$f":"'Classroom 3 - to school'!B2","v":0},"FROM SCHOOL"]
[]
["Date (dd/mm/yyyy)",null,null,{"$f":"'Classroom 1 - to school'!D4","v":"00:00:00"}]
[]
[{"$f":"'Classroom 1 - to school'!A6","v":"Ontario School Number"},"Weather","Biked (all or most of the way)","Walked (all or most of the way","Rolled (includes skateboard, wheelchair, scooter, etc.)","School Bus (includes any shared vehicles for students only)","Public Transit (all or most of the way. Includes trains, ferries, buses, etc.","Car","# Students absent today","Other","Total\n (not including absent students)","Total Students in class\n (including absent students. Use this column as a validation check for # students registered in the class)"]
[{"$f":"'Classroom 1 - to school'!A7","v":"<enter 6-digit number from https://www.ontario.ca/data/ontario-public-school-contact-information> "},"(descriptive)"]
["Monday",{"$f":"'Classroom 1 - to school'!B8","v":0},{"$nulls":8},{"$f":"SUM(C8:H8)","v":0},{"$f":"SUM(C8:I8)","v":0}]
["Tuesday",{"$f":"'Classroom 1 - to school'!B9","v":0},{"$nulls":8},{"$f":"SUM(C9:H9)","v":0},{"$f":"SUM(C9:I9)","v":0}]
["Wednesday",{"$f":"'Classroom 1 - to school'!B10","v":0},{"$nulls":8},{"$f":"SUM(C10:H10)","v":0},0]
["Thursday",{"$f":"'Classroom 1 - to school'!B11","v":0},{"$nulls":8},{"$f":"SUM(C11:H11)","v":0},0]
["Friday",{"$f":"'Classroom 1 - to school'!B12","v":0},{"$nulls":8},{"$f":"SUM(C12:H12)","v":0},0]
["Total",null,{"$f":"SUM(C8:C12)","v":0},0,0,0,0,0,0,0,{"$f":"SUM(K8:K12)","v":0}]
["Average",null,{"$f":"AVERAGE(C8:C12)","v":{"$error":"#DIV/0!"}},{"$error":"#DIV/0!"},{"$error":"#DIV/0!"},{"$error":"#DIV/0!"},{"$error":"#DIV/0!"},{"$error":"#DIV/0!"},{"$error":"#DIV/0!"},{"$error":"#DIV/0!"},{"v":0,"d":"0.0"}]
[]
["# students registered in the class",null,null,{"$f":"'Classroom 3 - to school'!D16","v":0}]
["average # students participating",null,null,{"$f":"K14","v":{"v":0,"d":"0.0"}}]

{"sheet":"Classroom 4 - to school","index":7,"n_rows":17,"n_cols":12,"rows_kept":17,"merged":[[3,0,3,2],[5,2,6,2],[5,3,6,3],[5,4,6,4],[5,5,6,5],[5,6,6,6],[5,7,6,7],[5,8,6,8],[5,9,6,9],[5,10,6,10],[5,11,6,11],[15,0,15,2],[16,0,16,2]]}
["CLASSROOM","Grade"]
[null,null,"TO SCHOOL"]
[]
["Date (dd/mm/yyyy)",null,null,{"$f":"'Classroom 1 - to school'!D4","v":"00:00:00"}]
[]
["Ontario School Number","Weather","Biked (all or most of the way)","Walked (all or most of the way","Rolled (includes skateboard, wheelchair, scooter, etc.)","School Bus (includes any shared vehicles for students only)","Public Transit (all or most of the way. Includes trains, ferries, buses, etc.","Car","# Students absent today","Other","Total\n (not including absent students)","Total Students in class\n (including absent students. Use this column as a validation check for # students registered in the class)"]
[{"$f":"'Classroom 1 - to school'!A7","v":"<enter 6-digit number from https://www.ontario.ca/data/ontario-public-school-contact-information> "},"(descriptive)"]
["Monday",{"$f":"'Classroom 1 - to school'!B8","v":0},{"$nulls":8},{"$f":"SUM(C8:H8)","v":0},{"$f":"SUM(C8:I8)","v":0}]
["Tuesday",{"$f":"'Classroom 1 - to school'!B9","v":0},{"$nulls":8},{"$f":"SUM(C9:H9)","v":0},{"$f":"SUM(C9:I9)","v":0}]
["Wednesday",{"$f":"'Classroom 1 - to school'!B10","v":0},{"$nulls":8},{"$f":"SUM(C10:H10)","v":0},0]
["Thursday",{"$f":"'Classroom 1 - to school'!B11","v":0},{"$nulls":8},{"$f":"SUM(C11:H11)","v":0},0]
["Friday",{"$f":"'Classroom 1 - to school'!B12","v":0},{"$nulls":8},{"$f":"SUM(C12:H12)","v":0},0]
["Total",null,{"$f":"SUM(C8:C12)","v":0},0,0,0,0,0,0,0,{"$f":"SUM(K8:K12)","v":0}]
["Average",null,{"$f":"AVERAGE(C8:C12)","v":{"$error":"#DIV/0!"}},{"$error":"#DIV/0!"},{"$error":"#DIV/0!"},{"$error":"#DIV/0!"},{"$error":"#DIV/0!"},{"$error":"#DIV/0!"},{"$error":"#DIV/0!"},{"$error":"#DIV/0!"},{"v":0,"d":"0.0"}]
[]
["# students registered in the class"]
["average # students participating",null,null,{"$f":"K14","v":{"v":0,"d":"0.0"}}]

{"sheet":"Classroom 4 - from school","index":8,"n_rows":17,"n_cols":12,"rows_kept":17,"merged":[[3,0,3,2],[5,2,6,2],[5,3,6,3],[5,4,6,4],[5,5,6,5],[5,6,6,6],[5,7,6,7],[5,8,6,8],[5,9,6,9],[5,10,6,10],[5,11,6,11],[15,0,15,2],[16,0,16,2]]}
["CLASSROOM","Grade"]
[{"$f":"'Classroom 4 - to school'!A2","v":0},{"$f":"'Classroom 4 - to school'!B2","v":0},"FROM SCHOOL"]
[]
["Date (dd/mm/yyyy)",null,null,{"$f":"'Classroom 1 - to school'!D4","v":"00:00:00"}]
[]
[{"$f":"'Classroom 1 - to school'!A6","v":"Ontario School Number"},"Weather","Biked (all or most of the way)","Walked (all or most of the way","Rolled (includes skateboard, wheelchair, scooter, etc.)","School Bus (includes any shared vehicles for students only)","Public Transit (all or most of the way. Includes trains, ferries, buses, etc.","Car","# Students absent today","Other","Total\n (not including absent students)","Total Students in class\n (including absent students. Use this column as a validation check for # students registered in the class)"]
[{"$f":"'Classroom 1 - to school'!A7","v":"<enter 6-digit number from https://www.ontario.ca/data/ontario-public-school-contact-information> "},"(descriptive)"]
["Monday",{"$f":"'Classroom 1 - to school'!B8","v":0},{"$nulls":8},{"$f":"SUM(C8:H8)","v":0},{"$f":"SUM(C8:I8)","v":0}]
["Tuesday",{"$f":"'Classroom 1 - to school'!B9","v":0},{"$nulls":8},{"$f":"SUM(C9:H9)","v":0},{"$f":"SUM(C9:I9)","v":0}]
["Wednesday",{"$f":"'Classroom 1 - to school'!B10","v":0},{"$nulls":8},{"$f":"SUM(C10:H10)","v":0},0]
["Thursday",{"$f":"'Classroom 1 - to school'!B11","v":0},{"$nulls":8},{"$f":"SUM(C11:H11)","v":0},0]
["Friday",{"$f":"'Classroom 1 - to school'!B12","v":0},{"$nulls":8},{"$f":"SUM(C12:H12)","v":0},0]
["Total",null,{"$f":"SUM(C8:C12)","v":0},0,0,0,0,0,0,0,{"$f":"SUM(K8:K12)","v":0}]
["Average",null,{"$f":"AVERAGE(C8:C12)","v":{"$error":"#DIV/0!"}},{"$error":"#DIV/0!"},{"$error":"#DIV/0!"},{"$error":"#DIV/0!"},{"$error":"#DIV/0!"},{"$error":"#DIV/0!"},{"$error":"#DIV/0!"},{"$error":"#DIV/0!"},{"v":0,"d":"0.0"}]
[]
["# students registered in the class",null,null,{"$f":"'Classroom 4 - to school'!D16","v":0}]
["average # students participating",null,null,{"$f":"K14","v":{"v":0,"d":"0.0"}}]

{"sheet":"Classroom 5 - to school","index":9,"n_rows":17,"n_cols":12,"rows_kept":17,"merged":[[3,0,3,2],[5,2,6,2],[5,3,6,3],[5,4,6,4],[5,5,6,5],[5,6,6,6],[5,7,6,7],[5,8,6,8],[5,9,6,9],[5,10,6,10],[5,11,6,11],[15,0,15,2],[16,0,16,2]]}
["CLASSROOM","Grade"]
[null,null,"TO SCHOOL"]
[]
["Date (dd/mm/yyyy)",null,null,{"$f":"'Classroom 1 - to school'!D4","v":"00:00:00"}]
[]
["Ontario School Number","Weather","Biked (all or most of the way)","Walked (all or most of the way","Rolled (includes skateboard, wheelchair, scooter, etc.)","School Bus (includes any shared vehicles for students only)","Public Transit (all or most of the way. Includes trains, ferries, buses, etc.","Car","# Students absent today","Other","Total\n (not including absent students)","Total Students in class\n (including absent students. Use this column as a validation check for # students registered in the class)"]
[{"$f":"'Classroom 1 - to school'!A7","v":"<enter 6-digit number from https://www.ontario.ca/data/ontario-public-school-contact-information> "},"(descriptive)"]
["Monday",{"$f":"'Classroom 1 - to school'!B8","v":0},{"$nulls":8},{"$f":"SUM(C8:H8)","v":0},{"$f":"SUM(C8:I8)","v":0}]
["Tuesday",{"$f":"'Classroom 1 - to school'!B9","v":0},{"$nulls":8},{"$f":"SUM(C9:H9)","v":0},{"$f":"SUM(C9:I9)","v":0}]
["Wednesday",{"$f":"'Classroom 1 - to school'!B10","v":0},{"$nulls":8},{"$f":"SUM(C10:H10)","v":0},0]
["Thursday",{"$f":"'Classroom 1 - to school'!B11","v":0},{"$nulls":8},{"$f":"SUM(C11:H11)","v":0},0]
["Friday",{"$f":"'Classroom 1 - to school'!B12","v":0},{"$nulls":8},{"$f":"SUM(C12:H12)","v":0},0]
["Total",null,{"$f":"SUM(C8:C12)","v":0},0,0,0,0,0,0,0,{"$f":"SUM(K8:K12)","v":0}]
["Average",null,{"$f":"AVERAGE(C8:C12)","v":{"$error":"#DIV/0!"}},{"$error":"#DIV/0!"},{"$error":"#DIV/0!"},{"$error":"#DIV/0!"},{"$error":"#DIV/0!"},{"$error":"#DIV/0!"},{"$error":"#DIV/0!"},{"$error":"#DIV/0!"},{"v":0,"d":"0.0"}]
[]
["# students registered in the class"]
["average # students participating",null,null,{"$f":"K14","v":{"v":0,"d":"0.0"}}]

{"sheet":"Classroom 5 - from school","index":10,"n_rows":17,"n_cols":12,"rows_kept":17,"merged":[[3,0,3,2],[5,2,6,2],[5,3,6,3],[5,4,6,4],[5,5,6,5],[5,6,6,6],[5,7,6,7],[5,8,6,8],[5,9,6,9],[5,10,6,10],[5,11,6,11],[15,0,15,2],[16,0,16,2]]}
["CLASSROOM","Grade"]
[{"$f":"'Classroom 5 - to school'!A2","v":0},{"$f":"'Classroom 5 - to school'!B2","v":0},"FROM SCHOOL"]
[]
["Date (dd/mm/yyyy)",null,null,{"$f":"'Classroom 1 - to school'!D4","v":"00:00:00"}]
[]
["Ontario School Number","Weather","Biked (all or most of the way)","Walked (all or most of the way","Rolled (includes skateboard, wheelchair, scooter, etc.)","School Bus (includes any shared vehicles for students only)","Public Transit (all or most of the way. Includes trains, ferries, buses, etc.","Car","# Students absent today","Other","Total\n (not including absent students)","Total Students in class\n (including absent students. Use this column as a validation check for # students registered in the class)"]
[{"$f":"'Classroom 1 - to school'!A7","v":"<enter 6-digit number from https://www.ontario.ca/data/ontario-public-school-contact-information> "},"(descriptive)"]
["Monday",{"$f":"'Classroom 1 - to school'!B8","v":0},{"$nulls":8},{"$f":"SUM(C8:H8)","v":0},{"$f":"SUM(C8:I8)","v":0}]
["Tuesday",{"$f":"'Classroom 1 - to school'!B9","v":0},{"$nulls":8},{"$f":"SUM(C9:H9)","v":0},{"$f":"SUM(C9:I9)","v":0}]
["Wednesday",{"$f":"'Classroom 1 - to school'!B10","v":0},{"$nulls":8},{"$f":"SUM(C10:H10)","v":0},0]
["Thursday",{"$f":"'Classroom 1 - to school'!B11","v":0},{"$nulls":8},{"$f":"SUM(C11:H11)","v":0},0]
["Friday",{"$f":"'Classroom 1 - to school'!B12","v":0},{"$nulls":8},{"$f":"SUM(C12:H12)","v":0},0]
["Total",null,{"$f":"SUM(C8:C12)","v":0},0,0,0,0,0,0,0,{"$f":"SUM(K8:K12)","v":0}]
["Average",null,{"$f":"AVERAGE(C8:C12)","v":{"$error":"#DIV/0!"}},{"$error":"#DIV/0!"},{"$error":"#DIV/0!"},{"$error":"#DIV/0!"},{"$error":"#DIV/0!"},{"$error":"#DIV/0!"},{"$error":"#DIV/0!"},{"$error":"#DIV/0!"},{"v":0,"d":"0.0"}]
[]
["# students registered in the class",null,null,{"$f":"'Classroom 5 - to school'!D16","v":0}]
["average # students participating",null,null,{"$f":"K14","v":{"v":0,"d":"0.0"}}]

{"sheet":"Classroom 6 - to school","index":11,"n_rows":17,"n_cols":12,"rows_kept":17,"merged":[[3,0,3,2],[5,2,6,2],[5,3,6,3],[5,4,6,4],[5,5,6,5],[5,6,6,6],[5,7,6,7],[5,8,6,8],[5,9,6,9],[5,10,6,10],[5,11,6,11],[15,0,15,2],[16,0,16,2]]}
["CLASSROOM","Grade"]
[null,null,"TO SCHOOL"]
[]
["Date (dd/mm/yyyy)",null,null,{"$f":"'Classroom 1 - to school'!D4","v":"00:00:00"}]
[]
["Ontario School Number","Weather","Biked (all or most of the way)","Walked (all or most of the way","Rolled (includes skateboard, wheelchair, scooter, etc.)","School Bus (includes any shared vehicles for students only)","Public Transit (all or most of the way. Includes trains, ferries, buses, etc.","Car","# Students absent today","Other","Total\n (not including absent students)","Total Students in class\n (including absent students. Use this column as a validation check for # students registered in the class)"]
[{"$f":"'Classroom 1 - to school'!A7","v":"<enter 6-digit number from https://www.ontario.ca/data/ontario-public-school-contact-information> "},"(descriptive)"]
["Monday",{"$f":"'Classroom 1 - to school'!B8","v":0},{"$nulls":8},{"$f":"SUM(C8:H8)","v":0},{"$f":"SUM(C8:I8)","v":0}]
["Tuesday",{"$f":"'Classroom 1 - to school'!B9","v":0},{"$nulls":8},{"$f":"SUM(C9:H9)","v":0},{"$f":"SUM(C9:I9)","v":0}]
["Wednesday",{"$f":"'Classroom 1 - to school'!B10","v":0},{"$nulls":8},{"$f":"SUM(C10:H10)","v":0},0]
["Thursday",{"$f":"'Classroom 1 - to school'!B11","v":0},{"$nulls":8},{"$f":"SUM(C11:H11)","v":0},0]
["Friday",{"$f":"'Classroom 1 - to school'!B12","v":0},{"$nulls":8},{"$f":"SUM(C12:H12)","v":0},0]
["Total",null,{"$f":"SUM(C8:C12)","v":0},0,0,0,0,0,0,0,{"$f":"SUM(K8:K12)","v":0}]
["Average",null,{"$f":"AVERAGE(C8:C12)","v":{"$error":"#DIV/0!"}},{"$error":"#DIV/0!"},{"$error":"#DIV/0!"},{"$error":"#DIV/0!"},{"$error":"#DIV/0!"},{"$error":"#DIV/0!"},{"$error":"#DIV/0!"},{"$error":"#DIV/0!"},{"v":0,"d":"0.0"}]
[]
["# students registered in the class"]
["average # students participating",null,null,{"$f":"K14","v":{"v":0,"d":"0.0"}}]

{"sheet":"Classroom 6 - from school","index":12,"n_rows":17,"n_cols":12,"rows_kept":17,"merged":[[3,0,3,2],[5,2,6,2],[5,3,6,3],[5,4,6,4],[5,5,6,5],[5,6,6,6],[5,7,6,7],[5,8,6,8],[5,9,6,9],[5,10,6,10],[5,11,6,11],[15,0,15,2],[16,0,16,2]]}
["CLASSROOM","Grade"]
[{"$f":"'Classroom 6 - to school'!A2","v":0},{"$f":"'Classroom 6 - to school'!B2","v":0},"FROM SCHOOL"]
[]
["Date (dd/mm/yyyy)",null,null,{"$f":"'Classroom 1 - to school'!D4","v":"00:00:00"}]
[]
[{"$f":"'Classroom 1 - to school'!A6","v":"Ontario School Number"},"Weather","Biked (all or most of the way)","Walked (all or most of the way","Rolled (includes skateboard, wheelchair, scooter, etc.)","School Bus (includes any shared vehicles for students only)","Public Transit (all or most of the way. Includes trains, ferries, buses, etc.","Car","# Students absent today","Other","Total\n (not including absent students)","Total Students in class\n (including absent students. Use this column as a validation check for # students registered in the class)"]
[{"$f":"'Classroom 1 - to school'!A7","v":"<enter 6-digit number from https://www.ontario.ca/data/ontario-public-school-contact-information> "},"(descriptive)"]
["Monday",{"$f":"'Classroom 1 - to school'!B8","v":0},{"$nulls":8},{"$f":"SUM(C8:H8)","v":0},{"$f":"SUM(C8:I8)","v":0}]
["Tuesday",{"$f":"'Classroom 1 - to school'!B9","v":0},{"$nulls":8},{"$f":"SUM(C9:H9)","v":0},{"$f":"SUM(C9:I9)","v":0}]
["Wednesday",{"$f":"'Classroom 1 - to school'!B10","v":0},{"$nulls":8},{"$f":"SUM(C10:H10)","v":0},0]
["Thursday",{"$f":"'Classroom 1 - to school'!B11","v":0},{"$nulls":8},{"$f":"SUM(C11:H11)","v":0},0]
["Friday",{"$f":"'Classroom 1 - to school'!B12","v":0},{"$nulls":8},{"$f":"SUM(C12:H12)","v":0},0]
["Total",null,{"$f":"SUM(C8:C12)","v":0},0,0,0,0,0,0,0,{"$f":"SUM(K8:K12)","v":0}]
["Average",null,{"$f":"AVERAGE(C8:C12)","v":{"$error":"#DIV/0!"}},{"$error":"#DIV/0!"},{"$error":"#DIV/0!"},{"$error":"#DIV/0!"},{"$error":"#DIV/0!"},{"$error":"#DIV/0!"},{"$error":"#DIV/0!"},{"$error":"#DIV/0!"},{"v":0,"d":"0.0"}]
[]
["# students registered in the class",null,null,{"$f":"'Classroom 6 - to school'!D16","v":0}]
["average # students participating",null,null,{"$f":"K14","v":{"v":0,"d":"0.0"}}]

{"sheet":"Classroom 7 - to school","index":13,"n_rows":17,"n_cols":12,"rows_kept":17,"merged":[[3,0,3,2],[5,2,6,2],[5,3,6,3],[5,4,6,4],[5,5,6,5],[5,6,6,6],[5,7,6,7],[5,8,6,8],[5,9,6,9],[5,10,6,10],[5,11,6,11],[15,0,15,2],[16,0,16,2]]}
["CLASSROOM","Grade"]
[null,null,"TO SCHOOL"]
[]
["Date (dd/mm/yyyy)",null,null,{"$f":"'Classroom 1 - to school'!D4","v":"00:00:00"}]
[]
["Ontario School Number","Weather","Biked (all or most of the way)","Walked (all or most of the way","Rolled (includes skateboard, wheelchair, scooter, etc.)","School Bus (includes any shared vehicles for students only)","Public Transit (all or most of the way. Includes trains, ferries, buses, etc.","Car","# Students absent today","Other","Total\n (not including absent students)","Total Students in class\n (including absent students. Use this column as a validation check for # students registered in the class)"]
[{"$f":"'Classroom 1 - to school'!A7","v":"<enter 6-digit number from https://www.ontario.ca/data/ontario-public-school-contact-information> "},"(descriptive)"]
["Monday",{"$f":"'Classroom 1 - to school'!B8","v":0},{"$nulls":8},{"$f":"SUM(C8:H8)","v":0},{"$f":"SUM(C8:I8)","v":0}]
["Tuesday",{"$f":"'Classroom 1 - to school'!B9","v":0},{"$nulls":8},{"$f":"SUM(C9:H9)","v":0},{"$f":"SUM(C9:I9)","v":0}]
["Wednesday",{"$f":"'Classroom 1 - to school'!B10","v":0},{"$nulls":8},{"$f":"SUM(C10:H10)","v":0},0]
["Thursday",{"$f":"'Classroom 1 - to school'!B11","v":0},{"$nulls":8},{"$f":"SUM(C11:H11)","v":0},0]
["Friday",{"$f":"'Classroom 1 - to school'!B12","v":0},{"$nulls":8},{"$f":"SUM(C12:H12)","v":0},0]
["Total",null,{"$f":"SUM(C8:C12)","v":0},0,0,0,0,0,0,0,{"$f":"SUM(K8:K12)","v":0}]
["Average",null,{"$f":"AVERAGE(C8:C12)","v":{"$error":"#DIV/0!"}},{"$error":"#DIV/0!"},{"$error":"#DIV/0!"},{"$error":"#DIV/0!"},{"$error":"#DIV/0!"},{"$error":"#DIV/0!"},{"$error":"#DIV/0!"},{"$error":"#DIV/0!"},{"v":0,"d":"0.0"}]
[]
["# students registered in the class"]
["average # students participating",null,null,{"$f":"K14","v":{"v":0,"d":"0.0"}}]

{"sheet":"Classroom 7 - from school","index":14,"n_rows":17,"n_cols":12,"rows_kept":17,"merged":[[3,0,3,2],[5,2,6,2],[5,3,6,3],[5,4,6,4],[5,5,6,5],[5,6,6,6],[5,7,6,7],[5,8,6,8],[5,9,6,9],[5,10,6,10],[5,11,6,11],[15,0,15,2],[16,0,16,2]]}
["CLASSROOM","Grade"]
[{"$f":"'Classroom 7 - to school'!A2","v":0},{"$f":"'Classroom 7 - to school'!B2","v":0},"FROM SCHOOL"]
[]
["Date (dd/mm/yyyy)",null,null,{"$f":"'Classroom 1 - to school'!D4","v":"00:00:00"}]
[]
[{"$f":"'Classroom 1 - to school'!A6","v":"Ontario School Number"},"Weather","Biked (all or most of the way)","Walked (all or most of the way","Rolled (includes skateboard, wheelchair, scooter, etc.)","School Bus (includes any shared vehicles for students only)","Public Transit (all or most of the way. Includes trains, ferries, buses, etc.","Car","# Students absent today","Other","Total\n (not including absent students)","Total Students in class\n (including absent students. Use this column as a validation check for # students registered in the class)"]
[{"$f":"'Classroom 1 - to school'!A7","v":"<enter 6-digit number from https://www.ontario.ca/data/ontario-public-school-contact-information> "},"(descriptive)"]
["Monday",{"$f":"'Classroom 1 - to school'!B8","v":0},{"$nulls":8},{"$f":"SUM(C8:H8)","v":0},{"$f":"SUM(C8:I8)","v":0}]
["Tuesday",{"$f":"'Classroom 1 - to school'!B9","v":0},{"$nulls":8},{"$f":"SUM(C9:H9)","v":0},{"$f":"SUM(C9:I9)","v":0}]
["Wednesday",{"$f":"'Classroom 1 - to school'!B10","v":0},{"$nulls":8},{"$f":"SUM(C10:H10)","v":0},0]
["Thursday",{"$f":"'Classroom 1 - to school'!B11","v":0},{"$nulls":8},{"$f":"SUM(C11:H11)","v":0},0]
["Friday",{"$f":"'Classroom 1 - to school'!B12","v":0},{"$nulls":8},{"$f":"SUM(C12:H12)","v":0},0]
["Total",null,{"$f":"SUM(C8:C12)","v":0},0,0,0,0,0,0,0,{"$f":"SUM(K8:K12)","v":0}]
["Average",null,{"$f":"AVERAGE(C8:C12)","v":{"$error":"#DIV/0!"}},{"$error":"#DIV/0!"},{"$error":"#DIV/0!"},{"$error":"#DIV/0!"},{"$error":"#DIV/0!"},{"$error":"#DIV/0!"},{"$error":"#DIV/0!"},{"$error":"#DIV/0!"},{"v":0,"d":"0.0"}]
[]
["# students registered in the class",null,null,{"$f":"'Classroom 7 - to school'!D16","v":0}]
["average # students participating",null,null,{"$f":"K14","v":{"v":0,"d":"0.0"}}]

{"sheet":"Classroom 8 - to school","index":15,"n_rows":17,"n_cols":12,"rows_kept":17,"merged":[[3,0,3,2],[5,2,6,2],[5,3,6,3],[5,4,6,4],[5,5,6,5],[5,6,6,6],[5,7,6,7],[5,8,6,8],[5,9,6,9],[5,10,6,10],[5,11,6,11],[15,0,15,2],[16,0,16,2]]}
["CLASSROOM","Grade"]
[null,null,"TO SCHOOL"]
[]
["Date (dd/mm/yyyy)",null,null,{"$f":"'Classroom 1 - to school'!D4","v":"00:00:00"}]
[]
["Ontario School Number","Weather","Biked (all or most of the way)","Walked (all or most of the way","Rolled (includes skateboard, wheelchair, scooter, etc.)","School Bus (includes any shared vehicles for students only)","Public Transit (all or most of the way. Includes trains, ferries, buses, etc.","Car","# Students absent today","Other","Total\n (not including absent students)","Total Students in class\n (including absent students. Use this column as a validation check for # students registered in the class)"]
[{"$f":"'Classroom 1 - to school'!A7","v":"<enter 6-digit number from https://www.ontario.ca/data/ontario-public-school-contact-information> "},"(descriptive)"]
["Monday",{"$f":"'Classroom 1 - to school'!B8","v":0},{"$nulls":8},{"$f":"SUM(C8:H8)","v":0},{"$f":"SUM(C8:I8)","v":0}]
["Tuesday",{"$f":"'Classroom 1 - to school'!B9","v":0},{"$nulls":8},{"$f":"SUM(C9:H9)","v":0},{"$f":"SUM(C9:I9)","v":0}]
["Wednesday",{"$f":"'Classroom 1 - to school'!B10","v":0},{"$nulls":8},{"$f":"SUM(C10:H10)","v":0},0]
["Thursday",{"$f":"'Classroom 1 - to school'!B11","v":0},{"$nulls":8},{"$f":"SUM(C11:H11)","v":0},0]
["Friday",{"$f":"'Classroom 1 - to school'!B12","v":0},{"$nulls":8},{"$f":"SUM(C12:H12)","v":0},0]
["Total",null,{"$f":"SUM(C8:C12)","v":0},0,0,0,0,0,0,0,{"$f":"SUM(K8:K12)","v":0}]
["Average",null,{"$f":"AVERAGE(C8:C12)","v":{"$error":"#DIV/0!"}},{"$error":"#DIV/0!"},{"$error":"#DIV/0!"},{"$error":"#DIV/0!"},{"$error":"#DIV/0!"},{"$error":"#DIV/0!"},{"$error":"#DIV/0!"},{"$error":"#DIV/0!"},{"v":0,"d":"0.0"}]
[]
["# students registered in the class"]
["average # students participating",null,null,{"$f":"K14","v":{"v":0,"d":"0.0"}}]

{"sheet":"Classroom 8 - from school","index":16,"n_rows":17,"n_cols":12,"rows_kept":17,"merged":[[3,0,3,2],[5,2,6,2],[5,3,6,3],[5,4,6,4],[5,5,6,5],[5,6,6,6],[5,7,6,7],[5,8,6,8],[5,9,6,9],[5,10,6,10],[5,11,6,11],[15,0,15,2],[16,0,16,2]]}
["CLASSROOM","Grade"]
[{"$f":"'Classroom 8 - to school'!A2","v":0},{"$f":"'Classroom 8 - to school'!B2","v":0},"FROM SCHOOL"]
[]
["Date (dd/mm/yyyy)",null,null,{"$f":"'Classroom 1 - to school'!D4","v":"00:00:00"}]
[]
[{"$f":"'Classroom 1 - to school'!A6","v":"Ontario School Number"},"Weather","Biked (all or most of the way)","Walked (all or most of the way","Rolled (includes skateboard, wheelchair, scooter, etc.)","School Bus (includes any shared vehicles for students only)","Public Transit (all or most of the way. Includes trains, ferries, buses, etc.","Car","# Students absent today","Other","Total\n (not including absent students)","Total Students in class\n (including absent students. Use this column as a validation check for # students registered in the class)"]
[{"$f":"'Classroom 1 - to school'!A7","v":"<enter 6-digit number from https://www.ontario.ca/data/ontario-public-school-contact-information> "},"(descriptive)"]
["Monday",{"$f":"'Classroom 1 - to school'!B8","v":0},{"$nulls":8},{"$f":"SUM(C8:H8)","v":0},{"$f":"SUM(C8:I8)","v":0}]
["Tuesday",{"$f":"'Classroom 1 - to school'!B9","v":0},{"$nulls":8},{"$f":"SUM(C9:H9)","v":0},{"$f":"SUM(C9:I9)","v":0}]
["Wednesday",{"$f":"'Classroom 1 - to school'!B10","v":0},{"$nulls":8},{"$f":"SUM(C10:H10)","v":0},0]
["Thursday",{"$f":"'Classroom 1 - to school'!B11","v":0},{"$nulls":8},{"$f":"SUM(C11:H11)","v":0},0]
["Friday",{"$f":"'Classroom 1 - to school'!B12","v":0},{"$nulls":8},{"$f":"SUM(C12:H12)","v":0},0]
["Total",null,{"$f":"SUM(C8:C12)","v":0},0,0,0,0,0,0,0,{"$f":"SUM(K8:K12)","v":0}]
["Average",null,{"$f":"AVERAGE(C8:C12)","v":{"$error":"#DIV/0!"}},{"$error":"#DIV/0!"},{"$error":"#DIV/0!"},{"$error":"#DIV/0!"},{"$error":"#DIV/0!"},{"$error":"#DIV/0!"},{"$error":"#DIV/0!"},{"$error":"#DIV/0!"},{"v":0,"d":"0.0"}]
[]
["# students registered in the class",null,null,{"$f":"'Classroom 8 - to school'!D16","v":0}]
["average # students participating",null,null,{"$f":"K14","v":{"v":0,"d":"0.0"}}]

{"sheet":"Classroom 9 - to school","index":17,"n_rows":17,"n_cols":12,"rows_kept":17,"merged":[[3,0,3,2],[5,2,6,2],[5,3,6,3],[5,4,6,4],[5,5,6,5],[5,6,6,6],[5,7,6,7],[5,8,6,8],[5,9,6,9],[5,10,6,10],[5,11,6,11],[15,0,15,2],[16,0,16,2]]}
["CLASSROOM","Grade"]
[null,null,"TO SCHOOL"]
[]
["Date (dd/mm/yyyy)",null,null,{"$f":"'Classroom 1 - to school'!D4","v":"00:00:00"}]
[]
["Ontario School Number","Weather","Biked (all or most of the way)","Walked (all or most of the way","Rolled (includes skateboard, wheelchair, scooter, etc.)","School Bus (includes any shared vehicles for students only)","Public Transit (all or most of the way. Includes trains, ferries, buses, etc.","Car","# Students absent today","Other","Total\n (not including absent students)","Total Students in class\n (including absent students. Use this column as a validation check for # students registered in the class)"]
[{"$f":"'Classroom 1 - to school'!A7","v":"<enter 6-digit number from https://www.ontario.ca/data/ontario-public-school-contact-information> "},"(descriptive)"]
["Monday",{"$f":"'Classroom 1 - to school'!B8","v":0},{"$nulls":8},{"$f":"SUM(C8:H8)","v":0},{"$f":"SUM(C8:I8)","v":0}]
["Tuesday",{"$f":"'Classroom 1 - to school'!B9","v":0},{"$nulls":8},{"$f":"SUM(C9:H9)","v":0},{"$f":"SUM(C9:I9)","v":0}]
["Wednesday",{"$f":"'Classroom 1 - to school'!B10","v":0},{"$nulls":8},{"$f":"SUM(C10:H10)","v":0},0]
["Thursday",{"$f":"'Classroom 1 - to school'!B11","v":0},{"$nulls":8},{"$f":"SUM(C11:H11)","v":0},0]
["Friday",{"$f":"'Classroom 1 - to school'!B12","v":0},{"$nulls":8},{"$f":"SUM(C12:H12)","v":0},0]
["Total",null,{"$f":"SUM(C8:C12)","v":0},0,0,0,0,0,0,0,{"$f":"SUM(K8:K12)","v":0}]
["Average",null,{"$f":"AVERAGE(C8:C12)","v":{"$error":"#DIV/0!"}},{"$error":"#DIV/0!"},{"$error":"#DIV/0!"},{"$error":"#DIV/0!"},{"$error":"#DIV/0!"},{"$error":"#DIV/0!"},{"$error":"#DIV/0!"},{"$error":"#DIV/0!"},{"v":0,"d":"0.0"}]
[]
["# students registered in the class"]
["average # students participating",null,null,{"$f":"K14","v":{"v":0,"d":"0.0"}}]

{"sheet":"Classroom 9 - from school","index":18,"n_rows":17,"n_cols":12,"rows_kept":17,"merged":[[3,0,3,2],[5,2,6,2],[5,3,6,3],[5,4,6,4],[5,5,6,5],[5,6,6,6],[5,7,6,7],[5,8,6,8],[5,9,6,9],[5,10,6,10],[5,11,6,11],[15,0,15,2],[16,0,16,2]]}
["CLASSROOM","Grade"]
[{"$f":"'Classroom 9 - to school'!A2","v":0},{"$f":"'Classroom 9 - to school'!B2","v":0},"FROM SCHOOL"]
[]
["Date (dd/mm/yyyy)",null,null,{"$f":"'Classroom 1 - to school'!D4","v":"00:00:00"}]
[]
[{"$f":"'Classroom 1 - to school'!A6","v":"Ontario School Number"},"Weather","Biked (all or most of the way)","Walked (all or most of the way","Rolled (includes skateboard, wheelchair, scooter, etc.)","School Bus (includes any shared vehicles for students only)","Public Transit (all or most of the way. Includes trains, ferries, buses, etc.","Car","# Students absent today","Other","Total\n (not including absent students)","Total Students in class\n (including absent students. Use this column as a validation check for # students registered in the class)"]
[{"$f":"'Classroom 1 - to school'!A7","v":"<enter 6-digit number from https://www.ontario.ca/data/ontario-public-school-contact-information> "},"(descriptive)"]
["Monday",{"$f":"'Classroom 1 - to school'!B8","v":0},{"$nulls":8},{"$f":"SUM(C8:H8)","v":0},{"$f":"SUM(C8:I8)","v":0}]
["Tuesday",{"$f":"'Classroom 1 - to school'!B9","v":0},{"$nulls":8},{"$f":"SUM(C9:H9)","v":0},{"$f":"SUM(C9:I9)","v":0}]
["Wednesday",{"$f":"'Classroom 1 - to school'!B10","v":0},{"$nulls":8},{"$f":"SUM(C10:H10)","v":0},0]
["Thursday",{"$f":"'Classroom 1 - to school'!B11","v":0},{"$nulls":8},{"$f":"SUM(C11:H11)","v":0},0]
["Friday",{"$f":"'Classroom 1 - to school'!B12","v":0},{"$nulls":8},{"$f":"SUM(C12:H12)","v":0},0]
["Total",null,{"$f":"SUM(C8:C12)","v":0},0,0,0,0,0,0,0,{"$f":"SUM(K8:K12)","v":0}]
["Average",null,{"$f":"AVERAGE(C8:C12)","v":{"$error":"#DIV/0!"}},{"$error":"#DIV/0!"},{"$error":"#DIV/0!"},{"$error":"#DIV/0!"},{"$error":"#DIV/0!"},{"$error":"#DIV/0!"},{"$error":"#DIV/0!"},{"$error":"#DIV/0!"},{"v":0,"d":"0.0"}]
[]
["# students registered in the class",null,null,{"$f":"'Classroom 9 - to school'!D16","v":0}]
["average # students participating",null,null,{"$f":"K14","v":{"v":0,"d":"0.0"}}]

{"sheet":"Classroom 10 - to school","index":19,"n_rows":17,"n_cols":12,"rows_kept":17,"merged":[[3,0,3,2],[5,2,6,2],[5,3,6,3],[5,4,6,4],[5,5,6,5],[5,6,6,6],[5,7,6,7],[5,8,6,8],[5,9,6,9],[5,10,6,10],[5,11,6,11],[15,0,15,2],[16,0,16,2]]}
["CLASSROOM","Grade"]
[null,null,"TO SCHOOL"]
[]
["Date (dd/mm/yyyy)",null,null,{"$f":"'Classroom 1 - to school'!D4","v":"00:00:00"}]
[]
["Ontario School Number","Weather","Biked (all or most of the way)","Walked (all or most of the way","Rolled (includes skateboard, wheelchair, scooter, etc.)","School Bus (includes any shared vehicles for students only)","Public Transit (all or most of the way. Includes trains, ferries, buses, etc.","Car","# Students absent today","Other","Total\n (not including absent students)","Total Students in class\n (including absent students. Use this column as a validation check for # students registered in the class)"]
[{"$f":"'Classroom 1 - to school'!A7","v":"<enter 6-digit number from https://www.ontario.ca/data/ontario-public-school-contact-information> "},"(descriptive)"]
["Monday",{"$f":"'Classroom 1 - to school'!B8","v":0},{"$nulls":8},{"$f":"SUM(C8:H8)","v":0},{"$f":"SUM(C8:I8)","v":0}]
["Tuesday",{"$f":"'Classroom 1 - to school'!B9","v":0},{"$nulls":8},{"$f":"SUM(C9:H9)","v":0},{"$f":"SUM(C9:I9)","v":0}]
["Wednesday",{"$f":"'Classroom 1 - to school'!B10","v":0},{"$nulls":8},{"$f":"SUM(C10:H10)","v":0},0]
["Thursday",{"$f":"'Classroom 1 - to school'!B11","v":0},{"$nulls":8},{"$f":"SUM(C11:H11)","v":0},0]
["Friday",{"$f":"'Classroom 1 - to school'!B12","v":0},{"$nulls":8},{"$f":"SUM(C12:H12)","v":0},0]
["Total",null,{"$f":"SUM(C8:C12)","v":0},0,0,0,0,0,0,0,{"$f":"SUM(K8:K12)","v":0}]
["Average",null,{"$f":"AVERAGE(C8:C12)","v":{"$error":"#DIV/0!"}},{"$error":"#DIV/0!"},{"$error":"#DIV/0!"},{"$error":"#DIV/0!"},{"$error":"#DIV/0!"},{"$error":"#DIV/0!"},{"$error":"#DIV/0!"},{"$error":"#DIV/0!"},{"v":0,"d":"0.0"}]
[]
["# students registered in the class"]
["average # students participating",null,null,{"$f":"K14","v":{"v":0,"d":"0.0"}}]

{"sheet":"Classroom 10 - from school","index":20,"n_rows":17,"n_cols":12,"rows_kept":17,"merged":[[3,0,3,2],[5,2,6,2],[5,3,6,3],[5,4,6,4],[5,5,6,5],[5,6,6,6],[5,7,6,7],[5,8,6,8],[5,9,6,9],[5,10,6,10],[5,11,6,11],[15,0,15,2],[16,0,16,2]]}
["CLASSROOM","Grade"]
[{"$f":"'Classroom 10 - to school'!A2","v":0},{"$f":"'Classroom 10 - to school'!B2","v":0},"FROM SCHOOL"]
[]
["Date (dd/mm/yyyy)",null,null,{"$f":"'Classroom 1 - to school'!D4","v":"00:00:00"}]
[]
["Ontario School Number","Weather","Biked (all or most of the way)","Walked (all or most of the way","Rolled (includes skateboard, wheelchair, scooter, etc.)","School Bus (includes any shared vehicles for students only)","Public Transit (all or most of the way. Includes trains, ferries, buses, etc.","Car","# Students absent today","Other","Total\n (not including absent students)","Total Students in class\n (including absent students. Use this column as a validation check for # students registered in the class)"]
[{"$f":"'Classroom 1 - to school'!A7","v":"<enter 6-digit number from https://www.ontario.ca/data/ontario-public-school-contact-information> "},"(descriptive)"]
["Monday",{"$f":"'Classroom 1 - to school'!B8","v":0},{"$nulls":8},{"$f":"SUM(C8:H8)","v":0},{"$f":"SUM(C8:I8)","v":0}]
["Tuesday",{"$f":"'Classroom 1 - to school'!B9","v":0},{"$nulls":8},{"$f":"SUM(C9:H9)","v":0},{"$f":"SUM(C9:I9)","v":0}]
["Wednesday",{"$f":"'Classroom 1 - to school'!B10","v":0},{"$nulls":8},{"$f":"SUM(C10:H10)","v":0},0]
["Thursday",{"$f":"'Classroom 1 - to school'!B11","v":0},{"$nulls":8},{"$f":"SUM(C11:H11)","v":0},0]
["Friday",{"$f":"'Classroom 1 - to school'!B12","v":0},{"$nulls":8},{"$f":"SUM(C12:H12)","v":0},0]
["Total",null,{"$f":"SUM(C8:C12)","v":0},0,0,0,0,0,0,0,{"$f":"SUM(K8:K12)","v":0}]
["Average",null,{"$f":"AVERAGE(C8:C12)","v":{"$error":"#DIV/0!"}},{"$error":"#DIV/0!"},{"$error":"#DIV/0!"},{"$error":"#DIV/0!"},{"$error":"#DIV/0!"},{"$error":"#DIV/0!"},{"$error":"#DIV/0!"},{"$error":"#DIV/0!"},{"v":0,"d":"0.0"}]
[]
["# students registered in the class",null,null,{"$f":"'Classroom 10 - to school'!D16","v":0}]
["average # students participating",null,null,{"$f":"K14","v":{"v":0,"d":"0.0"}}]

{"sheet":"Classroom 11 - to school","index":21,"n_rows":17,"n_cols":12,"rows_kept":17,"merged":[[3,0,3,2],[5,2,6,2],[5,3,6,3],[5,4,6,4],[5,5,6,5],[5,6,6,6],[5,7,6,7],[5,8,6,8],[5,9,6,9],[5,10,6,10],[5,11,6,11],[15,0,15,2],[16,0,16,2]]}
["CLASSROOM","Grade"]
[null,null,"TO SCHOOL"]
[]
["Date (dd/mm/yyyy)",null,null,{"$f":"'Classroom 1 - to school'!D4","v":"00:00:00"}]
[]
["Ontario School Number","Weather","Biked (all or most of the way)","Walked (all or most of the way","Rolled (includes skateboard, wheelchair, scooter, etc.)","School Bus (includes any shared vehicles for students only)","Public Transit (all or most of the way. Includes trains, ferries, buses, etc.","Car","# Students absent today","Other","Total\n (not including absent students)","Total Students in class\n (including absent students. Use this column as a validation check for # students registered in the class)"]
[{"$f":"'Classroom 1 - to school'!A7","v":"<enter 6-digit number from https://www.ontario.ca/data/ontario-public-school-contact-information> "},"(descriptive)"]
["Monday",{"$f":"'Classroom 1 - to school'!B8","v":0},{"$nulls":8},{"$f":"SUM(C8:H8)","v":0},{"$f":"SUM(C8:I8)","v":0}]
["Tuesday",{"$f":"'Classroom 1 - to school'!B9","v":0},{"$nulls":8},{"$f":"SUM(C9:H9)","v":0},{"$f":"SUM(C9:I9)","v":0}]
["Wednesday",{"$f":"'Classroom 1 - to school'!B10","v":0},{"$nulls":8},{"$f":"SUM(C10:H10)","v":0},0]
["Thursday",{"$f":"'Classroom 1 - to school'!B11","v":0},{"$nulls":8},{"$f":"SUM(C11:H11)","v":0},0]
["Friday",{"$f":"'Classroom 1 - to school'!B12","v":0},{"$nulls":8},{"$f":"SUM(C12:H12)","v":0},0]
["Total",null,{"$f":"SUM(C8:C12)","v":0},0,0,0,0,0,0,0,{"$f":"SUM(K8:K12)","v":0}]
["Average",null,{"$f":"AVERAGE(C8:C12)","v":{"$error":"#DIV/0!"}},{"$error":"#DIV/0!"},{"$error":"#DIV/0!"},{"$error":"#DIV/0!"},{"$error":"#DIV/0!"},{"$error":"#DIV/0!"},{"$error":"#DIV/0!"},{"$error":"#DIV/0!"},{"v":0,"d":"0.0"}]
[]
["# students registered in the class"]
["average # students participating",null,null,{"$f":"K14","v":{"v":0,"d":"0.0"}}]

{"sheet":"Classroom 11 - from school","index":22,"n_rows":17,"n_cols":12,"rows_kept":17,"merged":[[3,0,3,2],[5,2,6,2],[5,3,6,3],[5,4,6,4],[5,5,6,5],[5,6,6,6],[5,7,6,7],[5,8,6,8],[5,9,6,9],[5,10,6,10],[5,11,6,11],[15,0,15,2],[16,0,16,2]]}
["CLASSROOM","Grade"]
[{"$f":"'Classroom 11 - to school'!A2","v":0},"='Classroom 11 - to school'!B2","FROM SCHOOL"]
[]
["Date (dd/mm/yyyy)",null,null,{"$f":"'Classroom 1 - to school'!D4","v":"00:00:00"}]
[]
["Ontario School Number","Weather","Biked (all or most of the way)","Walked (all or most of the way","Rolled (includes skateboard, wheelchair, scooter, etc.)","School Bus (includes any shared vehicles for students only)","Public Transit (all or most of the way. Includes trains, ferries, buses, etc.","Car","# Students absent today","Other","Total\n (not including absent students)","Total Students in class\n (including absent students. Use this column as a validation check for # students registered in the class)"]
[{"$f":"'Classroom 1 - to school'!A7","v":"<enter 6-digit number from https://www.ontario.ca/data/ontario-public-school-contact-information> "},"(descriptive)"]
["Monday",{"$f":"'Classroom 1 - to school'!B8","v":0},{"$nulls":8},{"$f":"SUM(C8:H8)","v":0},{"$f":"SUM(C8:I8)","v":0}]
["Tuesday",{"$f":"'Classroom 1 - to school'!B9","v":0},{"$nulls":8},{"$f":"SUM(C9:H9)","v":0},{"$f":"SUM(C9:I9)","v":0}]
["Wednesday",{"$f":"'Classroom 1 - to school'!B10","v":0},{"$nulls":8},{"$f":"SUM(C10:H10)","v":0},0]
["Thursday",{"$f":"'Classroom 1 - to school'!B11","v":0},{"$nulls":8},{"$f":"SUM(C11:H11)","v":0},0]
["Friday",{"$f":"'Classroom 1 - to school'!B12","v":0},{"$nulls":8},{"$f":"SUM(C12:H12)","v":0},0]
["Total",null,{"$f":"SUM(C8:C12)","v":0},0,0,0,0,0,0,0,{"$f":"SUM(K8:K12)","v":0}]
["Average",null,{"$f":"AVERAGE(C8:C12)","v":{"$error":"#DIV/0!"}},{"$error":"#DIV/0!"},{"$error":"#DIV/0!"},{"$error":"#DIV/0!"},{"$error":"#DIV/0!"},{"$error":"#DIV/0!"},{"$error":"#DIV/0!"},{"$error":"#DIV/0!"},{"v":0,"d":"0.0"}]
[]
["# students registered in the class",null,null,{"$f":"'Classroom 11 - to school'!D16","v":0}]
["average # students participating",null,null,{"$f":"K14","v":{"v":0,"d":"0.0"}}]

{"sheet":"Classroom 12 - to school","index":23,"n_rows":17,"n_cols":12,"rows_kept":17,"merged":[[3,0,3,2],[5,2,6,2],[5,3,6,3],[5,4,6,4],[5,5,6,5],[5,6,6,6],[5,7,6,7],[5,8,6,8],[5,9,6,9],[5,10,6,10],[5,11,6,11],[15,0,15,2],[16,0,16,2]]}
["CLASSROOM","Grade"]
[null,null,"TO SCHOOL"]
[]
["Date (dd/mm/yyyy)",null,null,{"$f":"'Classroom 1 - to school'!D4","v":"00:00:00"}]
[]
["Ontario School Number","Weather","Biked (all or most of the way)","Walked (all or most of the way","Rolled (includes skateboard, wheelchair, scooter, etc.)","School Bus (includes any shared vehicles for students only)","Public Transit (all or most of the way. Includes trains, ferries, buses, etc.","Car","# Students absent today","Other","Total\n (not including absent students)","Total Students in class\n (including absent students. Use this column as a validation check for # students registered in the class)"]
[{"$f":"'Classroom 1 - to school'!A7","v":"<enter 6-digit number from https://www.ontario.ca/data/ontario-public-school-contact-information> "},"(descriptive)"]
["Monday",{"$f":"'Classroom 1 - to school'!B8","v":0},{"$nulls":8},{"$f":"SUM(C8:H8)","v":0},{"$f":"SUM(C8:I8)","v":0}]
["Tuesday",{"$f":"'Classroom 1 - to school'!B9","v":0},{"$nulls":8},{"$f":"SUM(C9:H9)","v":0},{"$f":"SUM(C9:I9)","v":0}]
["Wednesday",{"$f":"'Classroom 1 - to school'!B10","v":0},{"$nulls":8},{"$f":"SUM(C10:H10)","v":0},0]
["Thursday",{"$f":"'Classroom 1 - to school'!B11","v":0},{"$nulls":8},{"$f":"SUM(C11:H11)","v":0},0]
["Friday",{"$f":"'Classroom 1 - to school'!B12","v":0},{"$nulls":8},{"$f":"SUM(C12:H12)","v":0},0]
["Total",null,{"$f":"SUM(C8:C12)","v":0},0,0,0,0,0,0,0,{"$f":"SUM(K8:K12)","v":0}]
["Average",null,{"$f":"AVERAGE(C8:C12)","v":{"$error":"#DIV/0!"}},{"$error":"#DIV/0!"},{"$error":"#DIV/0!"},{"$error":"#DIV/0!"},{"$error":"#DIV/0!"},{"$error":"#DIV/0!"},{"$error":"#DIV/0!"},{"$error":"#DIV/0!"},{"v":0,"d":"0.0"}]
[]
["# students registered in the class"]
["average # students participating",null,null,{"$f":"K14","v":{"v":0,"d":"0.0"}}]

{"sheet":"Classroom 12 - from school","index":24,"n_rows":17,"n_cols":12,"rows_kept":17,"merged":[[3,0,3,2],[5,2,6,2],[5,3,6,3],[5,4,6,4],[5,5,6,5],[5,6,6,6],[5,7,6,7],[5,8,6,8],[5,9,6,9],[5,10,6,10],[5,11,6,11],[15,0,15,2],[16,0,16,2]]}
["CLASSROOM","Grade"]
[{"$f":"'Classroom 12 - to school'!A2","v":0},"='Classroom 12 - to school'!B2","FROM SCHOOL"]
[]
["Date (dd/mm/yyyy)",null,null,{"$f":"'Classroom 1 - to school'!D4","v":"00:00:00"}]
[]
["Ontario School Number","Weather","Biked (all or most of the way)","Walked (all or most of the way","Rolled (includes skateboard, wheelchair, scooter, etc.)","School Bus (includes any shared vehicles for students only)","Public Transit (all or most of the way. Includes trains, ferries, buses, etc.","Car","# Students absent today","Other","Total\n (not including absent students)","Total Students in class\n (including absent students. Use this column as a validation check for # students registered in the class)"]
[{"$f":"'Classroom 1 - to school'!A7","v":"<enter 6-digit number from https://www.ontario.ca/data/ontario-public-school-contact-information> "},"(descriptive)"]
["Monday",{"$f":"'Classroom 1 - to school'!B8","v":0},{"$nulls":8},{"$f":"SUM(C8:H8)","v":0},{"$f":"SUM(C8:I8)","v":0}]
["Tuesday",{"$f":"'Classroom 1 - to school'!B9","v":0},{"$nulls":8},{"$f":"SUM(C9:H9)","v":0},{"$f":"SUM(C9:I9)","v":0}]
["Wednesday",{"$f":"'Classroom 1 - to school'!B10","v":0},{"$nulls":8},{"$f":"SUM(C10:H10)","v":0},0]
["Thursday",{"$f":"'Classroom 1 - to school'!B11","v":0},{"$nulls":8},{"$f":"SUM(C11:H11)","v":0},0]
["Friday",{"$f":"'Classroom 1 - to school'!B12","v":0},{"$nulls":8},{"$f":"SUM(C12:H12)","v":0},0]
["Total",null,{"$f":"SUM(C8:C12)","v":0},0,0,0,0,0,0,0,{"$f":"SUM(K8:K12)","v":0}]
["Average",null,{"$f":"AVERAGE(C8:C12)","v":{"$error":"#DIV/0!"}},{"$error":"#DIV/0!"},{"$error":"#DIV/0!"},{"$error":"#DIV/0!"},{"$error":"#DIV/0!"},{"$error":"#DIV/0!"},{"$error":"#DIV/0!"},{"$error":"#DIV/0!"},{"v":0,"d":"0.0"}]
[]
["# students registered in the class",null,null,{"$f":"'Classroom 12 - to school'!D16","v":0}]
["average # students participating",null,null,{"$f":"K14","v":{"v":0,"d":"0.0"}}]

{"sheet":"Classroom 13 - to school","index":25,"n_rows":17,"n_cols":12,"rows_kept":17,"merged":[[3,0,3,2],[5,2,6,2],[5,3,6,3],[5,4,6,4],[5,5,6,5],[5,6,6,6],[5,7,6,7],[5,8,6,8],[5,9,6,9],[5,10,6,10],[5,11,6,11],[15,0,15,2],[16,0,16,2]]}
["CLASSROOM","Grade"]
[null,null,"TO SCHOOL"]
[]
["Date (dd/mm/yyyy)",null,null,{"$f":"'Classroom 1 - to school'!D4","v":"00:00:00"}]
[]
["Ontario School Number","Weather","Biked (all or most of the way)","Walked (all or most of the way","Rolled (includes skateboard, wheelchair, scooter, etc.)","School Bus (includes any shared vehicles for students only)","Public Transit (all or most of the way. Includes trains, ferries, buses, etc.","Car","# Students absent today","Other","Total\n (not including absent students)","Total Students in class\n (including absent students. Use this column as a validation check for # students registered in the class)"]
[{"$f":"'Classroom 1 - to school'!A7","v":"<enter 6-digit number from https://www.ontario.ca/data/ontario-public-school-contact-information> "},"(descriptive)"]
["Monday",{"$f":"'Classroom 1 - to school'!B8","v":0},{"$nulls":8},{"$f":"SUM(C8:H8)","v":0},{"$f":"SUM(C8:I8)","v":0}]
["Tuesday",{"$f":"'Classroom 1 - to school'!B9","v":0},{"$nulls":8},{"$f":"SUM(C9:H9)","v":0},{"$f":"SUM(C9:I9)","v":0}]
["Wednesday",{"$f":"'Classroom 1 - to school'!B10","v":0},{"$nulls":8},{"$f":"SUM(C10:H10)","v":0},0]
["Thursday",{"$f":"'Classroom 1 - to school'!B11","v":0},{"$nulls":8},{"$f":"SUM(C11:H11)","v":0},0]
["Friday",{"$f":"'Classroom 1 - to school'!B12","v":0},{"$nulls":8},{"$f":"SUM(C12:H12)","v":0},0]
["Total",null,{"$f":"SUM(C8:C12)","v":0},0,0,0,0,0,0,0,{"$f":"SUM(K8:K12)","v":0}]
["Average",null,{"$f":"AVERAGE(C8:C12)","v":{"$error":"#DIV/0!"}},{"$error":"#DIV/0!"},{"$error":"#DIV/0!"},{"$error":"#DIV/0!"},{"$error":"#DIV/0!"},{"$error":"#DIV/0!"},{"$error":"#DIV/0!"},{"$error":"#DIV/0!"},{"v":0,"d":"0.0"}]
[]
["# students registered in the class"]
["average # students participating",null,null,{"$f":"K14","v":{"v":0,"d":"0.0"}}]

{"sheet":"Classroom 13 - from school","index":26,"n_rows":17,"n_cols":12,"rows_kept":17,"merged":[[3,0,3,2],[5,2,6,2],[5,3,6,3],[5,4,6,4],[5,5,6,5],[5,6,6,6],[5,7,6,7],[5,8,6,8],[5,9,6,9],[5,10,6,10],[5,11,6,11],[15,0,15,2],[16,0,16,2]]}
["CLASSROOM","Grade"]
[{"$f":"'Classroom 13 - to school'!A2","v":0},"='Classroom 13 - to school'!B2","FROM SCHOOL"]
[]
["Date (dd/mm/yyyy)",null,null,{"$f":"'Classroom 1 - to school'!D4","v":"00:00:00"}]
[]
["Ontario School Number","Weather","Biked (all or most of the way)","Walked (all or most of the way","Rolled (includes skateboard, wheelchair, scooter, etc.)","School Bus (includes any shared vehicles for students only)","Public Transit (all or most of the way. Includes trains, ferries, buses, etc.","Car","# Students absent today","Other","Total\n (not including absent students)","Total Students in class\n (including absent students. Use this column as a validation check for # students registered in the class)"]
[{"$f":"'Classroom 1 - to school'!A7","v":"<enter 6-digit number from https://www.ontario.ca/data/ontario-public-school-contact-information> "},"(descriptive)"]
["Monday",{"$f":"'Classroom 1 - to school'!B8","v":0},{"$nulls":8},{"$f":"SUM(C8:H8)","v":0},{"$f":"SUM(C8:I8)","v":0}]
["Tuesday",{"$f":"'Classroom 1 - to school'!B9","v":0},{"$nulls":8},{"$f":"SUM(C9:H9)","v":0},{"$f":"SUM(C9:I9)","v":0}]
["Wednesday",{"$f":"'Classroom 1 - to school'!B10","v":0},{"$nulls":8},{"$f":"SUM(C10:H10)","v":0},0]
["Thursday",{"$f":"'Classroom 1 - to school'!B11","v":0},{"$nulls":8},{"$f":"SUM(C11:H11)","v":0},0]
["Friday",{"$f":"'Classroom 1 - to school'!B12","v":0},{"$nulls":8},{"$f":"SUM(C12:H12)","v":0},0]
["Total",null,{"$f":"SUM(C8:C12)","v":0},0,0,0,0,0,0,0,{"$f":"SUM(K8:K12)","v":0}]
["Average",null,{"$f":"AVERAGE(C8:C12)","v":{"$error":"#DIV/0!"}},{"$error":"#DIV/0!"},{"$error":"#DIV/0!"},{"$error":"#DIV/0!"},{"$error":"#DIV/0!"},{"$error":"#DIV/0!"},{"$error":"#DIV/0!"},{"$error":"#DIV/0!"},{"v":0,"d":"0.0"}]
[]
["# students registered in the class",null,null,{"$f":"'Classroom 13 - to school'!D16","v":0}]
["average # students participating",null,null,{"$f":"K14","v":{"v":0,"d":"0.0"}}]

{"sheet":"Classroom 14 - to school","index":27,"n_rows":17,"n_cols":12,"rows_kept":17,"merged":[[3,0,3,2],[5,2,6,2],[5,3,6,3],[5,4,6,4],[5,5,6,5],[5,6,6,6],[5,7,6,7],[5,8,6,8],[5,9,6,9],[5,10,6,10],[5,11,6,11],[15,0,15,2],[16,0,16,2]]}
["CLASSROOM","Grade"]
[null,null,"TO SCHOOL"]
[]
["Date (dd/mm/yyyy)",null,null,{"$f":"'Classroom 1 - to school'!D4","v":"00:00:00"}]
[]
["Ontario School Number","Weather","Biked (all or most of the way)","Walked (all or most of the way","Rolled (includes skateboard, wheelchair, scooter, etc.)","School Bus (includes any shared vehicles for students only)","Public Transit (all or most of the way. Includes trains, ferries, buses, etc.","Car","# Students absent today","Other","Total\n (not including absent students)","Total Students in class\n (including absent students. Use this column as a validation check for # students registered in the class)"]
[{"$f":"'Classroom 1 - to school'!A7","v":"<enter 6-digit number from https://www.ontario.ca/data/ontario-public-school-contact-information> "},"(descriptive)"]
["Monday",{"$f":"'Classroom 1 - to school'!B8","v":0},{"$nulls":8},{"$f":"SUM(C8:H8)","v":0},{"$f":"SUM(C8:I8)","v":0}]
["Tuesday",{"$f":"'Classroom 1 - to school'!B9","v":0},{"$nulls":8},{"$f":"SUM(C9:H9)","v":0},{"$f":"SUM(C9:I9)","v":0}]
["Wednesday",{"$f":"'Classroom 1 - to school'!B10","v":0},{"$nulls":8},{"$f":"SUM(C10:H10)","v":0},0]
["Thursday",{"$f":"'Classroom 1 - to school'!B11","v":0},{"$nulls":8},{"$f":"SUM(C11:H11)","v":0},0]
["Friday",{"$f":"'Classroom 1 - to school'!B12","v":0},{"$nulls":8},{"$f":"SUM(C12:H12)","v":0},0]
["Total",null,{"$f":"SUM(C8:C12)","v":0},0,0,0,0,0,0,0,{"$f":"SUM(K8:K12)","v":0}]
["Average",null,{"$f":"AVERAGE(C8:C12)","v":{"$error":"#DIV/0!"}},{"$error":"#DIV/0!"},{"$error":"#DIV/0!"},{"$error":"#DIV/0!"},{"$error":"#DIV/0!"},{"$error":"#DIV/0!"},{"$error":"#DIV/0!"},{"$error":"#DIV/0!"},{"v":0,"d":"0.0"}]
[]
["# students registered in the class"]
["average # students participating",null,null,{"$f":"K14","v":{"v":0,"d":"0.0"}}]

{"sheet":"Classroom 14 - from school","index":28,"n_rows":17,"n_cols":12,"rows_kept":17,"merged":[[3,0,3,2],[5,2,6,2],[5,3,6,3],[5,4,6,4],[5,5,6,5],[5,6,6,6],[5,7,6,7],[5,8,6,8],[5,9,6,9],[5,10,6,10],[5,11,6,11],[15,0,15,2],[16,0,16,2]]}
["CLASSROOM","Grade"]
[{"$f":"'Classroom 14 - to school'!A2","v":0},"='Classroom 14 - to school'!B2","FROM SCHOOL"]
[]
["Date (dd/mm/yyyy)",null,null,{"$f":"'Classroom 1 - to school'!D4","v":"00:00:00"}]
[]
["Ontario School Number","Weather","Biked (all or most of the way)","Walked (all or most of the way","Rolled (includes skateboard, wheelchair, scooter, etc.)","School Bus (includes any shared vehicles for students only)","Public Transit (all or most of the way. Includes trains, ferries, buses, etc.","Car","# Students absent today","Other","Total\n (not including absent students)","Total Students in class\n (including absent students. Use this column as a validation check for # students registered in the class)"]
[{"$f":"'Classroom 1 - to school'!A7","v":"<enter 6-digit number from https://www.ontario.ca/data/ontario-public-school-contact-information> "},"(descriptive)"]
["Monday",{"$f":"'Classroom 1 - to school'!B8","v":0},{"$nulls":8},{"$f":"SUM(C8:H8)","v":0},{"$f":"SUM(C8:I8)","v":0}]
["Tuesday",{"$f":"'Classroom 1 - to school'!B9","v":0},{"$nulls":8},{"$f":"SUM(C9:H9)","v":0},{"$f":"SUM(C9:I9)","v":0}]
["Wednesday",{"$f":"'Classroom 1 - to school'!B10","v":0},{"$nulls":8},{"$f":"SUM(C10:H10)","v":0},0]
["Thursday",{"$f":"'Classroom 1 - to school'!B11","v":0},{"$nulls":8},{"$f":"SUM(C11:H11)","v":0},0]
["Friday",{"$f":"'Classroom 1 - to school'!B12","v":0},{"$nulls":8},{"$f":"SUM(C12:H12)","v":0},0]
["Total",null,{"$f":"SUM(C8:C12)","v":0},0,0,0,0,0,0,0,{"$f":"SUM(K8:K12)","v":0}]
["Average",null,{"$f":"AVERAGE(C8:C12)","v":{"$error":"#DIV/0!"}},{"$error":"#DIV/0!"},{"$error":"#DIV/0!"},{"$error":"#DIV/0!"},{"$error":"#DIV/0!"},{"$error":"#DIV/0!"},{"$error":"#DIV/0!"},{"$error":"#DIV/0!"},{"v":0,"d":"0.0"}]
[]
["# students registered in the class",null,null,{"$f":"'Classroom 14 - to school'!D16","v":0}]
["average # students participating",null,null,{"$f":"K14","v":{"v":0,"d":"0.0"}}]

{"sheet":"Classroom 15 - to school","index":29,"n_rows":17,"n_cols":12,"rows_kept":17,"merged":[[3,0,3,2],[5,2,6,2],[5,3,6,3],[5,4,6,4],[5,5,6,5],[5,6,6,6],[5,7,6,7],[5,8,6,8],[5,9,6,9],[5,10,6,10],[5,11,6,11],[15,0,15,2],[16,0,16,2]]}
["CLASSROOM","Grade"]
[null,null,"TO SCHOOL"]
[]
["Date (dd/mm/yyyy)",null,null,{"$f":"'Classroom 1 - to school'!D4","v":"00:00:00"}]
[]
["Ontario School Number","Weather","Biked (all or most of the way)","Walked (all or most of the way","Rolled (includes skateboard, wheelchair, scooter, etc.)","School Bus (includes any shared vehicles for students only)","Public Transit (all or most of the way. Includes trains, ferries, buses, etc.","Car","# Students absent today","Other","Total\n (not including absent students)","Total Students in class\n (including absent students. Use this column as a validation check for # students registered in the class)"]
[{"$f":"'Classroom 1 - to school'!A7","v":"<enter 6-digit number from https://www.ontario.ca/data/ontario-public-school-contact-information> "},"(descriptive)"]
["Monday",{"$f":"'Classroom 1 - to school'!B8","v":0},{"$nulls":8},{"$f":"SUM(C8:H8)","v":0},{"$f":"SUM(C8:I8)","v":0}]
["Tuesday",{"$f":"'Classroom 1 - to school'!B9","v":0},{"$nulls":8},{"$f":"SUM(C9:H9)","v":0},{"$f":"SUM(C9:I9)","v":0}]
["Wednesday",{"$f":"'Classroom 1 - to school'!B10","v":0},{"$nulls":8},{"$f":"SUM(C10:H10)","v":0},0]
["Thursday",{"$f":"'Classroom 1 - to school'!B11","v":0},{"$nulls":8},{"$f":"SUM(C11:H11)","v":0},0]
["Friday",{"$f":"'Classroom 1 - to school'!B12","v":0},{"$nulls":8},{"$f":"SUM(C12:H12)","v":0},0]
["Total",null,{"$f":"SUM(C8:C12)","v":0},0,0,0,0,0,0,0,{"$f":"SUM(K8:K12)","v":0}]
["Average",null,{"$f":"AVERAGE(C8:C12)","v":{"$error":"#DIV/0!"}},{"$error":"#DIV/0!"},{"$error":"#DIV/0!"},{"$error":"#DIV/0!"},{"$error":"#DIV/0!"},{"$error":"#DIV/0!"},{"$error":"#DIV/0!"},{"$error":"#DIV/0!"},{"v":0,"d":"0.0"}]
[]
["# students registered in the class"]
["average # students participating",null,null,{"$f":"K14","v":{"v":0,"d":"0.0"}}]

{"sheet":"Classroom 15 - from school","index":30,"n_rows":17,"n_cols":12,"rows_kept":17,"merged":[[3,0,3,2],[5,2,6,2],[5,3,6,3],[5,4,6,4],[5,5,6,5],[5,6,6,6],[5,7,6,7],[5,8,6,8],[5,9,6,9],[5,10,6,10],[5,11,6,11],[15,0,15,2],[16,0,16,2]]}
["CLASSROOM","Grade"]
[{"$f":"'Classroom 15 - to school'!A2","v":0},"='Classroom 15 - to school'!B2","FROM SCHOOL"]
[]
["Date (dd/mm/yyyy)",null,null,{"$f":"'Classroom 1 - to school'!D4","v":"00:00:00"}]
[]
["Ontario School Number","Weather","Biked (all or most of the way)","Walked (all or most of the way","Rolled (includes skateboard, wheelchair, scooter, etc.)","School Bus (includes any shared vehicles for students only)","Public Transit (all or most of the way. Includes trains, ferries, buses, etc.","Car","# Students absent today","Other","Total\n (not including absent students)","Total Students in class\n (including absent students. Use this column as a validation check for # students registered in the class)"]
[{"$f":"'Classroom 1 - to school'!A7","v":"<enter 6-digit number from https://www.ontario.ca/data/ontario-public-school-contact-information> "},"(descriptive)"]
["Monday",{"$f":"'Classroom 1 - to school'!B8","v":0},{"$nulls":8},{"$f":"SUM(C8:H8)","v":0},{"$f":"SUM(C8:I8)","v":0}]
["Tuesday",{"$f":"'Classroom 1 - to school'!B9","v":0},{"$nulls":8},{"$f":"SUM(C9:H9)","v":0},{"$f":"SUM(C9:I9)","v":0}]
["Wednesday",{"$f":"'Classroom 1 - to school'!B10","v":0},{"$nulls":8},{"$f":"SUM(C10:H10)","v":0},0]
["Thursday",{"$f":"'Classroom 1 - to school'!B11","v":0},{"$nulls":8},{"$f":"SUM(C11:H11)","v":0},0]
["Friday",{"$f":"'Classroom 1 - to school'!B12","v":0},{"$nulls":8},{"$f":"SUM(C12:H12)","v":0},0]
["Total",null,{"$f":"SUM(C8:C12)","v":0},0,0,0,0,0,0,0,{"$f":"SUM(K8:K12)","v":0}]
["Average",null,{"$f":"AVERAGE(C8:C12)","v":{"$error":"#DIV/0!"}},{"$error":"#DIV/0!"},{"$error":"#DIV/0!"},{"$error":"#DIV/0!"},{"$error":"#DIV/0!"},{"$error":"#DIV/0!"},{"$error":"#DIV/0!"},{"$error":"#DIV/0!"},{"v":0,"d":"0.0"}]
[]
["# students registered in the class",null,null,{"$f":"'Classroom 15 - to school'!D16","v":0}]
["average # students participating",null,null,{"$f":"K14","v":{"v":0,"d":"0.0"}}]

{"sheet":"Classroom 16 - to school","index":31,"n_rows":17,"n_cols":12,"rows_kept":17,"merged":[[3,0,3,2],[5,2,6,2],[5,3,6,3],[5,4,6,4],[5,5,6,5],[5,6,6,6],[5,7,6,7],[5,8,6,8],[5,9,6,9],[5,10,6,10],[5,11,6,11],[15,0,15,2],[16,0,16,2]]}
["CLASSROOM","Grade"]
[null,null,"TO SCHOOL"]
[]
["Date (dd/mm/yyyy)",null,null,{"$f":"'Classroom 1 - to school'!D4","v":"00:00:00"}]
[]
["Ontario School Number","Weather","Biked (all or most of the way)","Walked (all or most of the way","Rolled (includes skateboard, wheelchair, scooter, etc.)","School Bus (includes any shared vehicles for students only)","Public Transit (all or most of the way. Includes trains, ferries, buses, etc.","Car","# Students absent today","Other","Total\n (not including absent students)","Total Students in class\n (including absent students. Use this column as a validation check for # students registered in the class)"]
[{"$f":"'Classroom 1 - to school'!A7","v":"<enter 6-digit number from https://www.ontario.ca/data/ontario-public-school-contact-information> "},"(descriptive)"]
["Monday",{"$f":"'Classroom 1 - to school'!B8","v":0},{"$nulls":8},{"$f":"SUM(C8:H8)","v":0},{"$f":"SUM(C8:I8)","v":0}]
["Tuesday",{"$f":"'Classroom 1 - to school'!B9","v":0},{"$nulls":8},{"$f":"SUM(C9:H9)","v":0},{"$f":"SUM(C9:I9)","v":0}]
["Wednesday",{"$f":"'Classroom 1 - to school'!B10","v":0},{"$nulls":8},{"$f":"SUM(C10:H10)","v":0},0]
["Thursday",{"$f":"'Classroom 1 - to school'!B11","v":0},{"$nulls":8},{"$f":"SUM(C11:H11)","v":0},0]
["Friday",{"$f":"'Classroom 1 - to school'!B12","v":0},{"$nulls":8},{"$f":"SUM(C12:H12)","v":0},0]
["Total",null,{"$f":"SUM(C8:C12)","v":0},0,0,0,0,0,0,0,{"$f":"SUM(K8:K12)","v":0}]
["Average",null,{"$f":"AVERAGE(C8:C12)","v":{"$error":"#DIV/0!"}},{"$error":"#DIV/0!"},{"$error":"#DIV/0!"},{"$error":"#DIV/0!"},{"$error":"#DIV/0!"},{"$error":"#DIV/0!"},{"$error":"#DIV/0!"},{"$error":"#DIV/0!"},{"v":0,"d":"0.0"}]
[]
["# students in class"]
["average # students participating",null,null,{"$f":"K14","v":{"v":0,"d":"0.0"}}]

{"sheet":"Classroom 16 - from school","index":32,"n_rows":17,"n_cols":12,"rows_kept":17,"merged":[[3,0,3,2],[5,2,6,2],[5,3,6,3],[5,4,6,4],[5,5,6,5],[5,6,6,6],[5,7,6,7],[5,8,6,8],[5,9,6,9],[5,10,6,10],[5,11,6,11],[15,0,15,2],[16,0,16,2]]}
["CLASSROOM","Grade"]
[{"$f":"'Classroom 16 - to school'!A2","v":0},"='Classroom 16 - to school'!B2","FROM SCHOOL"]
[]
["Date (dd/mm/yyyy)",null,null,{"$f":"'Classroom 1 - to school'!D4","v":"00:00:00"}]
[]
["Ontario School Number","Weather","Biked (all or most of the way)","Walked (all or most of the way","Rolled (includes skateboard, wheelchair, scooter, etc.)","School Bus (includes any shared vehicles for students only)","Public Transit (all or most of the way. Includes trains, ferries, buses, etc.","Car","# Students absent today","Other","Total\n (not including absent students)","Total Students in class\n (including absent students. Use this column as a validation check for # students registered in the class)"]
[{"$f":"'Classroom 1 - to school'!A7","v":"<enter 6-digit number from https://www.ontario.ca/data/ontario-public-school-contact-information> "},"(descriptive)"]
["Monday",{"$f":"'Classroom 1 - to school'!B8","v":0},{"$nulls":8},{"$f":"SUM(C8:H8)","v":0},{"$f":"SUM(C8:I8)","v":0}]
["Tuesday",{"$f":"'Classroom 1 - to school'!B9","v":0},{"$nulls":8},{"$f":"SUM(C9:H9)","v":0},{"$f":"SUM(C9:I9)","v":0}]
["Wednesday",{"$f":"'Classroom 1 - to school'!B10","v":0},{"$nulls":8},{"$f":"SUM(C10:H10)","v":0},0]
["Thursday",{"$f":"'Classroom 1 - to school'!B11","v":0},{"$nulls":8},{"$f":"SUM(C11:H11)","v":0},0]
["Friday",{"$f":"'Classroom 1 - to school'!B12","v":0},{"$nulls":8},{"$f":"SUM(C12:H12)","v":0},0]
["Total",null,{"$f":"SUM(C8:C12)","v":0},0,0,0,0,0,0,0,{"$f":"SUM(K8:K12)","v":0}]
["Average",null,{"$f":"AVERAGE(C8:C12)","v":{"$error":"#DIV/0!"}},{"$error":"#DIV/0!"},{"$error":"#DIV/0!"},{"$error":"#DIV/0!"},{"$error":"#DIV/0!"},{"$error":"#DIV/0!"},{"$error":"#DIV/0!"},{"$error":"#DIV/0!"},{"v":0,"d":"0.0"}]
[]
["# students registered in the class",null,null,{"$f":"'Classroom 16 - to school'!D16","v":0}]
["average # students participating",null,null,{"$f":"K14","v":{"v":0,"d":"0.0"}}]

{"sheet":"Classroom 17 - to school","index":33,"n_rows":17,"n_cols":12,"rows_kept":17,"merged":[[3,0,3,2],[5,2,6,2],[5,3,6,3],[5,4,6,4],[5,5,6,5],[5,6,6,6],[5,7,6,7],[5,8,6,8],[5,9,6,9],[5,10,6,10],[5,11,6,11],[15,0,15,2],[16,0,16,2]]}
["CLASSROOM","Grade"]
[null,null,"TO SCHOOL"]
[]
["Date (dd/mm/yyyy)",null,null,{"$f":"'Classroom 1 - to school'!D4","v":"00:00:00"}]
[]
["Ontario School Number","Weather","Biked (all or most of the way)","Walked (all or most of the way","Rolled (includes skateboard, wheelchair, scooter, etc.)","School Bus (includes any shared vehicles for students only)","Public Transit (all or most of the way. Includes trains, ferries, buses, etc.","Car","# Students absent today","Other","Total\n (not including absent students)","Total Students in class\n (including absent students. Use this column as a validation check for # students registered in the class)"]
[{"$f":"'Classroom 1 - to school'!A7","v":"<enter 6-digit number from https://www.ontario.ca/data/ontario-public-school-contact-information> "},"(descriptive)"]
["Monday",{"$f":"'Classroom 1 - to school'!B8","v":0},{"$nulls":8},{"$f":"SUM(C8:H8)","v":0},{"$f":"SUM(C8:I8)","v":0}]
["Tuesday",{"$f":"'Classroom 1 - to school'!B9","v":0},{"$nulls":8},{"$f":"SUM(C9:H9)","v":0},{"$f":"SUM(C9:I9)","v":0}]
["Wednesday",{"$f":"'Classroom 1 - to school'!B10","v":0},{"$nulls":8},{"$f":"SUM(C10:H10)","v":0},0]
["Thursday",{"$f":"'Classroom 1 - to school'!B11","v":0},{"$nulls":8},{"$f":"SUM(C11:H11)","v":0},0]
["Friday",{"$f":"'Classroom 1 - to school'!B12","v":0},{"$nulls":8},{"$f":"SUM(C12:H12)","v":0},0]
["Total",null,{"$f":"SUM(C8:C12)","v":0},0,0,0,0,0,0,0,{"$f":"SUM(K8:K12)","v":0}]
["Average",null,{"$f":"AVERAGE(C8:C12)","v":{"$error":"#DIV/0!"}},{"$error":"#DIV/0!"},{"$error":"#DIV/0!"},{"$error":"#DIV/0!"},{"$error":"#DIV/0!"},{"$error":"#DIV/0!"},{"$error":"#DIV/0!"},{"$error":"#DIV/0!"},{"v":0,"d":"0.0"}]
[]
["# students registered in the class"]
["average # students participating",null,null,{"$f":"K14","v":{"v":0,"d":"0.0"}}]

{"sheet":"Classroom 17 - from school","index":34,"n_rows":17,"n_cols":12,"rows_kept":17,"merged":[[3,0,3,2],[5,2,6,2],[5,3,6,3],[5,4,6,4],[5,5,6,5],[5,6,6,6],[5,7,6,7],[5,8,6,8],[5,9,6,9],[5,10,6,10],[5,11,6,11],[15,0,15,2],[16,0,16,2]]}
["CLASSROOM","Grade"]
[{"$f":"'Classroom 17 - to school'!A2","v":0},"='Classroom 17 - to school'!B2","FROM SCHOOL"]
[]
["Date (dd/mm/yyyy)",null,null,{"$f":"'Classroom 1 - to school'!D4","v":"00:00:00"}]
[]
["Ontario School Number","Weather","Biked (all or most of the way)","Walked (all or most of the way","Rolled (includes skateboard, wheelchair, scooter, etc.)","School Bus (includes any shared vehicles for students only)","Public Transit (all or most of the way. Includes trains, ferries, buses, etc.","Car","# Students absent today","Other","Total\n (not including absent students)","Total Students in class\n (including absent students. Use this column as a validation check for # students registered in the class)"]
[{"$f":"'Classroom 1 - to school'!A7","v":"<enter 6-digit number from https://www.ontario.ca/data/ontario-public-school-contact-information> "},"(descriptive)"]
["Monday",{"$f":"'Classroom 1 - to school'!B8","v":0},{"$nulls":8},{"$f":"SUM(C8:H8)","v":0},{"$f":"SUM(C8:I8)","v":0}]
["Tuesday",{"$f":"'Classroom 1 - to school'!B9","v":0},{"$nulls":8},{"$f":"SUM(C9:H9)","v":0},{"$f":"SUM(C9:I9)","v":0}]
["Wednesday",{"$f":"'Classroom 1 - to school'!B10","v":0},{"$nulls":8},{"$f":"SUM(C10:H10)","v":0},0]
["Thursday",{"$f":"'Classroom 1 - to school'!B11","v":0},{"$nulls":8},{"$f":"SUM(C11:H11)","v":0},0]
["Friday",{"$f":"'Classroom 1 - to school'!B12","v":0},{"$nulls":8},{"$f":"SUM(C12:H12)","v":0},0]
["Total",null,{"$f":"SUM(C8:C12)","v":0},0,0,0,0,0,0,0,{"$f":"SUM(K8:K12)","v":0}]
["Average",null,{"$f":"AVERAGE(C8:C12)","v":{"$error":"#DIV/0!"}},{"$error":"#DIV/0!"},{"$error":"#DIV/0!"},{"$error":"#DIV/0!"},{"$error":"#DIV/0!"},{"$error":"#DIV/0!"},{"$error":"#DIV/0!"},{"$error":"#DIV/0!"},{"v":0,"d":"0.0"}]
[]
["# students registered in the class",null,null,{"$f":"'Classroom 17 - to school'!D16","v":0}]
["average # students participating",null,null,{"$f":"K14","v":{"v":0,"d":"0.0"}}]

{"sheet":"Classroom 18 - to school","index":35,"n_rows":17,"n_cols":12,"rows_kept":17,"merged":[[3,0,3,2],[5,2,6,2],[5,3,6,3],[5,4,6,4],[5,5,6,5],[5,6,6,6],[5,7,6,7],[5,8,6,8],[5,9,6,9],[5,10,6,10],[5,11,6,11],[15,0,15,2],[16,0,16,2]]}
["CLASSROOM","Grade"]
[null,null,"TO SCHOOL"]
[]
["Date (dd/mm/yyyy)",null,null,{"$f":"'Classroom 1 - to school'!D4","v":"00:00:00"}]
[]
["Ontario School Number","Weather","Biked (all or most of the way)","Walked (all or most of the way","Rolled (includes skateboard, wheelchair, scooter, etc.)","School Bus (includes any shared vehicles for students only)","Public Transit (all or most of the way. Includes trains, ferries, buses, etc.","Car","# Students absent today","Other","Total\n (not including absent students)","Total Students in class\n (including absent students. Use this column as a validation check for # students registered in the class)"]
[{"$f":"'Classroom 1 - to school'!A7","v":"<enter 6-digit number from https://www.ontario.ca/data/ontario-public-school-contact-information> "},"(descriptive)"]
["Monday",{"$f":"'Classroom 1 - to school'!B8","v":0},{"$nulls":8},{"$f":"SUM(C8:H8)","v":0},{"$f":"SUM(C8:I8)","v":0}]
["Tuesday",{"$f":"'Classroom 1 - to school'!B9","v":0},{"$nulls":8},{"$f":"SUM(C9:H9)","v":0},{"$f":"SUM(C9:I9)","v":0}]
["Wednesday",{"$f":"'Classroom 1 - to school'!B10","v":0},{"$nulls":8},{"$f":"SUM(C10:H10)","v":0},0]
["Thursday",{"$f":"'Classroom 1 - to school'!B11","v":0},{"$nulls":8},{"$f":"SUM(C11:H11)","v":0},0]
["Friday",{"$f":"'Classroom 1 - to school'!B12","v":0},{"$nulls":8},{"$f":"SUM(C12:H12)","v":0},0]
["Total",null,{"$f":"SUM(C8:C12)","v":0},0,0,0,0,0,0,0,{"$f":"SUM(K8:K12)","v":0}]
["Average",null,{"$f":"AVERAGE(C8:C12)","v":{"$error":"#DIV/0!"}},{"$error":"#DIV/0!"},{"$error":"#DIV/0!"},{"$error":"#DIV/0!"},{"$error":"#DIV/0!"},{"$error":"#DIV/0!"},{"$error":"#DIV/0!"},{"$error":"#DIV/0!"},{"v":0,"d":"0.0"}]
[]
["# students registered in the class"]
["average # students participating",null,null,{"$f":"K14","v":{"v":0,"d":"0.0"}}]

{"sheet":"Classroom 18 - from school","index":36,"n_rows":17,"n_cols":12,"rows_kept":17,"merged":[[3,0,3,2],[5,2,6,2],[5,3,6,3],[5,4,6,4],[5,5,6,5],[5,6,6,6],[5,7,6,7],[5,8,6,8],[5,9,6,9],[5,10,6,10],[5,11,6,11],[15,0,15,2],[16,0,16,2]]}
["CLASSROOM","Grade"]
[{"$f":"'Classroom 18 - to school'!A2","v":0},"='Classroom 18 - to school'!B2","FROM SCHOOL"]
[]
["Date (dd/mm/yyyy)",null,null,{"$f":"'Classroom 1 - to school'!D4","v":"00:00:00"}]
[]
["Ontario School Number","Weather","Biked (all or most of the way)","Walked (all or most of the way","Rolled (includes skateboard, wheelchair, scooter, etc.)","School Bus (includes any shared vehicles for students only)","Public Transit (all or most of the way. Includes trains, ferries, buses, etc.","Car","# Students absent today","Other","Total\n (not including absent students)","Total Students in class\n (including absent students. Use this column as a validation check for # students registered in the class)"]
[{"$f":"'Classroom 1 - to school'!A7","v":"<enter 6-digit number from https://www.ontario.ca/data/ontario-public-school-contact-information> "},"(descriptive)"]
["Monday",{"$f":"'Classroom 1 - to school'!B8","v":0},{"$nulls":8},{"$f":"SUM(C8:H8)","v":0},{"$f":"SUM(C8:I8)","v":0}]
["Tuesday",{"$f":"'Classroom 1 - to school'!B9","v":0},{"$nulls":8},{"$f":"SUM(C9:H9)","v":0},{"$f":"SUM(C9:I9)","v":0}]
["Wednesday",{"$f":"'Classroom 1 - to school'!B10","v":0},{"$nulls":8},{"$f":"SUM(C10:H10)","v":0},0]
["Thursday",{"$f":"'Classroom 1 - to school'!B11","v":0},{"$nulls":8},{"$f":"SUM(C11:H11)","v":0},0]
["Friday",{"$f":"'Classroom 1 - to school'!B12","v":0},{"$nulls":8},{"$f":"SUM(C12:H12)","v":0},0]
["Total",null,{"$f":"SUM(C8:C12)","v":0},0,0,0,0,0,0,0,{"$f":"SUM(K8:K12)","v":0}]
["Average",null,{"$f":"AVERAGE(C8:C12)","v":{"$error":"#DIV/0!"}},{"$error":"#DIV/0!"},{"$error":"#DIV/0!"},{"$error":"#DIV/0!"},{"$error":"#DIV/0!"},{"$error":"#DIV/0!"},{"$error":"#DIV/0!"},{"$error":"#DIV/0!"},{"v":0,"d":"0.0"}]
[]
["# students registered in the class",null,null,{"$f":"'Classroom 18 - to school'!D16","v":0}]
["average # students participating",null,null,{"$f":"K14","v":{"v":0,"d":"0.0"}}]

{"sheet":"Classroom 19 - to school","index":37,"n_rows":17,"n_cols":12,"rows_kept":17,"merged":[[3,0,3,2],[5,2,6,2],[5,3,6,3],[5,4,6,4],[5,5,6,5],[5,6,6,6],[5,7,6,7],[5,8,6,8],[5,9,6,9],[5,10,6,10],[5,11,6,11],[15,0,15,2],[16,0,16,2]]}
["CLASSROOM","Grade"]
[null,null,"TO SCHOOL"]
[]
["Date (dd/mm/yyyy)",null,null,{"$f":"'Classroom 1 - to school'!D4","v":"00:00:00"}]
[]
["Ontario School Number","Weather","Biked (all or most of the way)","Walked (all or most of the way","Rolled (includes skateboard, wheelchair, scooter, etc.)","School Bus (includes any shared vehicles for students only)","Public Transit (all or most of the way. Includes trains, ferries, buses, etc.","Car","# Students absent today","Other","Total\n (not including absent students)","Total Students in class\n (including absent students. Use this column as a validation check for # students registered in the class)"]
[{"$f":"'Classroom 1 - to school'!A7","v":"<enter 6-digit number from https://www.ontario.ca/data/ontario-public-school-contact-information> "},"(descriptive)"]
["Monday",{"$f":"'Classroom 1 - to school'!B8","v":0},{"$nulls":8},{"$f":"SUM(C8:H8)","v":0},{"$f":"SUM(C8:I8)","v":0}]
["Tuesday",{"$f":"'Classroom 1 - to school'!B9","v":0},{"$nulls":8},{"$f":"SUM(C9:H9)","v":0},{"$f":"SUM(C9:I9)","v":0}]
["Wednesday",{"$f":"'Classroom 1 - to school'!B10","v":0},{"$nulls":8},{"$f":"SUM(C10:H10)","v":0},0]
["Thursday",{"$f":"'Classroom 1 - to school'!B11","v":0},{"$nulls":8},{"$f":"SUM(C11:H11)","v":0},0]
["Friday",{"$f":"'Classroom 1 - to school'!B12","v":0},{"$nulls":8},{"$f":"SUM(C12:H12)","v":0},0]
["Total",null,{"$f":"SUM(C8:C12)","v":0},0,0,0,0,0,0,0,{"$f":"SUM(K8:K12)","v":0}]
["Average",null,{"$f":"AVERAGE(C8:C12)","v":{"$error":"#DIV/0!"}},{"$error":"#DIV/0!"},{"$error":"#DIV/0!"},{"$error":"#DIV/0!"},{"$error":"#DIV/0!"},{"$error":"#DIV/0!"},{"$error":"#DIV/0!"},{"$error":"#DIV/0!"},{"v":0,"d":"0.0"}]
[]
["# students registered in the class"]
["average # students participating",null,null,{"$f":"K14","v":{"v":0,"d":"0.0"}}]

{"sheet":"Classroom 19 - from school","index":38,"n_rows":17,"n_cols":12,"rows_kept":17,"merged":[[3,0,3,2],[5,2,6,2],[5,3,6,3],[5,4,6,4],[5,5,6,5],[5,6,6,6],[5,7,6,7],[5,8,6,8],[5,9,6,9],[5,10,6,10],[5,11,6,11],[15,0,15,2],[16,0,16,2]]}
["CLASSROOM","Grade"]
[{"$f":"'Classroom 19 - to school'!A2","v":0},"='Classroom 19 - to school'!B2","FROM SCHOOL"]
[]
["Date (dd/mm/yyyy)",null,null,{"$f":"'Classroom 1 - to school'!D4","v":"00:00:00"}]
[]
["Ontario School Number","Weather","Biked (all or most of the way)","Walked (all or most of the way","Rolled (includes skateboard, wheelchair, scooter, etc.)","School Bus (includes any shared vehicles for students only)","Public Transit (all or most of the way. Includes trains, ferries, buses, etc.","Car","# Students absent today","Other","Total\n (not including absent students)","Total Students in class\n (including absent students. Use this column as a validation check for # students registered in the class)"]
[{"$f":"'Classroom 1 - to school'!A7","v":"<enter 6-digit number from https://www.ontario.ca/data/ontario-public-school-contact-information> "},"(descriptive)"]
["Monday",{"$f":"'Classroom 1 - to school'!B8","v":0},{"$nulls":8},{"$f":"SUM(C8:H8)","v":0},{"$f":"SUM(C8:I8)","v":0}]
["Tuesday",{"$f":"'Classroom 1 - to school'!B9","v":0},{"$nulls":8},{"$f":"SUM(C9:H9)","v":0},{"$f":"SUM(C9:I9)","v":0}]
["Wednesday",{"$f":"'Classroom 1 - to school'!B10","v":0},{"$nulls":8},{"$f":"SUM(C10:H10)","v":0},0]
["Thursday",{"$f":"'Classroom 1 - to school'!B11","v":0},{"$nulls":8},{"$f":"SUM(C11:H11)","v":0},0]
["Friday",{"$f":"'Classroom 1 - to school'!B12","v":0},{"$nulls":8},{"$f":"SUM(C12:H12)","v":0},0]
["Total",null,{"$f":"SUM(C8:C12)","v":0},0,0,0,0,0,0,0,{"$f":"SUM(K8:K12)","v":0}]
["Average",null,{"$f":"AVERAGE(C8:C12)","v":{"$error":"#DIV/0!"}},{"$error":"#DIV/0!"},{"$error":"#DIV/0!"},{"$error":"#DIV/0!"},{"$error":"#DIV/0!"},{"$error":"#DIV/0!"},{"$error":"#DIV/0!"},{"$error":"#DIV/0!"},{"v":0,"d":"0.0"}]
[]
["# students registered in the class",null,null,{"$f":"'Classroom 19 - to school'!D16","v":0}]
["average # students participating",null,null,{"$f":"K14","v":{"v":0,"d":"0.0"}}]

{"sheet":"Classroom 20 - to school","index":39,"n_rows":17,"n_cols":12,"rows_kept":17,"merged":[[3,0,3,2],[5,2,6,2],[5,3,6,3],[5,4,6,4],[5,5,6,5],[5,6,6,6],[5,7,6,7],[5,8,6,8],[5,9,6,9],[5,10,6,10],[5,11,6,11],[15,0,15,2],[16,0,16,2]]}
["CLASSROOM","Grade"]
[null,null,"TO SCHOOL"]
[]
["Date (dd/mm/yyyy)",null,null,{"$f":"'Classroom 1 - to school'!D4","v":"00:00:00"}]
[]
["Ontario School Number","Weather","Biked (all or most of the way)","Walked (all or most of the way","Rolled (includes skateboard, wheelchair, scooter, etc.)","School Bus (includes any shared vehicles for students only)","Public Transit (all or most of the way. Includes trains, ferries, buses, etc.","Car","# Students absent today","Other","Total\n (not including absent students)","Total Students in class\n (including absent students. Use this column as a validation check for # students registered in the class)"]
[{"$f":"'Classroom 1 - to school'!A7","v":"<enter 6-digit number from https://www.ontario.ca/data/ontario-public-school-contact-information> "},"(descriptive)"]
["Monday",{"$f":"'Classroom 1 - to school'!B8","v":0},{"$nulls":8},{"$f":"SUM(C8:H8)","v":0},{"$f":"SUM(C8:I8)","v":0}]
["Tuesday",{"$f":"'Classroom 1 - to school'!B9","v":0},{"$nulls":8},{"$f":"SUM(C9:H9)","v":0},{"$f":"SUM(C9:I9)","v":0}]
["Wednesday",{"$f":"'Classroom 1 - to school'!B10","v":0},{"$nulls":8},{"$f":"SUM(C10:H10)","v":0},0]
["Thursday",{"$f":"'Classroom 1 - to school'!B11","v":0},{"$nulls":8},{"$f":"SUM(C11:H11)","v":0},0]
["Friday",{"$f":"'Classroom 1 - to school'!B12","v":0},{"$nulls":8},{"$f":"SUM(C12:H12)","v":0},0]
["Total",null,{"$f":"SUM(C8:C12)","v":0},0,0,0,0,0,0,0,{"$f":"SUM(K8:K12)","v":0}]
["Average",null,{"$f":"AVERAGE(C8:C12)","v":{"$error":"#DIV/0!"}},{"$error":"#DIV/0!"},{"$error":"#DIV/0!"},{"$error":"#DIV/0!"},{"$error":"#DIV/0!"},{"$error":"#DIV/0!"},{"$error":"#DIV/0!"},{"$error":"#DIV/0!"},{"v":0,"d":"0.0"}]
[]
["# students registered in the class"]
["average # students participating",null,null,{"$f":"K14","v":{"v":0,"d":"0.0"}}]

{"sheet":"Classroom 20 - from school","index":40,"n_rows":17,"n_cols":12,"rows_kept":17,"merged":[[3,0,3,2],[5,2,6,2],[5,3,6,3],[5,4,6,4],[5,5,6,5],[5,6,6,6],[5,7,6,7],[5,8,6,8],[5,9,6,9],[5,10,6,10],[5,11,6,11],[15,0,15,2],[16,0,16,2]]}
["CLASSROOM","Grade"]
[{"$f":"'Classroom 20 - to school'!A2","v":0},"='Classroom 20 - to school'!B2","FROM SCHOOL"]
[]
["Date (dd/mm/yyyy)",null,null,{"$f":"'Classroom 1 - to school'!D4","v":"00:00:00"}]
[]
["Ontario School Number","Weather","Biked (all or most of the way)","Walked (all or most of the way","Rolled (includes skateboard, wheelchair, scooter, etc.)","School Bus (includes any shared vehicles for students only)","Public Transit (all or most of the way. Includes trains, ferries, buses, etc.","Car","# Students absent today","Other","Total\n (not including absent students)","Total Students in class\n (including absent students. Use this column as a validation check for # students registered in the class)"]
[{"$f":"'Classroom 1 - to school'!A7","v":"<enter 6-digit number from https://www.ontario.ca/data/ontario-public-school-contact-information> "},"(descriptive)"]
["Monday",{"$f":"'Classroom 1 - to school'!B8","v":0},{"$nulls":8},{"$f":"SUM(C8:H8)","v":0},{"$f":"SUM(C8:I8)","v":0}]
["Tuesday",{"$f":"'Classroom 1 - to school'!B9","v":0},{"$nulls":8},{"$f":"SUM(C9:H9)","v":0},{"$f":"SUM(C9:I9)","v":0}]
["Wednesday",{"$f":"'Classroom 1 - to school'!B10","v":0},{"$nulls":8},{"$f":"SUM(C10:H10)","v":0},0]
["Thursday",{"$f":"'Classroom 1 - to school'!B11","v":0},{"$nulls":8},{"$f":"SUM(C11:H11)","v":0},0]
["Friday",{"$f":"'Classroom 1 - to school'!B12","v":0},{"$nulls":8},{"$f":"SUM(C12:H12)","v":0},0]
["Total",null,{"$f":"SUM(C8:C12)","v":0},0,0,0,0,0,0,0,{"$f":"SUM(K8:K12)","v":0}]
["Average",null,{"$f":"AVERAGE(C8:C12)","v":{"$error":"#DIV/0!"}},{"$error":"#DIV/0!"},{"$error":"#DIV/0!"},{"$error":"#DIV/0!"},{"$error":"#DIV/0!"},{"$error":"#DIV/0!"},{"$error":"#DIV/0!"},{"$error":"#DIV/0!"},{"v":0,"d":"0.0"}]
[]
["# students registered in the class",null,null,{"$f":"'Classroom 20 - to school'!D16","v":0}]
["average # students participating",null,null,{"$f":"K14","v":{"v":0,"d":"0.0"}}]

{"sheet":"Classroom 21 - to school","index":41,"n_rows":17,"n_cols":12,"rows_kept":17,"merged":[[3,0,3,2],[5,2,6,2],[5,3,6,3],[5,4,6,4],[5,5,6,5],[5,6,6,6],[5,7,6,7],[5,8,6,8],[5,9,6,9],[5,10,6,10],[5,11,6,11],[15,0,15,2],[16,0,16,2]]}
["CLASSROOM","Grade"]
[null,null,"TO SCHOOL"]
[]
["Date (dd/mm/yyyy)",null,null,{"$f":"'Classroom 1 - to school'!D4","v":"00:00:00"}]
[]
["Ontario School Number","Weather","Biked (all or most of the way)","Walked (all or most of the way","Rolled (includes skateboard, wheelchair, scooter, etc.)","School Bus (includes any shared vehicles for students only)","Public Transit (all or most of the way. Includes trains, ferries, buses, etc.","Car","# Students absent today","Other","Total\n (not including absent students)","Total Students in class\n (including absent students. Use this column as a validation check for # students registered in the class)"]
[{"$f":"'Classroom 1 - to school'!A7","v":"<enter 6-digit number from https://www.ontario.ca/data/ontario-public-school-contact-information> "},"(descriptive)"]
["Monday",{"$f":"'Classroom 1 - to school'!B8","v":0},{"$nulls":8},{"$f":"SUM(C8:H8)","v":0},{"$f":"SUM(C8:I8)","v":0}]
["Tuesday",{"$f":"'Classroom 1 - to school'!B9","v":0},{"$nulls":8},{"$f":"SUM(C9:H9)","v":0},{"$f":"SUM(C9:I9)","v":0}]
["Wednesday",{"$f":"'Classroom 1 - to school'!B10","v":0},{"$nulls":8},{"$f":"SUM(C10:H10)","v":0},0]
["Thursday",{"$f":"'Classroom 1 - to school'!B11","v":0},{"$nulls":8},{"$f":"SUM(C11:H11)","v":0},0]
["Friday",{"$f":"'Classroom 1 - to school'!B12","v":0},{"$nulls":8},{"$f":"SUM(C12:H12)","v":0},0]
["Total",null,{"$f":"SUM(C8:C12)","v":0},0,0,0,0,0,0,0,{"$f":"SUM(K8:K12)","v":0}]
["Average",null,{"$f":"AVERAGE(C8:C12)","v":{"$error":"#DIV/0!"}},{"$error":"#DIV/0!"},{"$error":"#DIV/0!"},{"$error":"#DIV/0!"},{"$error":"#DIV/0!"},{"$error":"#DIV/0!"},{"$error":"#DIV/0!"},{"$error":"#DIV/0!"},{"v":0,"d":"0.0"}]
[]
["# students registered in the class"]
["average # students participating",null,null,{"$f":"K14","v":{"v":0,"d":"0.0"}}]

{"sheet":"Classroom 21 - from school","index":42,"n_rows":17,"n_cols":12,"rows_kept":17,"merged":[[3,0,3,2],[5,2,6,2],[5,3,6,3],[5,4,6,4],[5,5,6,5],[5,6,6,6],[5,7,6,7],[5,8,6,8],[5,9,6,9],[5,10,6,10],[5,11,6,11],[15,0,15,2],[16,0,16,2]]}
["CLASSROOM","Grade"]
[{"$f":"'Classroom 21 - to school'!A2","v":0},"='Classroom 21 - to school'!B2","FROM SCHOOL"]
[]
["Date (dd/mm/yyyy)",null,null,{"$f":"'Classroom 1 - to school'!D4","v":"00:00:00"}]
[]
["Ontario School Number","Weather","Biked (all or most of the way)","Walked (all or most of the way","Rolled (includes skateboard, wheelchair, scooter, etc.)","School Bus (includes any shared vehicles for students only)","Public Transit (all or most of the way. Includes trains, ferries, buses, etc.","Car","# Students absent today","Other","Total\n (not including absent students)","Total Students in class\n (including absent students. Use this column as a validation check for # students registered in the class)"]
[{"$f":"'Classroom 1 - to school'!A7","v":"<enter 6-digit number from https://www.ontario.ca/data/ontario-public-school-contact-information> "},"(descriptive)"]
["Monday",{"$f":"'Classroom 1 - to school'!B8","v":0},{"$nulls":8},{"$f":"SUM(C8:H8)","v":0},{"$f":"SUM(C8:I8)","v":0}]
["Tuesday",{"$f":"'Classroom 1 - to school'!B9","v":0},{"$nulls":8},{"$f":"SUM(C9:H9)","v":0},{"$f":"SUM(C9:I9)","v":0}]
["Wednesday",{"$f":"'Classroom 1 - to school'!B10","v":0},{"$nulls":8},{"$f":"SUM(C10:H10)","v":0},0]
["Thursday",{"$f":"'Classroom 1 - to school'!B11","v":0},{"$nulls":8},{"$f":"SUM(C11:H11)","v":0},0]
["Friday",{"$f":"'Classroom 1 - to school'!B12","v":0},{"$nulls":8},{"$f":"SUM(C12:H12)","v":0},0]
["Total",null,{"$f":"SUM(C8:C12)","v":0},0,0,0,0,0,0,0,{"$f":"SUM(K8:K12)","v":0}]
["Average",null,{"$f":"AVERAGE(C8:C12)","v":{"$error":"#DIV/0!"}},{"$error":"#DIV/0!"},{"$error":"#DIV/0!"},{"$error":"#DIV/0!"},{"$error":"#DIV/0!"},{"$error":"#DIV/0!"},{"$error":"#DIV/0!"},{"$error":"#DIV/0!"},{"v":0,"d":"0.0"}]
[]
["# students registered in the class",null,null,{"$f":"'Classroom 21 - to school'!D16","v":0}]
["average # students participating",null,null,{"$f":"K14","v":{"v":0,"d":"0.0"}}]

{"sheet":"Classroom 22 - to school","index":43,"n_rows":17,"n_cols":12,"rows_kept":17,"merged":[[3,0,3,2],[5,2,6,2],[5,3,6,3],[5,4,6,4],[5,5,6,5],[5,6,6,6],[5,7,6,7],[5,8,6,8],[5,9,6,9],[5,10,6,10],[5,11,6,11],[15,0,15,2],[16,0,16,2]]}
["CLASSROOM","Grade"]
[null,null,"TO SCHOOL"]
[]
["Date (dd/mm/yyyy)",null,null,{"$f":"'Classroom 1 - to school'!D4","v":"00:00:00"}]
[]
["Ontario School Number","Weather","Biked (all or most of the way)","Walked (all or most of the way","Rolled (includes skateboard, wheelchair, scooter, etc.)","School Bus (includes any shared vehicles for students only)","Public Transit (all or most of the way. Includes trains, ferries, buses, etc.","Car","# Students absent today","Other","Total\n (not including absent students)","Total Students in class\n (including absent students. Use this column as a validation check for # students registered in the class)"]
[{"$f":"'Classroom 1 - to school'!A7","v":"<enter 6-digit number from https://www.ontario.ca/data/ontario-public-school-contact-information> "},"(descriptive)"]
["Monday",{"$f":"'Classroom 1 - to school'!B8","v":0},{"$nulls":8},{"$f":"SUM(C8:H8)","v":0},{"$f":"SUM(C8:I8)","v":0}]
["Tuesday",{"$f":"'Classroom 1 - to school'!B9","v":0},{"$nulls":8},{"$f":"SUM(C9:H9)","v":0},{"$f":"SUM(C9:I9)","v":0}]
["Wednesday",{"$f":"'Classroom 1 - to school'!B10","v":0},{"$nulls":8},{"$f":"SUM(C10:H10)","v":0},0]
["Thursday",{"$f":"'Classroom 1 - to school'!B11","v":0},{"$nulls":8},{"$f":"SUM(C11:H11)","v":0},0]
["Friday",{"$f":"'Classroom 1 - to school'!B12","v":0},{"$nulls":8},{"$f":"SUM(C12:H12)","v":0},0]
["Total",null,{"$f":"SUM(C8:C12)","v":0},0,0,0,0,0,0,0,{"$f":"SUM(K8:K12)","v":0}]
["Average",null,{"$f":"AVERAGE(C8:C12)","v":{"$error":"#DIV/0!"}},{"$error":"#DIV/0!"},{"$error":"#DIV/0!"},{"$error":"#DIV/0!"},{"$error":"#DIV/0!"},{"$error":"#DIV/0!"},{"$error":"#DIV/0!"},{"$error":"#DIV/0!"},{"v":0,"d":"0.0"}]
[]
["# students registered in the class"]
["average # students participating",null,null,{"$f":"K14","v":{"v":0,"d":"0.0"}}]

{"sheet":"Classroom 22 - from school","index":44,"n_rows":17,"n_cols":12,"rows_kept":17,"merged":[[3,0,3,2],[5,2,6,2],[5,3,6,3],[5,4,6,4],[5,5,6,5],[5,6,6,6],[5,7,6,7],[5,8,6,8],[5,9,6,9],[5,10,6,10],[5,11,6,11],[15,0,15,2],[16,0,16,2]]}
["CLASSROOM","Grade"]
[{"$f":"'Classroom 22 - to school'!A2","v":0},"='Classroom 22 - to school'!B2","FROM SCHOOL"]
[]
["Date (dd/mm/yyyy)",null,null,{"$f":"'Classroom 1 - to school'!D4","v":"00:00:00"}]
[]
["Ontario School Number","Weather","Biked (all or most of the way)","Walked (all or most of the way","Rolled (includes skateboard, wheelchair, scooter, etc.)","School Bus (includes any shared vehicles for students only)","Public Transit (all or most of the way. Includes trains, ferries, buses, etc.","Car","# Students absent today","Other","Total\n (not including absent students)","Total Students in class\n (including absent students. Use this column as a validation check for # students registered in the class)"]
[{"$f":"'Classroom 1 - to school'!A7","v":"<enter 6-digit number from https://www.ontario.ca/data/ontario-public-school-contact-information> "},"(descriptive)"]
["Monday",{"$f":"'Classroom 1 - to school'!B8","v":0},{"$nulls":8},{"$f":"SUM(C8:H8)","v":0},{"$f":"SUM(C8:I8)","v":0}]
["Tuesday",{"$f":"'Classroom 1 - to school'!B9","v":0},{"$nulls":8},{"$f":"SUM(C9:H9)","v":0},{"$f":"SUM(C9:I9)","v":0}]
["Wednesday",{"$f":"'Classroom 1 - to school'!B10","v":0},{"$nulls":8},{"$f":"SUM(C10:H10)","v":0},0]
["Thursday",{"$f":"'Classroom 1 - to school'!B11","v":0},{"$nulls":8},{"$f":"SUM(C11:H11)","v":0},0]
["Friday",{"$f":"'Classroom 1 - to school'!B12","v":0},{"$nulls":8},{"$f":"SUM(C12:H12)","v":0},0]
["Total",null,{"$f":"SUM(C8:C12)","v":0},0,0,0,0,0,0,0,{"$f":"SUM(K8:K12)","v":0}]
["Average",null,{"$f":"AVERAGE(C8:C12)","v":{"$error":"#DIV/0!"}},{"$error":"#DIV/0!"},{"$error":"#DIV/0!"},{"$error":"#DIV/0!"},{"$error":"#DIV/0!"},{"$error":"#DIV/0!"},{"$error":"#DIV/0!"},{"$error":"#DIV/0!"},{"v":0,"d":"0.0"}]
[]
["# students registered in the class",null,null,{"$f":"'Classroom 22 - to school'!D16","v":0}]
["average # students participating",null,null,{"$f":"K14","v":{"v":0,"d":"0.0"}}]

{"sheet":"Classroom 23 - to school","index":45,"n_rows":17,"n_cols":12,"rows_kept":17,"merged":[[3,0,3,2],[5,2,6,2],[5,3,6,3],[5,4,6,4],[5,5,6,5],[5,6,6,6],[5,7,6,7],[5,8,6,8],[5,9,6,9],[5,10,6,10],[5,11,6,11],[15,0,15,2],[16,0,16,2]]}
["CLASSROOM","Grade"]
[null,null,"TO SCHOOL"]
[]
["Date (dd/mm/yyyy)",null,null,{"$f":"'Classroom 1 - to school'!D4","v":"00:00:00"}]
[]
["Ontario School Number","Weather","Biked (all or most of the way)","Walked (all or most of the way","Rolled (includes skateboard, wheelchair, scooter, etc.)","School Bus (includes any shared vehicles for students only)","Public Transit (all or most of the way. Includes trains, ferries, buses, etc.","Car","# Students absent today","Other","Total\n (not including absent students)","Total Students in class\n (including absent students. Use this column as a validation check for # students registered in the class)"]
[{"$f":"'Classroom 1 - to school'!A7","v":"<enter 6-digit number from https://www.ontario.ca/data/ontario-public-school-contact-information> "},"(descriptive)"]
["Monday",{"$f":"'Classroom 1 - to school'!B8","v":0},{"$nulls":8},{"$f":"SUM(C8:H8)","v":0},{"$f":"SUM(C8:I8)","v":0}]
["Tuesday",{"$f":"'Classroom 1 - to school'!B9","v":0},{"$nulls":8},{"$f":"SUM(C9:H9)","v":0},{"$f":"SUM(C9:I9)","v":0}]
["Wednesday",{"$f":"'Classroom 1 - to school'!B10","v":0},{"$nulls":8},{"$f":"SUM(C10:H10)","v":0},0]
["Thursday",{"$f":"'Classroom 1 - to school'!B11","v":0},{"$nulls":8},{"$f":"SUM(C11:H11)","v":0},0]
["Friday",{"$f":"'Classroom 1 - to school'!B12","v":0},{"$nulls":8},{"$f":"SUM(C12:H12)","v":0},0]
["Total",null,{"$f":"SUM(C8:C12)","v":0},0,0,0,0,0,0,0,{"$f":"SUM(K8:K12)","v":0}]
["Average",null,{"$f":"AVERAGE(C8:C12)","v":{"$error":"#DIV/0!"}},{"$error":"#DIV/0!"},{"$error":"#DIV/0!"},{"$error":"#DIV/0!"},{"$error":"#DIV/0!"},{"$error":"#DIV/0!"},{"$error":"#DIV/0!"},{"$error":"#DIV/0!"},{"v":0,"d":"0.0"}]
[]
["# students registered in the class"]
["average # students participating",null,null,{"$f":"K14","v":{"v":0,"d":"0.0"}}]

{"sheet":"Classroom 23 - from school","index":46,"n_rows":17,"n_cols":12,"rows_kept":17,"merged":[[3,0,3,2],[5,2,6,2],[5,3,6,3],[5,4,6,4],[5,5,6,5],[5,6,6,6],[5,7,6,7],[5,8,6,8],[5,9,6,9],[5,10,6,10],[5,11,6,11],[15,0,15,2],[16,0,16,2]]}
["CLASSROOM","Grade"]
[{"$f":"'Classroom 23 - to school'!A2","v":0},"='Classroom 23 - to school'!B2","FROM SCHOOL"]
[]
["Date (dd/mm/yyyy)",null,null,{"$f":"'Classroom 1 - to school'!D4","v":"00:00:00"}]
[]
["Ontario School Number","Weather","Biked (all or most of the way)","Walked (all or most of the way","Rolled (includes skateboard, wheelchair, scooter, etc.)","School Bus (includes any shared vehicles for students only)","Public Transit (all or most of the way. Includes trains, ferries, buses, etc.","Car","# Students absent today","Other","Total\n (not including absent students)","Total Students in class\n (including absent students. Use this column as a validation check for # students registered in the class)"]
[{"$f":"'Classroom 1 - to school'!A7","v":"<enter 6-digit number from https://www.ontario.ca/data/ontario-public-school-contact-information> "},"(descriptive)"]
["Monday",{"$f":"'Classroom 1 - to school'!B8","v":0},{"$nulls":8},{"$f":"SUM(C8:H8)","v":0},{"$f":"SUM(C8:I8)","v":0}]
["Tuesday",{"$f":"'Classroom 1 - to school'!B9","v":0},{"$nulls":8},{"$f":"SUM(C9:H9)","v":0},{"$f":"SUM(C9:I9)","v":0}]
["Wednesday",{"$f":"'Classroom 1 - to school'!B10","v":0},{"$nulls":8},{"$f":"SUM(C10:H10)","v":0},0]
["Thursday",{"$f":"'Classroom 1 - to school'!B11","v":0},{"$nulls":8},{"$f":"SUM(C11:H11)","v":0},0]
["Friday",{"$f":"'Classroom 1 - to school'!B12","v":0},{"$nulls":8},{"$f":"SUM(C12:H12)","v":0},0]
["Total",null,{"$f":"SUM(C8:C12)","v":0},0,0,0,0,0,0,0,{"$f":"SUM(K8:K12)","v":0}]
["Average",null,{"$f":"AVERAGE(C8:C12)","v":{"$error":"#DIV/0!"}},{"$error":"#DIV/0!"},{"$error":"#DIV/0!"},{"$error":"#DIV/0!"},{"$error":"#DIV/0!"},{"$error":"#DIV/0!"},{"$error":"#DIV/0!"},{"$error":"#DIV/0!"},{"v":0,"d":"0.0"}]
[]
["# students registered in the class",null,null,{"$f":"'Classroom 23 - to school'!D16","v":0}]
["average # students participating",null,null,{"$f":"K14","v":{"v":0,"d":"0.0"}}]

{"sheet":"Classroom 24 - to school","index":47,"n_rows":17,"n_cols":12,"rows_kept":17,"merged":[[3,0,3,2],[5,2,6,2],[5,3,6,3],[5,4,6,4],[5,5,6,5],[5,6,6,6],[5,7,6,7],[5,8,6,8],[5,9,6,9],[5,10,6,10],[5,11,6,11],[15,0,15,2],[16,0,16,2]]}
["CLASSROOM","Grade"]
[null,null,"TO SCHOOL"]
[]
["Date (dd/mm/yyyy)",null,null,{"$f":"'Classroom 1 - to school'!D4","v":"00:00:00"}]
[]
["Ontario School Number","Weather","Biked (all or most of the way)","Walked (all or most of the way","Rolled (includes skateboard, wheelchair, scooter, etc.)","School Bus (includes any shared vehicles for students only)","Public Transit (all or most of the way. Includes trains, ferries, buses, etc.","Car","# Students absent today","Other","Total\n (not including absent students)","Total Students in class\n (including absent students. Use this column as a validation check for # students registered in the class)"]
[{"$f":"'Classroom 1 - to school'!A7","v":"<enter 6-digit number from https://www.ontario.ca/data/ontario-public-school-contact-information> "},"(descriptive)"]
["Monday",{"$f":"'Classroom 1 - to school'!B8","v":0},{"$nulls":8},{"$f":"SUM(C8:H8)","v":0},{"$f":"SUM(C8:I8)","v":0}]
["Tuesday",{"$f":"'Classroom 1 - to school'!B9","v":0},{"$nulls":8},{"$f":"SUM(C9:H9)","v":0},{"$f":"SUM(C9:I9)","v":0}]
["Wednesday",{"$f":"'Classroom 1 - to school'!B10","v":0},{"$nulls":8},{"$f":"SUM(C10:H10)","v":0},0]
["Thursday",{"$f":"'Classroom 1 - to school'!B11","v":0},{"$nulls":8},{"$f":"SUM(C11:H11)","v":0},0]
["Friday",{"$f":"'Classroom 1 - to school'!B12","v":0},{"$nulls":8},{"$f":"SUM(C12:H12)","v":0},0]
["Total",null,{"$f":"SUM(C8:C12)","v":0},0,0,0,0,0,0,0,{"$f":"SUM(K8:K12)","v":0}]
["Average",null,{"$f":"AVERAGE(C8:C12)","v":{"$error":"#DIV/0!"}},{"$error":"#DIV/0!"},{"$error":"#DIV/0!"},{"$error":"#DIV/0!"},{"$error":"#DIV/0!"},{"$error":"#DIV/0!"},{"$error":"#DIV/0!"},{"$error":"#DIV/0!"},{"v":0,"d":"0.0"}]
[]
["# students registered in the class"]
["average # students participating",null,null,{"$f":"K14","v":{"v":0,"d":"0.0"}}]

{"sheet":"Classroom 24 - from school","index":48,"n_rows":17,"n_cols":12,"rows_kept":17,"merged":[[3,0,3,2],[5,2,6,2],[5,3,6,3],[5,4,6,4],[5,5,6,5],[5,6,6,6],[5,7,6,7],[5,8,6,8],[5,9,6,9],[5,10,6,10],[5,11,6,11],[15,0,15,2],[16,0,16,2]]}
["CLASSROOM","Grade"]
[{"$f":"'Classroom 24 - to school'!A2","v":0},"='Classroom 24 - to school'!B2","FROM SCHOOL"]
[]
["Date (dd/mm/yyyy)",null,null,{"$f":"'Classroom 1 - to school'!D4","v":"00:00:00"}]
[]
["Ontario School Number","Weather","Biked (all or most of the way)","Walked (all or most of the way","Rolled (includes skateboard, wheelchair, scooter, etc.)","School Bus (includes any shared vehicles for students only)","Public Transit (all or most of the way. Includes trains, ferries, buses, etc.","Car","# Students absent today","Other","Total\n (not including absent students)","Total Students in class\n (including absent students. Use this column as a validation check for # students registered in the class)"]
[{"$f":"'Classroom 1 - to school'!A7","v":"<enter 6-digit number from https://www.ontario.ca/data/ontario-public-school-contact-information> "},"(descriptive)"]
["Monday",{"$f":"'Classroom 1 - to school'!B8","v":0},{"$nulls":8},{"$f":"SUM(C8:H8)","v":0},{"$f":"SUM(C8:I8)","v":0}]
["Tuesday",{"$f":"'Classroom 1 - to school'!B9","v":0},{"$nulls":8},{"$f":"SUM(C9:H9)","v":0},{"$f":"SUM(C9:I9)","v":0}]
["Wednesday",{"$f":"'Classroom 1 - to school'!B10","v":0},{"$nulls":8},{"$f":"SUM(C10:H10)","v":0},0]
["Thursday",{"$f":"'Classroom 1 - to school'!B11","v":0},{"$nulls":8},{"$f":"SUM(C11:H11)","v":0},0]
["Friday",{"$f":"'Classroom 1 - to school'!B12","v":0},{"$nulls":8},{"$f":"SUM(C12:H12)","v":0},0]
["Total",null,{"$f":"SUM(C8:C12)","v":0},0,0,0,0,0,0,0,{"$f":"SUM(K8:K12)","v":0}]
["Average",null,{"$f":"AVERAGE(C8:C12)","v":{"$error":"#DIV/0!"}},{"$error":"#DIV/0!"},{"$error":"#DIV/0!"},{"$error":"#DIV/0!"},{"$error":"#DIV/0!"},{"$error":"#DIV/0!"},{"$error":"#DIV/0!"},{"$error":"#DIV/0!"},{"v":0,"d":"0.0"}]
[]
["# students registered in the class",null,null,{"$f":"'Classroom 24 - to school'!D16","v":0}]
["average # students participating",null,null,{"$f":"K14","v":{"v":0,"d":"0.0"}}]

{"sheet":"Classroom 25 - to school","index":49,"n_rows":17,"n_cols":12,"rows_kept":17,"merged":[[3,0,3,2],[5,2,6,2],[5,3,6,3],[5,4,6,4],[5,5,6,5],[5,6,6,6],[5,7,6,7],[5,8,6,8],[5,9,6,9],[5,10,6,10],[5,11,6,11],[15,0,15,2],[16,0,16,2]]}
["CLASSROOM","Grade"]
[null,null,"TO SCHOOL"]
[]
["Date (dd/mm/yyyy)",null,null,{"$f":"'Classroom 1 - to school'!D4","v":"00:00:00"}]
[]
["Ontario School Number","Weather","Biked (all or most of the way)","Walked (all or most of the way","Rolled (includes skateboard, wheelchair, scooter, etc.)","School Bus (includes any shared vehicles for students only)","Public Transit (all or most of the way. Includes trains, ferries, buses, etc.","Car","# Students absent today","Other","Total\n (not including absent students)","Total Students in class\n (including absent students. Use this column as a validation check for # students registered in the class)"]
[{"$f":"'Classroom 1 - to school'!A7","v":"<enter 6-digit number from https://www.ontario.ca/data/ontario-public-school-contact-information> "},"(descriptive)"]
["Monday",{"$f":"'Classroom 1 - to school'!B8","v":0},{"$nulls":8},{"$f":"SUM(C8:H8)","v":0},{"$f":"SUM(C8:I8)","v":0}]
["Tuesday",{"$f":"'Classroom 1 - to school'!B9","v":0},{"$nulls":8},{"$f":"SUM(C9:H9)","v":0},{"$f":"SUM(C9:I9)","v":0}]
["Wednesday",{"$f":"'Classroom 1 - to school'!B10","v":0},{"$nulls":8},{"$f":"SUM(C10:H10)","v":0},0]
["Thursday",{"$f":"'Classroom 1 - to school'!B11","v":0},{"$nulls":8},{"$f":"SUM(C11:H11)","v":0},0]
["Friday",{"$f":"'Classroom 1 - to school'!B12","v":0},{"$nulls":8},{"$f":"SUM(C12:H12)","v":0},0]
["Total",null,{"$f":"SUM(C8:C12)","v":0},0,0,0,0,0,0,0,{"$f":"SUM(K8:K12)","v":0}]
["Average",null,{"$f":"AVERAGE(C8:C12)","v":{"$error":"#DIV/0!"}},{"$error":"#DIV/0!"},{"$error":"#DIV/0!"},{"$error":"#DIV/0!"},{"$error":"#DIV/0!"},{"$error":"#DIV/0!"},{"$error":"#DIV/0!"},{"$error":"#DIV/0!"},{"v":0,"d":"0.0"}]
[]
["# students registered in the class"]
["average # students participating",null,null,{"$f":"K14","v":{"v":0,"d":"0.0"}}]

{"sheet":"Classroom 25 - from school","index":50,"n_rows":17,"n_cols":12,"rows_kept":17,"merged":[[3,0,3,2],[5,2,6,2],[5,3,6,3],[5,4,6,4],[5,5,6,5],[5,6,6,6],[5,7,6,7],[5,8,6,8],[5,9,6,9],[5,10,6,10],[5,11,6,11],[15,0,15,2],[16,0,16,2]]}
["CLASSROOM","Grade"]
[{"$f":"'Classroom 24 - to school'!A2","v":0},"='Classroom 24 - to school'!B2","FROM SCHOOL"]
[]
["Date (dd/mm/yyyy)",null,null,{"$f":"'Classroom 1 - to school'!D4","v":"00:00:00"}]
[]
["Ontario School Number","Weather","Biked (all or most of the way)","Walked (all or most of the way","Rolled (includes skateboard, wheelchair, scooter, etc.)","School Bus (includes any shared vehicles for students only)","Public Transit (all or most of the way. Includes trains, ferries, buses, etc.","Car","# Students absent today","Other","Total\n (not including absent students)","Total Students in class\n (including absent students. Use this column as a validation check for # students registered in the class)"]
[{"$f":"'Classroom 1 - to school'!A7","v":"<enter 6-digit number from https://www.ontario.ca/data/ontario-public-school-contact-information> "},"(descriptive)"]
["Monday",{"$f":"'Classroom 1 - to school'!B8","v":0},{"$nulls":8},{"$f":"SUM(C8:H8)","v":0},{"$f":"SUM(C8:I8)","v":0}]
["Tuesday",{"$f":"'Classroom 1 - to school'!B9","v":0},{"$nulls":8},{"$f":"SUM(C9:H9)","v":0},{"$f":"SUM(C9:I9)","v":0}]
["Wednesday",{"$f":"'Classroom 1 - to school'!B10","v":0},{"$nulls":8},{"$f":"SUM(C10:H10)","v":0},0]
["Thursday",{"$f":"'Classroom 1 - to school'!B11","v":0},{"$nulls":8},{"$f":"SUM(C11:H11)","v":0},0]
["Friday",{"$f":"'Classroom 1 - to school'!B12","v":0},{"$nulls":8},{"$f":"SUM(C12:H12)","v":0},0]
["Total",null,{"$f":"SUM(C8:C12)","v":0},0,0,0,0,0,0,0,{"$f":"SUM(K8:K12)","v":0}]
["Average",null,{"$f":"AVERAGE(C8:C12)","v":{"$error":"#DIV/0!"}},{"$error":"#DIV/0!"},{"$error":"#DIV/0!"},{"$error":"#DIV/0!"},{"$error":"#DIV/0!"},{"$error":"#DIV/0!"},{"$error":"#DIV/0!"},{"$error":"#DIV/0!"},{"v":0,"d":"0.0"}]
[]
["# students registered in the class",null,null,{"$f":"'Classroom 25 - to school'!D16","v":0}]
["average # students participating",null,null,{"$f":"K14","v":{"v":0,"d":"0.0"}}]

{"sheet":"Classroom 26 - to school","index":51,"n_rows":17,"n_cols":12,"rows_kept":17,"merged":[[3,0,3,2],[5,2,6,2],[5,3,6,3],[5,4,6,4],[5,5,6,5],[5,6,6,6],[5,7,6,7],[5,8,6,8],[5,9,6,9],[5,10,6,10],[5,11,6,11],[15,0,15,2],[16,0,16,2]]}
["CLASSROOM","Grade"]
[null,null,"TO SCHOOL"]
[]
["Date (dd/mm/yyyy)",null,null,{"$f":"'Classroom 1 - to school'!D4","v":"00:00:00"}]
[]
["Ontario School Number","Weather","Biked (all or most of the way)","Walked (all or most of the way","Rolled (includes skateboard, wheelchair, scooter, etc.)","School Bus (includes any shared vehicles for students only)","Public Transit (all or most of the way. Includes trains, ferries, buses, etc.","Car","# Students absent today","Other","Total\n (not including absent students)","Total Students in class\n (including absent students. Use this column as a validation check for # students registered in the class)"]
[{"$f":"'Classroom 1 - to school'!A7","v":"<enter 6-digit number from https://www.ontario.ca/data/ontario-public-school-contact-information> "},"(descriptive)"]
["Monday",{"$f":"'Classroom 1 - to school'!B8","v":0},{"$nulls":8},{"$f":"SUM(C8:H8)","v":0},{"$f":"SUM(C8:I8)","v":0}]
["Tuesday",{"$f":"'Classroom 1 - to school'!B9","v":0},{"$nulls":8},{"$f":"SUM(C9:H9)","v":0},{"$f":"SUM(C9:I9)","v":0}]
["Wednesday",{"$f":"'Classroom 1 - to school'!B10","v":0},{"$nulls":8},{"$f":"SUM(C10:H10)","v":0},0]
["Thursday",{"$f":"'Classroom 1 - to school'!B11","v":0},{"$nulls":8},{"$f":"SUM(C11:H11)","v":0},0]
["Friday",{"$f":"'Classroom 1 - to school'!B12","v":0},{"$nulls":8},{"$f":"SUM(C12:H12)","v":0},0]
["Total",null,{"$f":"SUM(C8:C12)","v":0},0,0,0,0,0,0,0,{"$f":"SUM(K8:K12)","v":0}]
["Average",null,{"$f":"AVERAGE(C8:C12)","v":{"$error":"#DIV/0!"}},{"$error":"#DIV/0!"},{"$error":"#DIV/0!"},{"$error":"#DIV/0!"},{"$error":"#DIV/0!"},{"$error":"#DIV/0!"},{"$error":"#DIV/0!"},{"$error":"#DIV/0!"},{"v":0,"d":"0.0"}]
[]
["# students registered in the class"]
["average # students participating",null,null,{"$f":"K14","v":{"v":0,"d":"0.0"}}]

{"sheet":"Classroom 26 - from school","index":52,"n_rows":17,"n_cols":12,"rows_kept":17,"merged":[[3,0,3,2],[5,2,6,2],[5,3,6,3],[5,4,6,4],[5,5,6,5],[5,6,6,6],[5,7,6,7],[5,8,6,8],[5,9,6,9],[5,10,6,10],[5,11,6,11],[15,0,15,2],[16,0,16,2]]}
["CLASSROOM","Grade"]
[{"$f":"'Classroom 26 - to school'!A2","v":0},"='Classroom 26 - to school'!B2","FROM SCHOOL"]
[]
["Date (dd/mm/yyyy)",null,null,{"$f":"'Classroom 1 - to school'!D4","v":"00:00:00"}]
[]
["Ontario School Number","Weather","Biked (all or most of the way)","Walked (all or most of the way","Rolled (includes skateboard, wheelchair, scooter, etc.)","School Bus (includes any shared vehicles for students only)","Public Transit (all or most of the way. Includes trains, ferries, buses, etc.","Car","# Students absent today","Other","Total\n (not including absent students)","Total Students in class\n (including absent students. Use this column as a validation check for # students registered in the class)"]
[{"$f":"'Classroom 1 - to school'!A7","v":"<enter 6-digit number from https://www.ontario.ca/data/ontario-public-school-contact-information> "},"(descriptive)"]
["Monday",{"$f":"'Classroom 1 - to school'!B8","v":0},{"$nulls":8},{"$f":"SUM(C8:H8)","v":0},{"$f":"SUM(C8:I8)","v":0}]
["Tuesday",{"$f":"'Classroom 1 - to school'!B9","v":0},{"$nulls":8},{"$f":"SUM(C9:H9)","v":0},{"$f":"SUM(C9:I9)","v":0}]
["Wednesday",{"$f":"'Classroom 1 - to school'!B10","v":0},{"$nulls":8},{"$f":"SUM(C10:H10)","v":0},0]
["Thursday",{"$f":"'Classroom 1 - to school'!B11","v":0},{"$nulls":8},{"$f":"SUM(C11:H11)","v":0},0]
["Friday",{"$f":"'Classroom 1 - to school'!B12","v":0},{"$nulls":8},{"$f":"SUM(C12:H12)","v":0},0]
["Total",null,{"$f":"SUM(C8:C12)","v":0},0,0,0,0,0,0,0,{"$f":"SUM(K8:K12)","v":0}]
["Average",null,{"$f":"AVERAGE(C8:C12)","v":{"$error":"#DIV/0!"}},{"$error":"#DIV/0!"},{"$error":"#DIV/0!"},{"$error":"#DIV/0!"},{"$error":"#DIV/0!"},{"$error":"#DIV/0!"},{"$error":"#DIV/0!"},{"$error":"#DIV/0!"},{"v":0,"d":"0.0"}]
[]
["# students registered in the class",null,null,{"$f":"'Classroom 26 - to school'!D16","v":0}]
["average # students participating",null,null,{"$f":"K14","v":{"v":0,"d":"0.0"}}]

{"sheet":"Classroom 27 - to school","index":53,"n_rows":17,"n_cols":12,"rows_kept":17,"merged":[[3,0,3,2],[5,2,6,2],[5,3,6,3],[5,4,6,4],[5,5,6,5],[5,6,6,6],[5,7,6,7],[5,8,6,8],[5,9,6,9],[5,10,6,10],[5,11,6,11],[15,0,15,2],[16,0,16,2]]}
["CLASSROOM","Grade"]
[null,null,"TO SCHOOL"]
[]
["Date (dd/mm/yyyy)",null,null,{"$f":"'Classroom 1 - to school'!D4","v":"00:00:00"}]
[]
["Ontario School Number","Weather","Biked (all or most of the way)","Walked (all or most of the way","Rolled (includes skateboard, wheelchair, scooter, etc.)","School Bus (includes any shared vehicles for students only)","Public Transit (all or most of the way. Includes trains, ferries, buses, etc.","Car","# Students absent today","Other","Total\n (not including absent students)","Total Students in class\n (including absent students. Use this column as a validation check for # students registered in the class)"]
[{"$f":"'Classroom 1 - to school'!A7","v":"<enter 6-digit number from https://www.ontario.ca/data/ontario-public-school-contact-information> "},"(descriptive)"]
["Monday",{"$f":"'Classroom 1 - to school'!B8","v":0},{"$nulls":8},{"$f":"SUM(C8:H8)","v":0},{"$f":"SUM(C8:I8)","v":0}]
["Tuesday",{"$f":"'Classroom 1 - to school'!B9","v":0},{"$nulls":8},{"$f":"SUM(C9:H9)","v":0},{"$f":"SUM(C9:I9)","v":0}]
["Wednesday",{"$f":"'Classroom 1 - to school'!B10","v":0},{"$nulls":8},{"$f":"SUM(C10:H10)","v":0},0]
["Thursday",{"$f":"'Classroom 1 - to school'!B11","v":0},{"$nulls":8},{"$f":"SUM(C11:H11)","v":0},0]
["Friday",{"$f":"'Classroom 1 - to school'!B12","v":0},{"$nulls":8},{"$f":"SUM(C12:H12)","v":0},0]
["Total",null,{"$f":"SUM(C8:C12)","v":0},0,0,0,0,0,0,0,{"$f":"SUM(K8:K12)","v":0}]
["Average",null,{"$f":"AVERAGE(C8:C12)","v":{"$error":"#DIV/0!"}},{"$error":"#DIV/0!"},{"$error":"#DIV/0!"},{"$error":"#DIV/0!"},{"$error":"#DIV/0!"},{"$error":"#DIV/0!"},{"$error":"#DIV/0!"},{"$error":"#DIV/0!"},{"v":0,"d":"0.0"}]
[]
["# students registered in the class"]
["average # students participating",null,null,{"$f":"K14","v":{"v":0,"d":"0.0"}}]

{"sheet":"Classroom 27 - from school","index":54,"n_rows":17,"n_cols":12,"rows_kept":17,"merged":[[3,0,3,2],[5,2,6,2],[5,3,6,3],[5,4,6,4],[5,5,6,5],[5,6,6,6],[5,7,6,7],[5,8,6,8],[5,9,6,9],[5,10,6,10],[5,11,6,11],[15,0,15,2],[16,0,16,2]]}
["CLASSROOM","Grade"]
[{"$f":"'Classroom 27 - to school'!A2","v":0},"='Classroom 27 - to school'!B2","FROM SCHOOL"]
[]
["Date (dd/mm/yyyy)",null,null,{"$f":"'Classroom 1 - to school'!D4","v":"00:00:00"}]
[]
["Ontario School Number","Weather","Biked (all or most of the way)","Walked (all or most of the way","Rolled (includes skateboard, wheelchair, scooter, etc.)","School Bus (includes any shared vehicles for students only)","Public Transit (all or most of the way. Includes trains, ferries, buses, etc.","Car","# Students absent today","Other","Total\n (not including absent students)","Total Students in class\n (including absent students. Use this column as a validation check for # students registered in the class)"]
[{"$f":"'Classroom 1 - to school'!A7","v":"<enter 6-digit number from https://www.ontario.ca/data/ontario-public-school-contact-information> "},"(descriptive)"]
["Monday",{"$f":"'Classroom 1 - to school'!B8","v":0},{"$nulls":8},{"$f":"SUM(C8:H8)","v":0},{"$f":"SUM(C8:I8)","v":0}]
["Tuesday",{"$f":"'Classroom 1 - to school'!B9","v":0},{"$nulls":8},{"$f":"SUM(C9:H9)","v":0},{"$f":"SUM(C9:I9)","v":0}]
["Wednesday",{"$f":"'Classroom 1 - to school'!B10","v":0},{"$nulls":8},{"$f":"SUM(C10:H10)","v":0},0]
["Thursday",{"$f":"'Classroom 1 - to school'!B11","v":0},{"$nulls":8},{"$f":"SUM(C11:H11)","v":0},0]
["Friday",{"$f":"'Classroom 1 - to school'!B12","v":0},{"$nulls":8},{"$f":"SUM(C12:H12)","v":0},0]
["Total",null,{"$f":"SUM(C8:C12)","v":0},0,0,0,0,0,0,0,{"$f":"SUM(K8:K12)","v":0}]
["Average",null,{"$f":"AVERAGE(C8:C12)","v":{"$error":"#DIV/0!"}},{"$error":"#DIV/0!"},{"$error":"#DIV/0!"},{"$error":"#DIV/0!"},{"$error":"#DIV/0!"},{"$error":"#DIV/0!"},{"$error":"#DIV/0!"},{"$error":"#DIV/0!"},{"v":0,"d":"0.0"}]
[]
["# students registered in the class",null,null,{"$f":"'Classroom 27 - to school'!D16","v":0}]
["average # students participating",null,null,{"$f":"K14","v":{"v":0,"d":"0.0"}}]

{"sheet":"Classroom 28 - to school","index":55,"n_rows":17,"n_cols":12,"rows_kept":17,"merged":[[3,0,3,2],[5,2,6,2],[5,3,6,3],[5,4,6,4],[5,5,6,5],[5,6,6,6],[5,7,6,7],[5,8,6,8],[5,9,6,9],[5,10,6,10],[5,11,6,11],[15,0,15,2],[16,0,16,2]]}
["CLASSROOM","Grade"]
[null,null,"TO SCHOOL"]
[]
["Date (dd/mm/yyyy)",null,null,{"$f":"'Classroom 1 - to school'!D4","v":"00:00:00"}]
[]
["Ontario School Number","Weather","Biked (all or most of the way)","Walked (all or most of the way","Rolled (includes skateboard, wheelchair, scooter, etc.)","School Bus (includes any shared vehicles for students only)","Public Transit (all or most of the way. Includes trains, ferries, buses, etc.","Car","# Students absent today","Other","Total\n (not including absent students)","Total Students in class\n (including absent students. Use this column as a validation check for # students registered in the class)"]
[{"$f":"'Classroom 1 - to school'!A7","v":"<enter 6-digit number from https://www.ontario.ca/data/ontario-public-school-contact-information> "},"(descriptive)"]
["Monday",{"$f":"'Classroom 1 - to school'!B8","v":0},{"$nulls":8},{"$f":"SUM(C8:H8)","v":0},{"$f":"SUM(C8:I8)","v":0}]
["Tuesday",{"$f":"'Classroom 1 - to school'!B9","v":0},{"$nulls":8},{"$f":"SUM(C9:H9)","v":0},{"$f":"SUM(C9:I9)","v":0}]
["Wednesday",{"$f":"'Classroom 1 - to school'!B10","v":0},{"$nulls":8},{"$f":"SUM(C10:H10)","v":0},0]
["Thursday",{"$f":"'Classroom 1 - to school'!B11","v":0},{"$nulls":8},{"$f":"SUM(C11:H11)","v":0},0]
["Friday",{"$f":"'Classroom 1 - to school'!B12","v":0},{"$nulls":8},{"$f":"SUM(C12:H12)","v":0},0]
["Total",null,{"$f":"SUM(C8:C12)","v":0},0,0,0,0,0,0,0,{"$f":"SUM(K8:K12)","v":0}]
["Average",null,{"$f":"AVERAGE(C8:C12)","v":{"$error":"#DIV/0!"}},{"$error":"#DIV/0!"},{"$error":"#DIV/0!"},{"$error":"#DIV/0!"},{"$error":"#DIV/0!"},{"$error":"#DIV/0!"},{"$error":"#DIV/0!"},{"$error":"#DIV/0!"},{"v":0,"d":"0.0"}]
[]
["# students registered in the class"]
["average # students participating",null,null,{"$f":"K14","v":{"v":0,"d":"0.0"}}]

{"sheet":"Classroom 28 - from school","index":56,"n_rows":17,"n_cols":12,"rows_kept":17,"merged":[[3,0,3,2],[5,2,6,2],[5,3,6,3],[5,4,6,4],[5,5,6,5],[5,6,6,6],[5,7,6,7],[5,8,6,8],[5,9,6,9],[5,10,6,10],[5,11,6,11],[15,0,15,2],[16,0,16,2]]}
["CLASSROOM","Grade"]
[{"$f":"'Classroom 28 - to school'!A2","v":0},"='Classroom 28 - to school'!B2","FROM SCHOOL"]
[]
["Date (dd/mm/yyyy)",null,null,{"$f":"'Classroom 1 - to school'!D4","v":"00:00:00"}]
[]
["Ontario School Number","Weather","Biked (all or most of the way)","Walked (all or most of the way","Rolled (includes skateboard, wheelchair, scooter, etc.)","School Bus (includes any shared vehicles for students only)","Public Transit (all or most of the way. Includes trains, ferries, buses, etc.","Car","# Students absent today","Other","Total\n (not including absent students)","Total Students in class\n (including absent students. Use this column as a validation check for # students registered in the class)"]
[{"$f":"'Classroom 1 - to school'!A7","v":"<enter 6-digit number from https://www.ontario.ca/data/ontario-public-school-contact-information> "},"(descriptive)"]
["Monday",{"$f":"'Classroom 1 - to school'!B8","v":0},{"$nulls":8},{"$f":"SUM(C8:H8)","v":0},{"$f":"SUM(C8:I8)","v":0}]
["Tuesday",{"$f":"'Classroom 1 - to school'!B9","v":0},{"$nulls":8},{"$f":"SUM(C9:H9)","v":0},{"$f":"SUM(C9:I9)","v":0}]
["Wednesday",{"$f":"'Classroom 1 - to school'!B10","v":0},{"$nulls":8},{"$f":"SUM(C10:H10)","v":0},0]
["Thursday",{"$f":"'Classroom 1 - to school'!B11","v":0},{"$nulls":8},{"$f":"SUM(C11:H11)","v":0},0]
["Friday",{"$f":"'Classroom 1 - to school'!B12","v":0},{"$nulls":8},{"$f":"SUM(C12:H12)","v":0},0]
["Total",null,{"$f":"SUM(C8:C12)","v":0},0,0,0,0,0,0,0,{"$f":"SUM(K8:K12)","v":0}]
["Average",null,{"$f":"AVERAGE(C8:C12)","v":{"$error":"#DIV/0!"}},{"$error":"#DIV/0!"},{"$error":"#DIV/0!"},{"$error":"#DIV/0!"},{"$error":"#DIV/0!"},{"$error":"#DIV/0!"},{"$error":"#DIV/0!"},{"$error":"#DIV/0!"},{"v":0,"d":"0.0"}]
[]
["# students registered in the class",null,null,{"$f":"'Classroom 28 - to school'!D16","v":0}]
["average # students participating",null,null,{"$f":"K14","v":{"v":0,"d":"0.0"}}]

{"sheet":"Classroom 29 - to school","index":57,"n_rows":17,"n_cols":12,"rows_kept":17,"merged":[[3,0,3,2],[5,2,6,2],[5,3,6,3],[5,4,6,4],[5,5,6,5],[5,6,6,6],[5,7,6,7],[5,8,6,8],[5,9,6,9],[5,10,6,10],[5,11,6,11],[15,0,15,2],[16,0,16,2]]}
["CLASSROOM","Grade"]
[null,null,"TO SCHOOL"]
[]
["Date (dd/mm/yyyy)",null,null,{"$f":"'Classroom 1 - to school'!D4","v":"00:00:00"}]
[]
["Ontario School Number","Weather","Biked (all or most of the way)","Walked (all or most of the way","Rolled (includes skateboard, wheelchair, scooter, etc.)","School Bus (includes any shared vehicles for students only)","Public Transit (all or most of the way. Includes trains, ferries, buses, etc.","Car","# Students absent today","Other","Total\n (not including absent students)","Total Students in class\n (including absent students. Use this column as a validation check for # students registered in the class)"]
[{"$f":"'Classroom 1 - to school'!A7","v":"<enter 6-digit number from https://www.ontario.ca/data/ontario-public-school-contact-information> "},"(descriptive)"]
["Monday",{"$f":"'Classroom 1 - to school'!B8","v":0},{"$nulls":8},{"$f":"SUM(C8:H8)","v":0},{"$f":"SUM(C8:I8)","v":0}]
["Tuesday",{"$f":"'Classroom 1 - to school'!B9","v":0},{"$nulls":8},{"$f":"SUM(C9:H9)","v":0},{"$f":"SUM(C9:I9)","v":0}]
["Wednesday",{"$f":"'Classroom 1 - to school'!B10","v":0},{"$nulls":8},{"$f":"SUM(C10:H10)","v":0},0]
["Thursday",{"$f":"'Classroom 1 - to school'!B11","v":0},{"$nulls":8},{"$f":"SUM(C11:H11)","v":0},0]
["Friday",{"$f":"'Classroom 1 - to school'!B12","v":0},{"$nulls":8},{"$f":"SUM(C12:H12)","v":0},0]
["Total",null,{"$f":"SUM(C8:C12)","v":0},0,0,0,0,0,0,0,{"$f":"SUM(K8:K12)","v":0}]
["Average",null,{"$f":"AVERAGE(C8:C12)","v":{"$error":"#DIV/0!"}},{"$error":"#DIV/0!"},{"$error":"#DIV/0!"},{"$error":"#DIV/0!"},{"$error":"#DIV/0!"},{"$error":"#DIV/0!"},{"$error":"#DIV/0!"},{"$error":"#DIV/0!"},{"v":0,"d":"0.0"}]
[]
["# students registered in the class"]
["average # students participating",null,null,{"$f":"K14","v":{"v":0,"d":"0.0"}}]

{"sheet":"Classroom 29 - from school","index":58,"n_rows":17,"n_cols":12,"rows_kept":17,"merged":[[3,0,3,2],[5,2,6,2],[5,3,6,3],[5,4,6,4],[5,5,6,5],[5,6,6,6],[5,7,6,7],[5,8,6,8],[5,9,6,9],[5,10,6,10],[5,11,6,11],[15,0,15,2],[16,0,16,2]]}
["CLASSROOM","Grade"]
[{"$f":"'Classroom 29 - to school'!A2","v":0},"='Classroom 29 - to school'!B2","FROM SCHOOL"]
[]
["Date (dd/mm/yyyy)",null,null,{"$f":"'Classroom 1 - to school'!D4","v":"00:00:00"}]
[]
["Ontario School Number","Weather","Biked (all or most of the way)","Walked (all or most of the way","Rolled (includes skateboard, wheelchair, scooter, etc.)","School Bus (includes any shared vehicles for students only)","Public Transit (all or most of the way. Includes trains, ferries, buses, etc.","Car","# Students absent today","Other","Total\n (not including absent students)","Total Students in class\n (including absent students. Use this column as a validation check for # students registered in the class)"]
[{"$f":"'Classroom 1 - to school'!A7","v":"<enter 6-digit number from https://www.ontario.ca/data/ontario-public-school-contact-information> "},"(descriptive)"]
["Monday",{"$f":"'Classroom 1 - to school'!B8","v":0},{"$nulls":8},{"$f":"SUM(C8:H8)","v":0},{"$f":"SUM(C8:I8)","v":0}]
["Tuesday",{"$f":"'Classroom 1 - to school'!B9","v":0},{"$nulls":8},{"$f":"SUM(C9:H9)","v":0},{"$f":"SUM(C9:I9)","v":0}]
["Wednesday",{"$f":"'Classroom 1 - to school'!B10","v":0},{"$nulls":8},{"$f":"SUM(C10:H10)","v":0},0]
["Thursday",{"$f":"'Classroom 1 - to school'!B11","v":0},{"$nulls":8},{"$f":"SUM(C11:H11)","v":0},0]
["Friday",{"$f":"'Classroom 1 - to school'!B12","v":0},{"$nulls":8},{"$f":"SUM(C12:H12)","v":0},0]
["Total",null,{"$f":"SUM(C8:C12)","v":0},0,0,0,0,0,0,0,{"$f":"SUM(K8:K12)","v":0}]
["Average",null,{"$f":"AVERAGE(C8:C12)","v":{"$error":"#DIV/0!"}},{"$error":"#DIV/0!"},{"$error":"#DIV/0!"},{"$error":"#DIV/0!"},{"$error":"#DIV/0!"},{"$error":"#DIV/0!"},{"$error":"#DIV/0!"},{"$error":"#DIV/0!"},{"v":0,"d":"0.0"}]
[]
["# students registered in the class",null,null,{"$f":"'Classroom 29 - to school'!D16","v":0}]
["average # students participating",null,null,{"$f":"K14","v":{"v":0,"d":"0.0"}}]

{"sheet":"Classroom 30 - to school","index":59,"n_rows":17,"n_cols":12,"rows_kept":17,"merged":[[3,0,3,2],[5,2,6,2],[5,3,6,3],[5,4,6,4],[5,5,6,5],[5,6,6,6],[5,7,6,7],[5,8,6,8],[5,9,6,9],[5,10,6,10],[5,11,6,11],[15,0,15,2],[16,0,16,2]]}
["CLASSROOM","Grade"]
[null,null,"TO SCHOOL"]
[]
["Date (dd/mm/yyyy)",null,null,{"$f":"'Classroom 1 - to school'!D4","v":"00:00:00"}]
[]
["Ontario School Number","Weather","Biked (all or most of the way)","Walked (all or most of the way","Rolled (includes skateboard, wheelchair, scooter, etc.)","School Bus (includes any shared vehicles for students only)","Public Transit (all or most of the way. Includes trains, ferries, buses, etc.","Car","# Students absent today","Other","Total\n (not including absent students)","Total Students in class\n (including absent students. Use this column as a validation check for # students registered in the class)"]
[{"$f":"'Classroom 1 - to school'!A7","v":"<enter 6-digit number from https://www.ontario.ca/data/ontario-public-school-contact-information> "},"(descriptive)"]
["Monday",{"$f":"'Classroom 1 - to school'!B8","v":0},{"$nulls":8},{"$f":"SUM(C8:H8)","v":0},{"$f":"SUM(C8:I8)","v":0}]
["Tuesday",{"$f":"'Classroom 1 - to school'!B9","v":0},{"$nulls":8},{"$f":"SUM(C9:H9)","v":0},{"$f":"SUM(C9:I9)","v":0}]
["Wednesday",{"$f":"'Classroom 1 - to school'!B10","v":0},{"$nulls":8},{"$f":"SUM(C10:H10)","v":0},0]
["Thursday",{"$f":"'Classroom 1 - to school'!B11","v":0},{"$nulls":8},{"$f":"SUM(C11:H11)","v":0},0]
["Friday",{"$f":"'Classroom 1 - to school'!B12","v":0},{"$nulls":8},{"$f":"SUM(C12:H12)","v":0},0]
["Total",null,{"$f":"SUM(C8:C12)","v":0},0,0,0,0,0,0,0,{"$f":"SUM(K8:K12)","v":0}]
["Average",null,{"$f":"AVERAGE(C8:C12)","v":{"$error":"#DIV/0!"}},{"$error":"#DIV/0!"},{"$error":"#DIV/0!"},{"$error":"#DIV/0!"},{"$error":"#DIV/0!"},{"$error":"#DIV/0!"},{"$error":"#DIV/0!"},{"$error":"#DIV/0!"},{"v":0,"d":"0.0"}]
[]
["# students registered in the class"]
["average # students participating",null,null,{"$f":"K14","v":{"v":0,"d":"0.0"}}]

{"sheet":"Classroom 30 - from school","index":60,"n_rows":17,"n_cols":12,"rows_kept":17,"merged":[[3,0,3,2],[5,2,6,2],[5,3,6,3],[5,4,6,4],[5,5,6,5],[5,6,6,6],[5,7,6,7],[5,8,6,8],[5,9,6,9],[5,10,6,10],[5,11,6,11],[15,0,15,2],[16,0,16,2]]}
["CLASSROOM","Grade"]
[{"$f":"'Classroom 30 - to school'!A2","v":0},"='Classroom 30 - to school'!B2","FROM SCHOOL"]
[]
["Date (dd/mm/yyyy)",null,null,{"$f":"'Classroom 1 - to school'!D4","v":"00:00:00"}]
[]
["Ontario School Number","Weather","Biked (all or most of the way)","Walked (all or most of the way","Rolled (includes skateboard, wheelchair, scooter, etc.)","School Bus (includes any shared vehicles for students only)","Public Transit (all or most of the way. Includes trains, ferries, buses, etc.","Car","# Students absent today","Other","Total\n (not including absent students)","Total Students in class\n (including absent students. Use this column as a validation check for # students registered in the class)"]
[{"$f":"'Classroom 1 - to school'!A7","v":"<enter 6-digit number from https://www.ontario.ca/data/ontario-public-school-contact-information> "},"(descriptive)"]
["Monday",{"$f":"'Classroom 1 - to school'!B8","v":0},{"$nulls":8},{"$f":"SUM(C8:H8)","v":0},{"$f":"SUM(C8:I8)","v":0}]
["Tuesday",{"$f":"'Classroom 1 - to school'!B9","v":0},{"$nulls":8},{"$f":"SUM(C9:H9)","v":0},{"$f":"SUM(C9:I9)","v":0}]
["Wednesday",{"$f":"'Classroom 1 - to school'!B10","v":0},{"$nulls":8},{"$f":"SUM(C10:H10)","v":0},0]
["Thursday",{"$f":"'Classroom 1 - to school'!B11","v":0},{"$nulls":8},{"$f":"SUM(C11:H11)","v":0},0]
["Friday",{"$f":"'Classroom 1 - to school'!B12","v":0},{"$nulls":8},{"$f":"SUM(C12:H12)","v":0},0]
["Total",null,{"$f":"SUM(C8:C12)","v":0},0,0,0,0,0,0,0,{"$f":"SUM(K8:K12)","v":0}]
["Average",null,{"$f":"AVERAGE(C8:C12)","v":{"$error":"#DIV/0!"}},{"$error":"#DIV/0!"},{"$error":"#DIV/0!"},{"$error":"#DIV/0!"},{"$error":"#DIV/0!"},{"$error":"#DIV/0!"},{"$error":"#DIV/0!"},{"$error":"#DIV/0!"},{"v":0,"d":"0.0"}]
[]
["# students registered in the class",null,null,{"$f":"'Classroom 30 - to school'!D16","v":0}]
["average # students participating",null,null,{"$f":"K14","v":{"v":0,"d":"0.0"}}]

{"sheet":"Classroom 31 - to school","index":61,"n_rows":17,"n_cols":12,"rows_kept":17,"merged":[[3,0,3,2],[5,2,6,2],[5,3,6,3],[5,4,6,4],[5,5,6,5],[5,6,6,6],[5,7,6,7],[5,8,6,8],[5,9,6,9],[5,10,6,10],[5,11,6,11],[15,0,15,2],[16,0,16,2]]}
["CLASSROOM","Grade"]
[null,null,"TO SCHOOL"]
[]
["Date (dd/mm/yyyy)",null,null,{"$f":"'Classroom 1 - to school'!D4","v":"00:00:00"}]
[]
["Ontario School Number","Weather","Biked (all or most of the way)","Walked (all or most of the way","Rolled (includes skateboard, wheelchair, scooter, etc.)","School Bus (includes any shared vehicles for students only)","Public Transit (all or most of the way. Includes trains, ferries, buses, etc.","Car","# Students absent today","Other","Total\n (not including absent students)","Total Students in class\n (including absent students. Use this column as a validation check for # students registered in the class)"]
[{"$f":"'Classroom 1 - to school'!A7","v":"<enter 6-digit number from https://www.ontario.ca/data/ontario-public-school-contact-information> "},"(descriptive)"]
["Monday",{"$f":"'Classroom 1 - to school'!B8","v":0},{"$nulls":8},{"$f":"SUM(C8:H8)","v":0},{"$f":"SUM(C8:I8)","v":0}]
["Tuesday",{"$f":"'Classroom 1 - to school'!B9","v":0},{"$nulls":8},{"$f":"SUM(C9:H9)","v":0},{"$f":"SUM(C9:I9)","v":0}]
["Wednesday",{"$f":"'Classroom 1 - to school'!B10","v":0},{"$nulls":8},{"$f":"SUM(C10:H10)","v":0},0]
["Thursday",{"$f":"'Classroom 1 - to school'!B11","v":0},{"$nulls":8},{"$f":"SUM(C11:H11)","v":0},0]
["Friday",{"$f":"'Classroom 1 - to school'!B12","v":0},{"$nulls":8},{"$f":"SUM(C12:H12)","v":0},0]
["Total",null,{"$f":"SUM(C8:C12)","v":0},0,0,0,0,0,0,0,{"$f":"SUM(K8:K12)","v":0}]
["Average",null,{"$f":"AVERAGE(C8:C12)","v":{"$error":"#DIV/0!"}},{"$error":"#DIV/0!"},{"$error":"#DIV/0!"},{"$error":"#DIV/0!"},{"$error":"#DIV/0!"},{"$error":"#DIV/0!"},{"$error":"#DIV/0!"},{"$error":"#DIV/0!"},{"v":0,"d":"0.0"}]
[]
["# students registered in the class"]
["average # students participating",null,null,{"$f":"K14","v":{"v":0,"d":"0.0"}}]

{"sheet":"Classroom 31 - from school","index":62,"n_rows":17,"n_cols":12,"rows_kept":17,"merged":[[3,0,3,2],[5,2,6,2],[5,3,6,3],[5,4,6,4],[5,5,6,5],[5,6,6,6],[5,7,6,7],[5,8,6,8],[5,9,6,9],[5,10,6,10],[5,11,6,11],[15,0,15,2],[16,0,16,2]]}
["CLASSROOM","Grade"]
[{"$f":"'Classroom 31 - to school'!A2","v":0},"='Classroom 31 - to school'!B2","FROM SCHOOL"]
[]
["Date (dd/mm/yyyy)",null,null,{"$f":"'Classroom 1 - to school'!D4","v":"00:00:00"}]
[]
["Ontario School Number","Weather","Biked (all or most of the way)","Walked (all or most of the way","Rolled (includes skateboard, wheelchair, scooter, etc.)","School Bus (includes any shared vehicles for students only)","Public Transit (all or most of the way. Includes trains, ferries, buses, etc.","Car","# Students absent today","Other","Total\n (not including absent students)","Total Students in class\n (including absent students. Use this column as a validation check for # students registered in the class)"]
[{"$f":"'Classroom 1 - to school'!A7","v":"<enter 6-digit number from https://www.ontario.ca/data/ontario-public-school-contact-information> "},"(descriptive)"]
["Monday",{"$f":"'Classroom 1 - to school'!B8","v":0},{"$nulls":8},{"$f":"SUM(C8:H8)","v":0},{"$f":"SUM(C8:I8)","v":0}]
["Tuesday",{"$f":"'Classroom 1 - to school'!B9","v":0},{"$nulls":8},{"$f":"SUM(C9:H9)","v":0},{"$f":"SUM(C9:I9)","v":0}]
["Wednesday",{"$f":"'Classroom 1 - to school'!B10","v":0},{"$nulls":8},{"$f":"SUM(C10:H10)","v":0},0]
["Thursday",{"$f":"'Classroom 1 - to school'!B11","v":0},{"$nulls":8},{"$f":"SUM(C11:H11)","v":0},0]
["Friday",{"$f":"'Classroom 1 - to school'!B12","v":0},{"$nulls":8},{"$f":"SUM(C12:H12)","v":0},0]
["Total",null,{"$f":"SUM(C8:C12)","v":0},0,0,0,0,0,0,0,{"$f":"SUM(K8:K12)","v":0}]
["Average",null,{"$f":"AVERAGE(C8:C12)","v":{"$error":"#DIV/0!"}},{"$error":"#DIV/0!"},{"$error":"#DIV/0!"},{"$error":"#DIV/0!"},{"$error":"#DIV/0!"},{"$error":"#DIV/0!"},{"$error":"#DIV/0!"},{"$error":"#DIV/0!"},{"v":0,"d":"0.0"}]
[]
["# students registered in the class",null,null,{"$f":"'Classroom 31 - to school'!D16","v":0}]
["average # students participating",null,null,{"$f":"K14","v":{"v":0,"d":"0.0"}}]

{"sheet":"Classroom 32 - to school","index":63,"n_rows":17,"n_cols":12,"rows_kept":17,"merged":[[3,0,3,2],[5,2,6,2],[5,3,6,3],[5,4,6,4],[5,5,6,5],[5,6,6,6],[5,7,6,7],[5,8,6,8],[5,9,6,9],[5,10,6,10],[5,11,6,11],[15,0,15,2],[16,0,16,2]]}
["CLASSROOM","Grade"]
[null,null,"TO SCHOOL"]
[]
["Date (dd/mm/yyyy)",null,null,{"$f":"'Classroom 1 - to school'!D4","v":"00:00:00"}]
[]
["Ontario School Number","Weather","Biked (all or most of the way)","Walked (all or most of the way","Rolled (includes skateboard, wheelchair, scooter, etc.)","School Bus (includes any shared vehicles for students only)","Public Transit (all or most of the way. Includes trains, ferries, buses, etc.","Car","# Students absent today","Other","Total\n (not including absent students)","Total Students in class\n (including absent students. Use this column as a validation check for # students registered in the class)"]
[{"$f":"'Classroom 1 - to school'!A7","v":"<enter 6-digit number from https://www.ontario.ca/data/ontario-public-school-contact-information> "},"(descriptive)"]
["Monday",{"$f":"'Classroom 1 - to school'!B8","v":0},{"$nulls":8},{"$f":"SUM(C8:H8)","v":0},{"$f":"SUM(C8:I8)","v":0}]
["Tuesday",{"$f":"'Classroom 1 - to school'!B9","v":0},{"$nulls":8},{"$f":"SUM(C9:H9)","v":0},{"$f":"SUM(C9:I9)","v":0}]
["Wednesday",{"$f":"'Classroom 1 - to school'!B10","v":0},{"$nulls":8},{"$f":"SUM(C10:H10)","v":0},0]
["Thursday",{"$f":"'Classroom 1 - to school'!B11","v":0},{"$nulls":8},{"$f":"SUM(C11:H11)","v":0},0]
["Friday",{"$f":"'Classroom 1 - to school'!B12","v":0},{"$nulls":8},{"$f":"SUM(C12:H12)","v":0},0]
["Total",null,{"$f":"SUM(C8:C12)","v":0},0,0,0,0,0,0,0,{"$f":"SUM(K8:K12)","v":0}]
["Average",null,{"$f":"AVERAGE(C8:C12)","v":{"$error":"#DIV/0!"}},{"$error":"#DIV/0!"},{"$error":"#DIV/0!"},{"$error":"#DIV/0!"},{"$error":"#DIV/0!"},{"$error":"#DIV/0!"},{"$error":"#DIV/0!"},{"$error":"#DIV/0!"},{"v":0,"d":"0.0"}]
[]
["# students registered in the class"]
["average # students participating",null,null,{"$f":"K14","v":{"v":0,"d":"0.0"}}]

{"sheet":"Classroom 32 - from school","index":64,"n_rows":17,"n_cols":12,"rows_kept":17,"merged":[[3,0,3,2],[5,2,6,2],[5,3,6,3],[5,4,6,4],[5,5,6,5],[5,6,6,6],[5,7,6,7],[5,8,6,8],[5,9,6,9],[5,10,6,10],[5,11,6,11],[15,0,15,2],[16,0,16,2]]}
["CLASSROOM","Grade"]
[{"$f":"'Classroom 32 - to school'!A2","v":0},"='Classroom 32 - to school'!B2","FROM SCHOOL"]
[]
["Date (dd/mm/yyyy)",null,null,{"$f":"'Classroom 1 - to school'!D4","v":"00:00:00"}]
[]
["Ontario School Number","Weather","Biked (all or most of the way)","Walked (all or most of the way","Rolled (includes skateboard, wheelchair, scooter, etc.)","School Bus (includes any shared vehicles for students only)","Public Transit (all or most of the way. Includes trains, ferries, buses, etc.","Car","# Students absent today","Other","Total\n (not including absent students)","Total Students in class\n (including absent students. Use this column as a validation check for # students registered in the class)"]
[{"$f":"'Classroom 1 - to school'!A7","v":"<enter 6-digit number from https://www.ontario.ca/data/ontario-public-school-contact-information> "},"(descriptive)"]
["Monday",{"$f":"'Classroom 1 - to school'!B8","v":0},{"$nulls":8},{"$f":"SUM(C8:H8)","v":0},{"$f":"SUM(C8:I8)","v":0}]
["Tuesday",{"$f":"'Classroom 1 - to school'!B9","v":0},{"$nulls":8},{"$f":"SUM(C9:H9)","v":0},{"$f":"SUM(C9:I9)","v":0}]
["Wednesday",{"$f":"'Classroom 1 - to school'!B10","v":0},{"$nulls":8},{"$f":"SUM(C10:H10)","v":0},0]
["Thursday",{"$f":"'Classroom 1 - to school'!B11","v":0},{"$nulls":8},{"$f":"SUM(C11:H11)","v":0},0]
["Friday",{"$f":"'Classroom 1 - to school'!B12","v":0},{"$nulls":8},{"$f":"SUM(C12:H12)","v":0},0]
["Total",null,{"$f":"SUM(C8:C12)","v":0},0,0,0,0,0,0,0,{"$f":"SUM(K8:K12)","v":0}]
["Average",null,{"$f":"AVERAGE(C8:C12)","v":{"$error":"#DIV/0!"}},{"$error":"#DIV/0!"},{"$error":"#DIV/0!"},{"$error":"#DIV/0!"},{"$error":"#DIV/0!"},{"$error":"#DIV/0!"},{"$error":"#DIV/0!"},{"$error":"#DIV/0!"},{"v":0,"d":"0.0"}]
[]
["# students registered in the class",null,null,{"$f":"'Classroom 32 - to school'!D16","v":0}]
["average # students participating",null,null,{"$f":"K14","v":{"v":0,"d":"0.0"}}]

{"sheet":"Classroom 33 - to school","index":65,"n_rows":17,"n_cols":12,"rows_kept":17,"merged":[[3,0,3,2],[5,2,6,2],[5,3,6,3],[5,4,6,4],[5,5,6,5],[5,6,6,6],[5,7,6,7],[5,8,6,8],[5,9,6,9],[5,10,6,10],[5,11,6,11],[15,0,15,2],[16,0,16,2]]}
["CLASSROOM","Grade"]
[null,null,"TO SCHOOL"]
[]
["Date (dd/mm/yyyy)",null,null,{"$f":"'Classroom 1 - to school'!D4","v":"00:00:00"}]
[]
["Ontario School Number","Weather","Biked (all or most of the way)","Walked (all or most of the way","Rolled (includes skateboard, wheelchair, scooter, etc.)","School Bus (includes any shared vehicles for students only)","Public Transit (all or most of the way. Includes trains, ferries, buses, etc.","Car","# Students absent today","Other","Total\n (not including absent students)","Total Students in class\n (including absent students. Use this column as a validation check for # students registered in the class)"]
[{"$f":"'Classroom 1 - to school'!A7","v":"<enter 6-digit number from https://www.ontario.ca/data/ontario-public-school-contact-information> "},"(descriptive)"]
["Monday",{"$f":"'Classroom 1 - to school'!B8","v":0},{"$nulls":8},{"$f":"SUM(C8:H8)","v":0},{"$f":"SUM(C8:I8)","v":0}]
["Tuesday",{"$f":"'Classroom 1 - to school'!B9","v":0},{"$nulls":8},{"$f":"SUM(C9:H9)","v":0},{"$f":"SUM(C9:I9)","v":0}]
["Wednesday",{"$f":"'Classroom 1 - to school'!B10","v":0},{"$nulls":8},{"$f":"SUM(C10:H10)","v":0},0]
["Thursday",{"$f":"'Classroom 1 - to school'!B11","v":0},{"$nulls":8},{"$f":"SUM(C11:H11)","v":0},0]
["Friday",{"$f":"'Classroom 1 - to school'!B12","v":0},{"$nulls":8},{"$f":"SUM(C12:H12)","v":0},0]
["Total",null,{"$f":"SUM(C8:C12)","v":0},0,0,0,0,0,0,0,{"$f":"SUM(K8:K12)","v":0}]
["Average",null,{"$f":"AVERAGE(C8:C12)","v":{"$error":"#DIV/0!"}},{"$error":"#DIV/0!"},{"$error":"#DIV/0!"},{"$error":"#DIV/0!"},{"$error":"#DIV/0!"},{"$error":"#DIV/0!"},{"$error":"#DIV/0!"},{"$error":"#DIV/0!"},{"v":0,"d":"0.0"}]
[]
["# students registered in the class"]
["average # students participating",null,null,{"$f":"K14","v":{"v":0,"d":"0.0"}}]

{"sheet":"Classroom 33 - from school","index":66,"n_rows":17,"n_cols":12,"rows_kept":17,"merged":[[3,0,3,2],[5,2,6,2],[5,3,6,3],[5,4,6,4],[5,5,6,5],[5,6,6,6],[5,7,6,7],[5,8,6,8],[5,9,6,9],[5,10,6,10],[5,11,6,11],[15,0,15,2],[16,0,16,2]]}
["CLASSROOM","Grade"]
[{"$f":"'Classroom 33 - to school'!A2","v":0},"='Classroom 33 - to school'!B2","FROM SCHOOL"]
[]
["Date (dd/mm/yyyy)",null,null,{"$f":"'Classroom 1 - to school'!D4","v":"00:00:00"}]
[]
["Ontario School Number","Weather","Biked (all or most of the way)","Walked (all or most of the way","Rolled (includes skateboard, wheelchair, scooter, etc.)","School Bus (includes any shared vehicles for students only)","Public Transit (all or most of the way. Includes trains, ferries, buses, etc.","Car","# Students absent today","Other","Total\n (not including absent students)","Total Students in class\n (including absent students. Use this column as a validation check for # students registered in the class)"]
[{"$f":"'Classroom 1 - to school'!A7","v":"<enter 6-digit number from https://www.ontario.ca/data/ontario-public-school-contact-information> "},"(descriptive)"]
["Monday",{"$f":"'Classroom 1 - to school'!B8","v":0},{"$nulls":8},{"$f":"SUM(C8:H8)","v":0},{"$f":"SUM(C8:I8)","v":0}]
["Tuesday",{"$f":"'Classroom 1 - to school'!B9","v":0},{"$nulls":8},{"$f":"SUM(C9:H9)","v":0},{"$f":"SUM(C9:I9)","v":0}]
["Wednesday",{"$f":"'Classroom 1 - to school'!B10","v":0},{"$nulls":8},{"$f":"SUM(C10:H10)","v":0},0]
["Thursday",{"$f":"'Classroom 1 - to school'!B11","v":0},{"$nulls":8},{"$f":"SUM(C11:H11)","v":0},0]
["Friday",{"$f":"'Classroom 1 - to school'!B12","v":0},{"$nulls":8},{"$f":"SUM(C12:H12)","v":0},0]
["Total",null,{"$f":"SUM(C8:C12)","v":0},0,0,0,0,0,0,0,{"$f":"SUM(K8:K12)","v":0}]
["Average",null,{"$f":"AVERAGE(C8:C12)","v":{"$error":"#DIV/0!"}},{"$error":"#DIV/0!"},{"$error":"#DIV/0!"},{"$error":"#DIV/0!"},{"$error":"#DIV/0!"},{"$error":"#DIV/0!"},{"$error":"#DIV/0!"},{"$error":"#DIV/0!"},{"v":0,"d":"0.0"}]
[]
["# students registered in the class",null,null,{"$f":"'Classroom 33 - to school'!D16","v":0}]
["average # students participating",null,null,{"$f":"K14","v":{"v":0,"d":"0.0"}}]

{"sheet":"Classroom 34 - to school","index":67,"n_rows":17,"n_cols":12,"rows_kept":17,"merged":[[3,0,3,2],[5,2,6,2],[5,3,6,3],[5,4,6,4],[5,5,6,5],[5,6,6,6],[5,7,6,7],[5,8,6,8],[5,9,6,9],[5,10,6,10],[5,11,6,11],[15,0,15,2],[16,0,16,2]]}
["CLASSROOM","Grade"]
[null,null,"TO SCHOOL"]
[]
["Date (dd/mm/yyyy)",null,null,{"$f":"'Classroom 1 - to school'!D4","v":"00:00:00"}]
[]
["Ontario School Number","Weather","Biked (all or most of the way)","Walked (all or most of the way","Rolled (includes skateboard, wheelchair, scooter, etc.)","School Bus (includes any shared vehicles for students only)","Public Transit (all or most of the way. Includes trains, ferries, buses, etc.","Car","# Students absent today","Other","Total\n (not including absent students)","Total Students in class\n (including absent students. Use this column as a validation check for # students registered in the class)"]
[{"$f":"'Classroom 1 - to school'!A7","v":"<enter 6-digit number from https://www.ontario.ca/data/ontario-public-school-contact-information> "},"(descriptive)"]
["Monday",{"$nulls":9},{"$f":"SUM(C8:H8)","v":0},{"$f":"SUM(C8:I8)","v":0}]
["Tuesday",{"$nulls":9},{"$f":"SUM(C9:H9)","v":0},{"$f":"SUM(C9:I9)","v":0}]
["Wednesday",{"$nulls":9},{"$f":"SUM(C10:H10)","v":0},0]
["Thursday",{"$nulls":9},{"$f":"SUM(C11:H11)","v":0},0]
["Friday",{"$nulls":9},{"$f":"SUM(C12:H12)","v":0},0]
["Total",null,{"$f":"SUM(C8:C12)","v":0},0,0,0,0,0,0,0,{"$f":"SUM(K8:K12)","v":0}]
["Average",null,{"$f":"AVERAGE(C8:C12)","v":{"$error":"#DIV/0!"}},{"$error":"#DIV/0!"},{"$error":"#DIV/0!"},{"$error":"#DIV/0!"},{"$error":"#DIV/0!"},{"$error":"#DIV/0!"},{"$error":"#DIV/0!"},{"$error":"#DIV/0!"},{"v":0,"d":"0.0"}]
[]
["# students registered in the class"]
["average # students participating",null,null,{"$f":"K14","v":{"v":0,"d":"0.0"}}]

{"sheet":"Classroom 34 - from school","index":68,"n_rows":17,"n_cols":12,"rows_kept":17,"merged":[[3,0,3,2],[5,2,6,2],[5,3,6,3],[5,4,6,4],[5,5,6,5],[5,6,6,6],[5,7,6,7],[5,8,6,8],[5,9,6,9],[5,10,6,10],[5,11,6,11],[15,0,15,2],[16,0,16,2]]}
["CLASSROOM","Grade"]
[{"$f":"'Classroom 34 - to school'!A2","v":0},"='Classroom 34 - to school'!B2","FROM SCHOOL"]
[]
["Date (dd/mm/yyyy)",null,null,{"$f":"'Classroom 1 - to school'!D4","v":"00:00:00"}]
[]
["Ontario School Number","Weather","Biked (all or most of the way)","Walked (all or most of the way","Rolled (includes skateboard, wheelchair, scooter, etc.)","School Bus (includes any shared vehicles for students only)","Public Transit (all or most of the way. Includes trains, ferries, buses, etc.","Car","# Students absent today","Other","Total\n (not including absent students)","Total Students in class\n (including absent students. Use this column as a validation check for # students registered in the class)"]
[{"$f":"'Classroom 1 - to school'!A7","v":"<enter 6-digit number from https://www.ontario.ca/data/ontario-public-school-contact-information> "},"(descriptive)"]
["Monday",{"$f":"'Classroom 1 - to school'!B8","v":0},{"$nulls":8},{"$f":"SUM(C8:H8)","v":0},{"$f":"SUM(C8:I8)","v":0}]
["Tuesday",{"$f":"'Classroom 1 - to school'!B9","v":0},{"$nulls":8},{"$f":"SUM(C9:H9)","v":0},{"$f":"SUM(C9:I9)","v":0}]
["Wednesday",{"$f":"'Classroom 1 - to school'!B10","v":0},{"$nulls":8},{"$f":"SUM(C10:H10)","v":0},0]
["Thursday",{"$f":"'Classroom 1 - to school'!B11","v":0},{"$nulls":8},{"$f":"SUM(C11:H11)","v":0},0]
["Friday",{"$f":"'Classroom 1 - to school'!B12","v":0},{"$nulls":8},{"$f":"SUM(C12:H12)","v":0},0]
["Total",null,{"$f":"SUM(C8:C12)","v":0},0,0,0,0,0,0,0,{"$f":"SUM(K8:K12)","v":0}]
["Average",null,{"$f":"AVERAGE(C8:C12)","v":{"$error":"#DIV/0!"}},{"$error":"#DIV/0!"},{"$error":"#DIV/0!"},{"$error":"#DIV/0!"},{"$error":"#DIV/0!"},{"$error":"#DIV/0!"},{"$error":"#DIV/0!"},{"$error":"#DIV/0!"},{"v":0,"d":"0.0"}]
[]
["# students registered in the class",null,null,{"$f":"'Classroom 34 - to school'!D16","v":0}]
["average # students participating",null,null,{"$f":"K14","v":{"v":0,"d":"0.0"}}]

{"sheet":"Classroom 35 - to school","index":69,"n_rows":17,"n_cols":12,"rows_kept":17,"merged":[[3,0,3,2],[5,2,6,2],[5,3,6,3],[5,4,6,4],[5,5,6,5],[5,6,6,6],[5,7,6,7],[5,8,6,8],[5,9,6,9],[5,10,6,10],[5,11,6,11],[15,0,15,2],[16,0,16,2]]}
["CLASSROOM","Grade"]
[null,null,"TO SCHOOL"]
[]
["Date (dd/mm/yyyy)",null,null,{"$f":"'Classroom 1 - to school'!D4","v":"00:00:00"}]
[]
["Ontario School Number","Weather","Biked (all or most of the way)","Walked (all or most of the way","Rolled (includes skateboard, wheelchair, scooter, etc.)","School Bus (includes any shared vehicles for students only)","Public Transit (all or most of the way. Includes trains, ferries, buses, etc.","Car","# Students absent today","Other","Total\n (not including absent students)","Total Students in class\n (including absent students. Use this column as a validation check for # students registered in the class)"]
[{"$f":"'Classroom 1 - to school'!A7","v":"<enter 6-digit number from https://www.ontario.ca/data/ontario-public-school-contact-information> "},"(descriptive)"]
["Monday",{"$f":"'Classroom 1 - to school'!B8","v":0},{"$nulls":8},{"$f":"SUM(C8:H8)","v":0},{"$f":"SUM(C8:I8)","v":0}]
["Tuesday",{"$f":"'Classroom 1 - to school'!B9","v":0},{"$nulls":8},{"$f":"SUM(C9:H9)","v":0},{"$f":"SUM(C9:I9)","v":0}]
["Wednesday",{"$f":"'Classroom 1 - to school'!B10","v":0},{"$nulls":8},{"$f":"SUM(C10:H10)","v":0},0]
["Thursday",{"$f":"'Classroom 1 - to school'!B11","v":0},{"$nulls":8},{"$f":"SUM(C11:H11)","v":0},0]
["Friday",{"$f":"'Classroom 1 - to school'!B12","v":0},{"$nulls":8},{"$f":"SUM(C12:H12)","v":0},0]
["Total",null,{"$f":"SUM(C8:C12)","v":0},0,0,0,0,0,0,0,{"$f":"SUM(K8:K12)","v":0}]
["Average",null,{"$f":"AVERAGE(C8:C12)","v":{"$error":"#DIV/0!"}},{"$error":"#DIV/0!"},{"$error":"#DIV/0!"},{"$error":"#DIV/0!"},{"$error":"#DIV/0!"},{"$error":"#DIV/0!"},{"$error":"#DIV/0!"},{"$error":"#DIV/0!"},{"v":0,"d":"0.0"}]
[]
["# students registered in the class"]
["average # students participating",null,null,{"$f":"K14","v":{"v":0,"d":"0.0"}}]

{"sheet":"Classroom 35 - from school","index":70,"n_rows":17,"n_cols":12,"rows_kept":17,"merged":[[3,0,3,2],[5,2,6,2],[5,3,6,3],[5,4,6,4],[5,5,6,5],[5,6,6,6],[5,7,6,7],[5,8,6,8],[5,9,6,9],[5,10,6,10],[5,11,6,11],[15,0,15,2],[16,0,16,2]]}
["CLASSROOM","Grade"]
[{"$f":"'Classroom 35 - to school'!A2","v":0},"='Classroom 35 - to school'!B2","FROM SCHOOL"]
[]
["Date (dd/mm/yyyy)",null,null,{"$f":"'Classroom 1 - to school'!D4","v":"00:00:00"}]
[]
["Ontario School Number","Weather","Biked (all or most of the way)","Walked (all or most of the way","Rolled (includes skateboard, wheelchair, scooter, etc.)","School Bus (includes any shared vehicles for students only)","Public Transit (all or most of the way. Includes trains, ferries, buses, etc.","Car","# Students absent today","Other","Total\n (not including absent students)","Total Students in class\n (including absent students. Use this column as a validation check for # students registered in the class)"]
[{"$f":"'Classroom 1 - to school'!A7","v":"<enter 6-digit number from https://www.ontario.ca/data/ontario-public-school-contact-information> "},"(descriptive)"]
["Monday",{"$f":"'Classroom 1 - to school'!B8","v":0},{"$nulls":8},{"$f":"SUM(C8:H8)","v":0},{"$f":"SUM(C8:I8)","v":0}]
["Tuesday",{"$f":"'Classroom 1 - to school'!B9","v":0},{"$nulls":8},{"$f":"SUM(C9:H9)","v":0},{"$f":"SUM(C9:I9)","v":0}]
["Wednesday",{"$f":"'Classroom 1 - to school'!B10","v":0},{"$nulls":8},{"$f":"SUM(C10:H10)","v":0},0]
["Thursday",{"$f":"'Classroom 1 - to school'!B11","v":0},{"$nulls":8},{"$f":"SUM(C11:H11)","v":0},0]
["Friday",{"$f":"'Classroom 1 - to school'!B12","v":0},{"$nulls":8},{"$f":"SUM(C12:H12)","v":0},0]
["Total",null,{"$f":"SUM(C8:C12)","v":0},0,0,0,0,0,0,0,{"$f":"SUM(K8:K12)","v":0}]
["Average",null,{"$f":"AVERAGE(C8:C12)","v":{"$error":"#DIV/0!"}},{"$error":"#DIV/0!"},{"$error":"#DIV/0!"},{"$error":"#DIV/0!"},{"$error":"#DIV/0!"},{"$error":"#DIV/0!"},{"$error":"#DIV/0!"},{"$error":"#DIV/0!"},{"v":0,"d":"0.0"}]
[]
["# students registered in the class",null,null,{"$f":"'Classroom 35 - to school'!D16","v":0}]
["average # students participating",null,null,{"$f":"K14","v":{"v":0,"d":"0.0"}}]

{"sheet":"SUMMARY - TO SCHOOL","index":71,"n_rows":47,"n_cols":11,"rows_kept":47,"merged":[[22,2,23,2],[22,3,23,3],[22,4,23,4],[22,5,23,5],[22,6,23,6],[22,7,23,7],[22,8,23,8],[22,9,23,9],[22,10,23,10],[32,0,32,2],[38,2,39,2],[38,3,39,3],[38,4,39,4],[38,5,39,5],[38,6,39,6],[38,7,39,7],[38,8,39,8],[38,9,39,9],[38,10,39,10]]}
[]
["SUMMARY - TO SCHOOL (Frequency)"]
[]
[]
[null,"Biked","Walked","Rolled","School Bus","Pub Trans","Car","#Absent","Other"]
[null,"Count1","Count1","Count1","Count1","Count1","Count1","Count1","Count1"]
["Monday",{"$f":"SUM('Classroom 1 - to school'!C8,'Classroom 2 - to school'!C8,'Classroom 3 - to school'!C8,'Classroom 4 - to school'!C8,'Classroom 5 - to school'!C8,'Classroom 6 - to school'!C8,'Classroom 7 - to school'!C8,'Classroom 8 - to school'!C8,'Classroom 9 - to school'!C8,'Classroom 10 - to school'!C8,'Classroom 11 - to school'!C8,'Classroom 12 - to school'!C8,'Classroom 13 - to school'!C8,'Classroom 14 - to school'!C8,'Classroom 15 - to school'!C8,'Classroom 16 - to school'!C8,'Classroom 17 - to school'!C8,'Classroom 18 - to school'!C8,'Classroom 19 - to school'!C8,'Classroom 20 - to school'!C8)","v":0},{"$f":"SUM('Classroom 1 - to school'!D8,'Classroom 2 - to school'!D8,'Classroom 3 - to school'!D8,'Classroom 4 - to school'!D8,'Classroom 5 - to school'!D8,'Classroom 6 - to school'!D8,'Classroom 7 - to school'!D8,'Classroom 8 - to school'!D8,'Classroom 9 - to school'!D8,'Classroom 10 - to school'!D8,'Classroom 11 - to school'!D8,'Classroom 12 - to school'!D8,'Classroom 13 - to school'!D8,'Classroom 14 - to school'!D8,'Classroom 15 - to school'!D8,'Classroom 16 - to school'!D8,'Classroom 17 - to school'!D8,'Classroom 18 - to school'!D8,'Classroom 19 - to school'!D8,'Classroom 20 - to school'!D8)","v":0},{"$f":"SUM('Classroom 1 - to school'!E8,'Classroom 2 - to school'!E8,'Classroom 3 - to school'!E8,'Classroom 4 - to school'!E8,'Classroom 5 - to school'!E8,'Classroom 6 - to school'!E8,'Classroom 7 - to school'!E8,'Classroom 8 - to school'!E8,'Classroom 9 - to school'!E8,'Classroom 10 - to school'!E8,'Classroom 11 - to school'!E8,'Classroom 12 - to school'!E8,'Classroom 13 - to school'!E8,'Classroom 14 - to school'!E8,'Classroom 15 - to school'!E8,'Classroom 16 - to school'!E8,'Classroom 17 - to school'!E8,'Classroom 18 - to school'!E8,'Classroom 19 - to school'!E8,'Classroom 20 - to school'!E8)","v":0},{"$f":"SUM('Classroom 1 - to school'!F8,'Classroom 2 - to school'!F8,'Classroom 3 - to school'!F8,'Classroom 4 - to school'!F8,'Classroom 5 - to school'!F8,'Classroom 6 - to school'!F8,'Classroom 7 - to school'!F8,'Classroom 8 - to school'!F8,'Classroom 9 - to school'!F8,'Classroom 10 - to school'!F8,'Classroom 11 - to school'!F8,'Classroom 12 - to school'!F8,'Classroom 13 - to school'!F8,'Classroom 14 - to school'!F8,'Classroom 15 - to school'!F8,'Classroom 16 - to school'!F8,'Classroom 17 - to school'!F8,'Classroom 18 - to school'!F8,'Classroom 19 - to school'!F8,'Classroom 20 - to school'!F8)","v":0},{"$f":"SUM('Classroom 1 - to school'!G8,'Classroom 2 - to school'!G8,'Classroom 3 - to school'!G8,'Classroom 4 - to school'!G8,'Classroom 5 - to school'!G8,'Classroom 6 - to school'!G8,'Classroom 7 - to school'!G8,'Classroom 8 - to school'!G8,'Classroom 9 - to school'!G8,'Classroom 10 - to school'!G8,'Classroom 11 - to school'!G8,'Classroom 12 - to school'!G8,'Classroom 13 - to school'!G8,'Classroom 14 - to school'!G8,'Classroom 15 - to school'!G8,'Classroom 16 - to school'!G8,'Classroom 17 - to school'!G8,'Classroom 18 - to school'!G8,'Classroom 19 - to school'!G8,'Classroom 20 - to school'!G8)","v":0},{"$f":"SUM('Classroom 1 - to school'!H8,'Classroom 2 - to school'!H8,'Classroom 3 - to school'!H8,'Classroom 4 - to school'!H8,'Classroom 5 - to school'!H8,'Classroom 6 - to school'!H8,'Classroom 7 - to school'!H8,'Classroom 8 - to school'!H8,'Classroom 9 - to school'!H8,'Classroom 10 - to school'!H8,'Classroom 11 - to school'!H8,'Classroom 12 - to school'!H8,'Classroom 13 - to school'!H8,'Classroom 14 - to school'!H8,'Classroom 15 - to school'!H8,'Classroom 16 - to school'!H8,'Classroom 17 - to school'!H8,'Classroom 18 - to school'!H8,'Classroom 19 - to school'!H8,'Classroom 20 - to school'!H8)","v":0},{"$f":"SUM('Classroom 1 - to school'!I8,'Classroom 2 - to school'!I8,'Classroom 3 - to school'!I8,'Classroom 4 - to school'!I8,'Classroom 5 - to school'!I8,'Classroom 6 - to school'!I8,'Classroom 7 - to school'!I8,'Classroom 8 - to school'!I8,'Classroom 9 - to school'!I8,'Classroom 10 - to school'!I8,'Classroom 11 - to school'!I8,'Classroom 12 - to school'!I8,'Classroom 13 - to school'!I8,'Classroom 14 - to school'!I8,'Classroom 15 - to school'!I8,'Classroom 16 - to school'!I8,'Classroom 17 - to school'!I8,'Classroom 18 - to school'!I8,'Classroom 19 - to school'!I8,'Classroom 20 - to school'!I8)","v":0},{"$f":"SUM('Classroom 1 - to school'!J8,'Classroom 2 - to school'!J8,'Classroom 3 - to school'!J8,'Classroom 4 - to school'!J8,'Classroom 5 - to school'!J8,'Classroom 6 - to school'!J8,'Classroom 7 - to school'!J8,'Classroom 8 - to school'!J8,'Classroom 9 - to school'!J8,'Classroom 10 - to school'!J8,'Classroom 11 - to school'!J8,'Classroom 12 - to school'!J8,'Classroom 13 - to school'!J8,'Classroom 14 - to school'!J8,'Classroom 15 - to school'!J8,'Classroom 16 - to school'!J8,'Classroom 17 - to school'!J8,'Classroom 18 - to school'!J8,'Classroom 19 - to school'!J8,'Classroom 20 - to school'!J8)","v":0}]
["Tuesday",{"$f":"SUM('Classroom 1 - to school'!C9,'Classroom 2 - to school'!C9,'Classroom 3 - to school'!C9,'Classroom 4 - to school'!C9,'Classroom 5 - to school'!C9,'Classroom 6 - to school'!C9,'Classroom 7 - to school'!C9,'Classroom 8 - to school'!C9,'Classroom 9 - to school'!C9,'Classroom 10 - to school'!C9,'Classroom 11 - to school'!C9,'Classroom 12 - to school'!C9,'Classroom 13 - to school'!C9,'Classroom 14 - to school'!C9,'Classroom 15 - to school'!C9,'Classroom 16 - to school'!C9,'Classroom 17 - to school'!C9,'Classroom 18 - to school'!C9,'Classroom 19 - to school'!C9,'Classroom 20 - to school'!C9)","v":0},{"$f":"SUM('Classroom 1 - to school'!D9,'Classroom 2 - to school'!D9,'Classroom 3 - to school'!D9,'Classroom 4 - to school'!D9,'Classroom 5 - to school'!D9,'Classroom 6 - to school'!D9,'Classroom 7 - to school'!D9,'Classroom 8 - to school'!D9,'Classroom 9 - to school'!D9,'Classroom 10 - to school'!D9,'Classroom 11 - to school'!D9,'Classroom 12 - to school'!D9,'Classroom 13 - to school'!D9,'Classroom 14 - to school'!D9,'Classroom 15 - to school'!D9,'Classroom 16 - to school'!D9,'Classroom 17 - to school'!D9,'Classroom 18 - to school'!D9,'Classroom 19 - to school'!D9,'Classroom 20 - to school'!D9)","v":0},{"$f":"SUM('Classroom 1 - to school'!E9,'Classroom 2 - to school'!E9,'Classroom 3 - to school'!E9,'Classroom 4 - to school'!E9,'Classroom 5 - to school'!E9,'Classroom 6 - to school'!E9,'Classroom 7 - to school'!E9,'Classroom 8 - to school'!E9,'Classroom 9 - to school'!E9,'Classroom 10 - to school'!E9,'Classroom 11 - to school'!E9,'Classroom 12 - to school'!E9,'Classroom 13 - to school'!E9,'Classroom 14 - to school'!E9,'Classroom 15 - to school'!E9,'Classroom 16 - to school'!E9,'Classroom 17 - to school'!E9,'Classroom 18 - to school'!E9,'Classroom 19 - to school'!E9,'Classroom 20 - to school'!E9)","v":0},{"$f":"SUM('Classroom 1 - to school'!F9,'Classroom 2 - to school'!F9,'Classroom 3 - to school'!F9,'Classroom 4 - to school'!F9,'Classroom 5 - to school'!F9,'Classroom 6 - to school'!F9,'Classroom 7 - to school'!F9,'Classroom 8 - to school'!F9,'Classroom 9 - to school'!F9,'Classroom 10 - to school'!F9,'Classroom 11 - to school'!F9,'Classroom 12 - to school'!F9,'Classroom 13 - to school'!F9,'Classroom 14 - to school'!F9,'Classroom 15 - to school'!F9,'Classroom 16 - to school'!F9,'Classroom 17 - to school'!F9,'Classroom 18 - to school'!F9,'Classroom 19 - to school'!F9,'Classroom 20 - to school'!F9)","v":0},{"$f":"SUM('Classroom 1 - to school'!G9,'Classroom 2 - to school'!G9,'Classroom 3 - to school'!G9,'Classroom 4 - to school'!G9,'Classroom 5 - to school'!G9,'Classroom 6 - to school'!G9,'Classroom 7 - to school'!G9,'Classroom 8 - to school'!G9,'Classroom 9 - to school'!G9,'Classroom 10 - to school'!G9,'Classroom 11 - to school'!G9,'Classroom 12 - to school'!G9,'Classroom 13 - to school'!G9,'Classroom 14 - to school'!G9,'Classroom 15 - to school'!G9,'Classroom 16 - to school'!G9,'Classroom 17 - to school'!G9,'Classroom 18 - to school'!G9,'Classroom 19 - to school'!G9,'Classroom 20 - to school'!G9)","v":0},{"$f":"SUM('Classroom 1 - to school'!H9,'Classroom 2 - to school'!H9,'Classroom 3 - to school'!H9,'Classroom 4 - to school'!H9,'Classroom 5 - to school'!H9,'Classroom 6 - to school'!H9,'Classroom 7 - to school'!H9,'Classroom 8 - to school'!H9,'Classroom 9 - to school'!H9,'Classroom 10 - to school'!H9,'Classroom 11 - to school'!H9,'Classroom 12 - to school'!H9,'Classroom 13 - to school'!H9,'Classroom 14 - to school'!H9,'Classroom 15 - to school'!H9,'Classroom 16 - to school'!H9,'Classroom 17 - to school'!H9,'Classroom 18 - to school'!H9,'Classroom 19 - to school'!H9,'Classroom 20 - to school'!H9)","v":0},{"$f":"SUM('Classroom 1 - to school'!I9,'Classroom 2 - to school'!I9,'Classroom 3 - to school'!I9,'Classroom 4 - to school'!I9,'Classroom 5 - to school'!I9,'Classroom 6 - to school'!I9,'Classroom 7 - to school'!I9,'Classroom 8 - to school'!I9,'Classroom 9 - to school'!I9,'Classroom 10 - to school'!I9,'Classroom 11 - to school'!I9,'Classroom 12 - to school'!I9,'Classroom 13 - to school'!I9,'Classroom 14 - to school'!I9,'Classroom 15 - to school'!I9,'Classroom 16 - to school'!I9,'Classroom 17 - to school'!I9,'Classroom 18 - to school'!I9,'Classroom 19 - to school'!I9,'Classroom 20 - to school'!I9)","v":0},{"$f":"SUM('Classroom 1 - to school'!J9,'Classroom 2 - to school'!J9,'Classroom 3 - to school'!J9,'Classroom 4 - to school'!J9,'Classroom 5 - to school'!J9,'Classroom 6 - to school'!J9,'Classroom 7 - to school'!J9,'Classroom 8 - to school'!J9,'Classroom 9 - to school'!J9,'Classroom 10 - to school'!J9,'Classroom 11 - to school'!J9,'Classroom 12 - to school'!J9,'Classroom 13 - to school'!J9,'Classroom 14 - to school'!J9,'Classroom 15 - to school'!J9,'Classroom 16 - to school'!J9,'Classroom 17 - to school'!J9,'Classroom 18 - to school'!J9,'Classroom 19 - to school'!J9,'Classroom 20 - to school'!J9)","v":0}]
["Wednesday",{"$f":"SUM('Classroom 1 - to school'!C10,'Classroom 2 - to school'!C10,'Classroom 3 - to school'!C10,'Classroom 4 - to school'!C10,'Classroom 5 - to school'!C10,'Classroom 6 - to school'!C10,'Classroom 7 - to school'!C10,'Classroom 8 - to school'!C10,'Classroom 9 - to school'!C10,'Classroom 10 - to school'!C10,'Classroom 11 - to school'!C10,'Classroom 12 - to school'!C10,'Classroom 13 - to school'!C10,'Classroom 14 - to school'!C10,'Classroom 15 - to school'!C10,'Classroom 16 - to school'!C10,'Classroom 17 - to school'!C10,'Classroom 18 - to school'!C10,'Classroom 19 - to school'!C10,'Classroom 20 - to school'!C10)","v":0},{"$f":"SUM('Classroom 1 - to school'!D10,'Classroom 2 - to school'!D10,'Classroom 3 - to school'!D10,'Classroom 4 - to school'!D10,'Classroom 5 - to school'!D10,'Classroom 6 - to school'!D10,'Classroom 7 - to school'!D10,'Classroom 8 - to school'!D10,'Classroom 9 - to school'!D10,'Classroom 10 - to school'!D10,'Classroom 11 - to school'!D10,'Classroom 12 - to school'!D10,'Classroom 13 - to school'!D10,'Classroom 14 - to school'!D10,'Classroom 15 - to school'!D10,'Classroom 16 - to school'!D10,'Classroom 17 - to school'!D10,'Classroom 18 - to school'!D10,'Classroom 19 - to school'!D10,'Classroom 20 - to school'!D10)","v":0},{"$f":"SUM('Classroom 1 - to school'!E10,'Classroom 2 - to school'!E10,'Classroom 3 - to school'!E10,'Classroom 4 - to school'!E10,'Classroom 5 - to school'!E10,'Classroom 6 - to school'!E10,'Classroom 7 - to school'!E10,'Classroom 8 - to school'!E10,'Classroom 9 - to school'!E10,'Classroom 10 - to school'!E10,'Classroom 11 - to school'!E10,'Classroom 12 - to school'!E10,'Classroom 13 - to school'!E10,'Classroom 14 - to school'!E10,'Classroom 15 - to school'!E10,'Classroom 16 - to school'!E10,'Classroom 17 - to school'!E10,'Classroom 18 - to school'!E10,'Classroom 19 - to school'!E10,'Classroom 20 - to school'!E10)","v":0},{"$f":"SUM('Classroom 1 - to school'!F10,'Classroom 2 - to school'!F10,'Classroom 3 - to school'!F10,'Classroom 4 - to school'!F10,'Classroom 5 - to school'!F10,'Classroom 6 - to school'!F10,'Classroom 7 - to school'!F10,'Classroom 8 - to school'!F10,'Classroom 9 - to school'!F10,'Classroom 10 - to school'!F10,'Classroom 11 - to school'!F10,'Classroom 12 - to school'!F10,'Classroom 13 - to school'!F10,'Classroom 14 - to school'!F10,'Classroom 15 - to school'!F10,'Classroom 16 - to school'!F10,'Classroom 17 - to school'!F10,'Classroom 18 - to school'!F10,'Classroom 19 - to school'!F10,'Classroom 20 - to school'!F10)","v":0},{"$f":"SUM('Classroom 1 - to school'!G10,'Classroom 2 - to school'!G10,'Classroom 3 - to school'!G10,'Classroom 4 - to school'!G10,'Classroom 5 - to school'!G10,'Classroom 6 - to school'!G10,'Classroom 7 - to school'!G10,'Classroom 8 - to school'!G10,'Classroom 9 - to school'!G10,'Classroom 10 - to school'!G10,'Classroom 11 - to school'!G10,'Classroom 12 - to school'!G10,'Classroom 13 - to school'!G10,'Classroom 14 - to school'!G10,'Classroom 15 - to school'!G10,'Classroom 16 - to school'!G10,'Classroom 17 - to school'!G10,'Classroom 18 - to school'!G10,'Classroom 19 - to school'!G10,'Classroom 20 - to school'!G10)","v":0},{"$f":"SUM('Classroom 1 - to school'!H10,'Classroom 2 - to school'!H10,'Classroom 3 - to school'!H10,'Classroom 4 - to school'!H10,'Classroom 5 - to school'!H10,'Classroom 6 - to school'!H10,'Classroom 7 - to school'!H10,'Classroom 8 - to school'!H10,'Classroom 9 - to school'!H10,'Classroom 10 - to school'!H10,'Classroom 11 - to school'!H10,'Classroom 12 - to school'!H10,'Classroom 13 - to school'!H10,'Classroom 14 - to school'!H10,'Classroom 15 - to school'!H10,'Classroom 16 - to school'!H10,'Classroom 17 - to school'!H10,'Classroom 18 - to school'!H10,'Classroom 19 - to school'!H10,'Classroom 20 - to school'!H10)","v":0},{"$f":"SUM('Classroom 1 - to school'!I10,'Classroom 2 - to school'!I10,'Classroom 3 - to school'!I10,'Classroom 4 - to school'!I10,'Classroom 5 - to school'!I10,'Classroom 6 - to school'!I10,'Classroom 7 - to school'!I10,'Classroom 8 - to school'!I10,'Classroom 9 - to school'!I10,'Classroom 10 - to school'!I10,'Classroom 11 - to school'!I10,'Classroom 12 - to school'!I10,'Classroom 13 - to school'!I10,'Classroom 14 - to school'!I10,'Classroom 15 - to school'!I10,'Classroom 16 - to school'!I10,'Classroom 17 - to school'!I10,'Classroom 18 - to school'!I10,'Classroom 19 - to school'!I10,'Classroom 20 - to school'!I10)","v":0},{"$f":"SUM('Classroom 1 - to school'!J10,'Classroom 2 - to school'!J10,'Classroom 3 - to school'!J10,'Classroom 4 - to school'!J10,'Classroom 5 - to school'!J10,'Classroom 6 - to school'!J10,'Classroom 7 - to school'!J10,'Classroom 8 - to school'!J10,'Classroom 9 - to school'!J10,'Classroom 10 - to school'!J10,'Classroom 11 - to school'!J10,'Classroom 12 - to school'!J10,'Classroom 13 - to school'!J10,'Classroom 14 - to school'!J10,'Classroom 15 - to school'!J10,'Classroom 16 - to school'!J10,'Classroom 17 - to school'!J10,'Classroom 18 - to school'!J10,'Classroom 19 - to school'!J10,'Classroom 20 - to school'!J10)","v":0}]
["Thursday",{"$f":"SUM('Classroom 1 - to school'!C11,'Classroom 2 - to school'!C11,'Classroom 3 - to school'!C11,'Classroom 4 - to school'!C11,'Classroom 5 - to school'!C11,'Classroom 6 - to school'!C11,'Classroom 7 - to school'!C11,'Classroom 8 - to school'!C11,'Classroom 9 - to school'!C11,'Classroom 10 - to school'!C11,'Classroom 11 - to school'!C11,'Classroom 12 - to school'!C11,'Classroom 13 - to school'!C11,'Classroom 14 - to school'!C11,'Classroom 15 - to school'!C11,'Classroom 16 - to school'!C11,'Classroom 17 - to school'!C11,'Classroom 18 - to school'!C11,'Classroom 19 - to school'!C11,'Classroom 20 - to school'!C11)","v":0},{"$f":"SUM('Classroom 1 - to school'!D11,'Classroom 2 - to school'!D11,'Classroom 3 - to school'!D11,'Classroom 4 - to school'!D11,'Classroom 5 - to school'!D11,'Classroom 6 - to school'!D11,'Classroom 7 - to school'!D11,'Classroom 8 - to school'!D11,'Classroom 9 - to school'!D11,'Classroom 10 - to school'!D11,'Classroom 11 - to school'!D11,'Classroom 12 - to school'!D11,'Classroom 13 - to school'!D11,'Classroom 14 - to school'!D11,'Classroom 15 - to school'!D11,'Classroom 16 - to school'!D11,'Classroom 17 - to school'!D11,'Classroom 18 - to school'!D11,'Classroom 19 - to school'!D11,'Classroom 20 - to school'!D11)","v":0},{"$f":"SUM('Classroom 1 - to school'!E11,'Classroom 2 - to school'!E11,'Classroom 3 - to school'!E11,'Classroom 4 - to school'!E11,'Classroom 5 - to school'!E11,'Classroom 6 - to school'!E11,'Classroom 7 - to school'!E11,'Classroom 8 - to school'!E11,'Classroom 9 - to school'!E11,'Classroom 10 - to school'!E11,'Classroom 11 - to school'!E11,'Classroom 12 - to school'!E11,'Classroom 13 - to school'!E11,'Classroom 14 - to school'!E11,'Classroom 15 - to school'!E11,'Classroom 16 - to school'!E11,'Classroom 17 - to school'!E11,'Classroom 18 - to school'!E11,'Classroom 19 - to school'!E11,'Classroom 20 - to school'!E11)","v":0},{"$f":"SUM('Classroom 1 - to school'!F11,'Classroom 2 - to school'!F11,'Classroom 3 - to school'!F11,'Classroom 4 - to school'!F11,'Classroom 5 - to school'!F11,'Classroom 6 - to school'!F11,'Classroom 7 - to school'!F11,'Classroom 8 - to school'!F11,'Classroom 9 - to school'!F11,'Classroom 10 - to school'!F11,'Classroom 11 - to school'!F11,'Classroom 12 - to school'!F11,'Classroom 13 - to school'!F11,'Classroom 14 - to school'!F11,'Classroom 15 - to school'!F11,'Classroom 16 - to school'!F11,'Classroom 17 - to school'!F11,'Classroom 18 - to school'!F11,'Classroom 19 - to school'!F11,'Classroom 20 - to school'!F11)","v":0},{"$f":"SUM('Classroom 1 - to school'!G11,'Classroom 2 - to school'!G11,'Classroom 3 - to school'!G11,'Classroom 4 - to school'!G11,'Classroom 5 - to school'!G11,'Classroom 6 - to school'!G11,'Classroom 7 - to school'!G11,'Classroom 8 - to school'!G11,'Classroom 9 - to school'!G11,'Classroom 10 - to school'!G11,'Classroom 11 - to school'!G11,'Classroom 12 - to school'!G11,'Classroom 13 - to school'!G11,'Classroom 14 - to school'!G11,'Classroom 15 - to school'!G11,'Classroom 16 - to school'!G11,'Classroom 17 - to school'!G11,'Classroom 18 - to school'!G11,'Classroom 19 - to school'!G11,'Classroom 20 - to school'!G11)","v":0},{"$f":"SUM('Classroom 1 - to school'!H11,'Classroom 2 - to school'!H11,'Classroom 3 - to school'!H11,'Classroom 4 - to school'!H11,'Classroom 5 - to school'!H11,'Classroom 6 - to school'!H11,'Classroom 7 - to school'!H11,'Classroom 8 - to school'!H11,'Classroom 9 - to school'!H11,'Classroom 10 - to school'!H11,'Classroom 11 - to school'!H11,'Classroom 12 - to school'!H11,'Classroom 13 - to school'!H11,'Classroom 14 - to school'!H11,'Classroom 15 - to school'!H11,'Classroom 16 - to school'!H11,'Classroom 17 - to school'!H11,'Classroom 18 - to school'!H11,'Classroom 19 - to school'!H11,'Classroom 20 - to school'!H11)","v":0},{"$f":"SUM('Classroom 1 - to school'!I11,'Classroom 2 - to school'!I11,'Classroom 3 - to school'!I11,'Classroom 4 - to school'!I11,'Classroom 5 - to school'!I11,'Classroom 6 - to school'!I11,'Classroom 7 - to school'!I11,'Classroom 8 - to school'!I11,'Classroom 9 - to school'!I11,'Classroom 10 - to school'!I11,'Classroom 11 - to school'!I11,'Classroom 12 - to school'!I11,'Classroom 13 - to school'!I11,'Classroom 14 - to school'!I11,'Classroom 15 - to school'!I11,'Classroom 16 - to school'!I11,'Classroom 17 - to school'!I11,'Classroom 18 - to school'!I11,'Classroom 19 - to school'!I11,'Classroom 20 - to school'!I11)","v":0},{"$f":"SUM('Classroom 1 - to school'!J11,'Classroom 2 - to school'!J11,'Classroom 3 - to school'!J11,'Classroom 4 - to school'!J11,'Classroom 5 - to school'!J11,'Classroom 6 - to school'!J11,'Classroom 7 - to school'!J11,'Classroom 8 - to school'!J11,'Classroom 9 - to school'!J11,'Classroom 10 - to school'!J11,'Classroom 11 - to school'!J11,'Classroom 12 - to school'!J11,'Classroom 13 - to school'!J11,'Classroom 14 - to school'!J11,'Classroom 15 - to school'!J11,'Classroom 16 - to school'!J11,'Classroom 17 - to school'!J11,'Classroom 18 - to school'!J11,'Classroom 19 - to school'!J11,'Classroom 20 - to school'!J11)","v":0}]
["Friday",{"$f":"SUM('Classroom 1 - to school'!C12,'Classroom 2 - to school'!C12,'Classroom 3 - to school'!C12,'Classroom 4 - to school'!C12,'Classroom 5 - to school'!C12,'Classroom 6 - to school'!C12,'Classroom 7 - to school'!C12,'Classroom 8 - to school'!C12,'Classroom 9 - to school'!C12,'Classroom 10 - to school'!C12,'Classroom 11 - to school'!C12,'Classroom 12 - to school'!C12,'Classroom 13 - to school'!C12,'Classroom 14 - to school'!C12,'Classroom 15 - to school'!C12,'Classroom 16 - to school'!C12,'Classroom 17 - to school'!C12,'Classroom 18 - to school'!C12,'Classroom 19 - to school'!C12,'Classroom 20 - to school'!C12)","v":0},{"$f":"SUM('Classroom 1 - to school'!D12,'Classroom 2 - to school'!D12,'Classroom 3 - to school'!D12,'Classroom 4 - to school'!D12,'Classroom 5 - to school'!D12,'Classroom 6 - to school'!D12,'Classroom 7 - to school'!D12,'Classroom 8 - to school'!D12,'Classroom 9 - to school'!D12,'Classroom 10 - to school'!D12,'Classroom 11 - to school'!D12,'Classroom 12 - to school'!D12,'Classroom 13 - to school'!D12,'Classroom 14 - to school'!D12,'Classroom 15 - to school'!D12,'Classroom 16 - to school'!D12,'Classroom 17 - to school'!D12,'Classroom 18 - to school'!D12,'Classroom 19 - to school'!D12,'Classroom 20 - to school'!D12)","v":0},{"$f":"SUM('Classroom 1 - to school'!E12,'Classroom 2 - to school'!E12,'Classroom 3 - to school'!E12,'Classroom 4 - to school'!E12,'Classroom 5 - to school'!E12,'Classroom 6 - to school'!E12,'Classroom 7 - to school'!E12,'Classroom 8 - to school'!E12,'Classroom 9 - to school'!E12,'Classroom 10 - to school'!E12,'Classroom 11 - to school'!E12,'Classroom 12 - to school'!E12,'Classroom 13 - to school'!E12,'Classroom 14 - to school'!E12,'Classroom 15 - to school'!E12,'Classroom 16 - to school'!E12,'Classroom 17 - to school'!E12,'Classroom 18 - to school'!E12,'Classroom 19 - to school'!E12,'Classroom 20 - to school'!E12)","v":0},{"$f":"SUM('Classroom 1 - to school'!F12,'Classroom 2 - to school'!F12,'Classroom 3 - to school'!F12,'Classroom 4 - to school'!F12,'Classroom 5 - to school'!F12,'Classroom 6 - to school'!F12,'Classroom 7 - to school'!F12,'Classroom 8 - to school'!F12,'Classroom 9 - to school'!F12,'Classroom 10 - to school'!F12,'Classroom 11 - to school'!F12,'Classroom 12 - to school'!F12,'Classroom 13 - to school'!F12,'Classroom 14 - to school'!F12,'Classroom 15 - to school'!F12,'Classroom 16 - to school'!F12,'Classroom 17 - to school'!F12,'Classroom 18 - to school'!F12,'Classroom 19 - to school'!F12,'Classroom 20 - to school'!F12)","v":0},{"$f":"SUM('Classroom 1 - to school'!G12,'Classroom 2 - to school'!G12,'Classroom 3 - to school'!G12,'Classroom 4 - to school'!G12,'Classroom 5 - to school'!G12,'Classroom 6 - to school'!G12,'Classroom 7 - to school'!G12,'Classroom 8 - to school'!G12,'Classroom 9 - to school'!G12,'Classroom 10 - to school'!G12,'Classroom 11 - to school'!G12,'Classroom 12 - to school'!G12,'Classroom 13 - to school'!G12,'Classroom 14 - to school'!G12,'Classroom 15 - to school'!G12,'Classroom 16 - to school'!G12,'Classroom 17 - to school'!G12,'Classroom 18 - to school'!G12,'Classroom 19 - to school'!G12,'Classroom 20 - to school'!G12)","v":0},{"$f":"SUM('Classroom 1 - to school'!H12,'Classroom 2 - to school'!H12,'Classroom 3 - to school'!H12,'Classroom 4 - to school'!H12,'Classroom 5 - to school'!H12,'Classroom 6 - to school'!H12,'Classroom 7 - to school'!H12,'Classroom 8 - to school'!H12,'Classroom 9 - to school'!H12,'Classroom 10 - to school'!H12,'Classroom 11 - to school'!H12,'Classroom 12 - to school'!H12,'Classroom 13 - to school'!H12,'Classroom 14 - to school'!H12,'Classroom 15 - to school'!H12,'Classroom 16 - to school'!H12,'Classroom 17 - to school'!H12,'Classroom 18 - to school'!H12,'Classroom 19 - to school'!H12,'Classroom 20 - to school'!H12)","v":0},{"$f":"SUM('Classroom 1 - to school'!I12,'Classroom 2 - to school'!I12,'Classroom 3 - to school'!I12,'Classroom 4 - to school'!I12,'Classroom 5 - to school'!I12,'Classroom 6 - to school'!I12,'Classroom 7 - to school'!I12,'Classroom 8 - to school'!I12,'Classroom 9 - to school'!I12,'Classroom 10 - to school'!I12,'Classroom 11 - to school'!I12,'Classroom 12 - to school'!I12,'Classroom 13 - to school'!I12,'Classroom 14 - to school'!I12,'Classroom 15 - to school'!I12,'Classroom 16 - to school'!I12,'Classroom 17 - to school'!I12,'Classroom 18 - to school'!I12,'Classroom 19 - to school'!I12,'Classroom 20 - to school'!I12)","v":0},{"$f":"SUM('Classroom 1 - to school'!J12,'Classroom 2 - to school'!J12,'Classroom 3 - to school'!J12,'Classroom 4 - to school'!J12,'Classroom 5 - to school'!J12,'Classroom 6 - to school'!J12,'Classroom 7 - to school'!J12,'Classroom 8 - to school'!J12,'Classroom 9 - to school'!J12,'Classroom 10 - to school'!J12,'Classroom 11 - to school'!J12,'Classroom 12 - to school'!J12,'Classroom 13 - to school'!J12,'Classroom 14 - to school'!J12,'Classroom 15 - to school'!J12,'Classroom 16 - to school'!J12,'Classroom 17 - to school'!J12,'Classroom 18 - to school'!J12,'Classroom 19 - to school'!J12,'Classroom 20 - to school'!J12)","v":0}]
[]
[]
[null,"Biked","Walked","Rolled","School Bus","Pub Trans","Car","#Absent","Other"]
[null,"Count2","Count2","Count2","Count2","Count2","Count2","Count2","Count2"]
["Monday",{"$f":"SUM('Classroom 21 - to school'!C8,'Classroom 22 - to school'!C8,'Classroom 23 - to school'!C8,'Classroom 24 - to school'!C8,'Classroom 25 - to school'!C8,'Classroom 26 - to school'!C8,'Classroom 27 - to school'!C8,'Classroom 28 - to school'!C8,'Classroom 29 - to school'!C8,'Classroom 30 - to school'!C8,'Classroom 31 - to school'!C8,'Classroom 32 - to school'!C8,'Classroom 33 - to school'!C8,'Classroom 34 - to school'!C8,'Classroom 35 - to school'!C8)","v":0},{"$f":"SUM('Classroom 21 - to school'!D8,'Classroom 22 - to school'!D8,'Classroom 23 - to school'!D8,'Classroom 24 - to school'!D8,'Classroom 25 - to school'!D8,'Classroom 26 - to school'!D8,'Classroom 27 - to school'!D8,'Classroom 28 - to school'!D8,'Classroom 29 - to school'!D8,'Classroom 30 - to school'!D8,'Classroom 31 - to school'!D8,'Classroom 32 - to school'!D8,'Classroom 33 - to school'!D8,'Classroom 34 - to school'!D8,'Classroom 35 - to school'!D8)","v":0},{"$f":"SUM('Classroom 21 - to school'!E8,'Classroom 22 - to school'!E8,'Classroom 23 - to school'!E8,'Classroom 24 - to school'!E8,'Classroom 25 - to school'!E8,'Classroom 26 - to school'!E8,'Classroom 27 - to school'!E8,'Classroom 28 - to school'!E8,'Classroom 29 - to school'!E8,'Classroom 30 - to school'!E8,'Classroom 31 - to school'!E8,'Classroom 32 - to school'!E8,'Classroom 33 - to school'!E8,'Classroom 34 - to school'!E8,'Classroom 35 - to school'!E8)","v":0},{"$f":"SUM('Classroom 21 - to school'!F8,'Classroom 22 - to school'!F8,'Classroom 23 - to school'!F8,'Classroom 24 - to school'!F8,'Classroom 25 - to school'!F8,'Classroom 26 - to school'!F8,'Classroom 27 - to school'!F8,'Classroom 28 - to school'!F8,'Classroom 29 - to school'!F8,'Classroom 30 - to school'!F8,'Classroom 31 - to school'!F8,'Classroom 32 - to school'!F8,'Classroom 33 - to school'!F8,'Classroom 34 - to school'!F8,'Classroom 35 - to school'!F8)","v":0},{"$f":"SUM('Classroom 21 - to school'!G8,'Classroom 22 - to school'!G8,'Classroom 23 - to school'!G8,'Classroom 24 - to school'!G8,'Classroom 25 - to school'!G8,'Classroom 26 - to school'!G8,'Classroom 27 - to school'!G8,'Classroom 28 - to school'!G8,'Classroom 29 - to school'!G8,'Classroom 30 - to school'!G8,'Classroom 31 - to school'!G8,'Classroom 32 - to school'!G8,'Classroom 33 - to school'!G8,'Classroom 34 - to school'!G8,'Classroom 35 - to school'!G8)","v":0},{"$f":"SUM('Classroom 21 - to school'!H8,'Classroom 22 - to school'!H8,'Classroom 23 - to school'!H8,'Classroom 24 - to school'!H8,'Classroom 25 - to school'!H8,'Classroom 26 - to school'!H8,'Classroom 27 - to school'!H8,'Classroom 28 - to school'!H8,'Classroom 29 - to school'!H8,'Classroom 30 - to school'!H8,'Classroom 31 - to school'!H8,'Classroom 32 - to school'!H8,'Classroom 33 - to school'!H8,'Classroom 34 - to school'!H8,'Classroom 35 - to school'!H8)","v":0},{"$f":"SUM('Classroom 21 - to school'!I8,'Classroom 22 - to school'!I8,'Classroom 23 - to school'!I8,'Classroom 24 - to school'!I8,'Classroom 25 - to school'!I8,'Classroom 26 - to school'!I8,'Classroom 27 - to school'!I8,'Classroom 28 - to school'!I8,'Classroom 29 - to school'!I8,'Classroom 30 - to school'!I8,'Classroom 31 - to school'!I8,'Classroom 32 - to school'!I8,'Classroom 33 - to school'!I8,'Classroom 34 - to school'!I8,'Classroom 35 - to school'!I8)","v":0},{"$f":"SUM('Classroom 21 - to school'!J8,'Classroom 22 - to school'!J8,'Classroom 23 - to school'!J8,'Classroom 24 - to school'!J8,'Classroom 25 - to school'!J8,'Classroom 26 - to school'!J8,'Classroom 27 - to school'!J8,'Classroom 28 - to school'!J8,'Classroom 29 - to school'!J8,'Classroom 30 - to school'!J8,'Classroom 31 - to school'!J8,'Classroom 32 - to school'!J8,'Classroom 33 - to school'!J8,'Classroom 34 - to school'!J8,'Classroom 35 - to school'!J8)","v":0}]
["Tuesday",{"$f":"SUM('Classroom 21 - to school'!C9,'Classroom 22 - to school'!C9,'Classroom 23 - to school'!C9,'Classroom 24 - to school'!C9,'Classroom 25 - to school'!C9,'Classroom 26 - to school'!C9,'Classroom 27 - to school'!C9,'Classroom 28 - to school'!C9,'Classroom 29 - to school'!C9,'Classroom 30 - to school'!C9,'Classroom 31 - to school'!C9,'Classroom 32 - to school'!C9,'Classroom 33 - to school'!C9,'Classroom 34 - to school'!C9,'Classroom 35 - to school'!C9)","v":0},{"$f":"SUM('Classroom 21 - to school'!D9,'Classroom 22 - to school'!D9,'Classroom 23 - to school'!D9,'Classroom 24 - to school'!D9,'Classroom 25 - to school'!D9,'Classroom 26 - to school'!D9,'Classroom 27 - to school'!D9,'Classroom 28 - to school'!D9,'Classroom 29 - to school'!D9,'Classroom 30 - to school'!D9,'Classroom 31 - to school'!D9,'Classroom 32 - to school'!D9,'Classroom 33 - to school'!D9,'Classroom 34 - to school'!D9,'Classroom 35 - to school'!D9)","v":0},{"$f":"SUM('Classroom 21 - to school'!E9,'Classroom 22 - to school'!E9,'Classroom 23 - to school'!E9,'Classroom 24 - to school'!E9,'Classroom 25 - to school'!E9,'Classroom 26 - to school'!E9,'Classroom 27 - to school'!E9,'Classroom 28 - to school'!E9,'Classroom 29 - to school'!E9,'Classroom 30 - to school'!E9,'Classroom 31 - to school'!E9,'Classroom 32 - to school'!E9,'Classroom 33 - to school'!E9,'Classroom 34 - to school'!E9,'Classroom 35 - to school'!E9)","v":0},{"$f":"SUM('Classroom 21 - to school'!F9,'Classroom 22 - to school'!F9,'Classroom 23 - to school'!F9,'Classroom 24 - to school'!F9,'Classroom 25 - to school'!F9,'Classroom 26 - to school'!F9,'Classroom 27 - to school'!F9,'Classroom 28 - to school'!F9,'Classroom 29 - to school'!F9,'Classroom 30 - to school'!F9,'Classroom 31 - to school'!F9,'Classroom 32 - to school'!F9,'Classroom 33 - to school'!F9,'Classroom 34 - to school'!F9,'Classroom 35 - to school'!F9)","v":0},{"$f":"SUM('Classroom 21 - to school'!G9,'Classroom 22 - to school'!G9,'Classroom 23 - to school'!G9,'Classroom 24 - to school'!G9,'Classroom 25 - to school'!G9,'Classroom 26 - to school'!G9,'Classroom 27 - to school'!G9,'Classroom 28 - to school'!G9,'Classroom 29 - to school'!G9,'Classroom 30 - to school'!G9,'Classroom 31 - to school'!G9,'Classroom 32 - to school'!G9,'Classroom 33 - to school'!G9,'Classroom 34 - to school'!G9,'Classroom 35 - to school'!G9)","v":0},{"$f":"SUM('Classroom 21 - to school'!H9,'Classroom 22 - to school'!H9,'Classroom 23 - to school'!H9,'Classroom 24 - to school'!H9,'Classroom 25 - to school'!H9,'Classroom 26 - to school'!H9,'Classroom 27 - to school'!H9,'Classroom 28 - to school'!H9,'Classroom 29 - to school'!H9,'Classroom 30 - to school'!H9,'Classroom 31 - to school'!H9,'Classroom 32 - to school'!H9,'Classroom 33 - to school'!H9,'Classroom 34 - to school'!H9,'Classroom 35 - to school'!H9)","v":0},{"$f":"SUM('Classroom 21 - to school'!I9,'Classroom 22 - to school'!I9,'Classroom 23 - to school'!I9,'Classroom 24 - to school'!I9,'Classroom 25 - to school'!I9,'Classroom 26 - to school'!I9,'Classroom 27 - to school'!I9,'Classroom 28 - to school'!I9,'Classroom 29 - to school'!I9,'Classroom 30 - to school'!I9,'Classroom 31 - to school'!I9,'Classroom 32 - to school'!I9,'Classroom 33 - to school'!I9,'Classroom 34 - to school'!I9,'Classroom 35 - to school'!I9)","v":0},{"$f":"SUM('Classroom 21 - to school'!J9,'Classroom 22 - to school'!J9,'Classroom 23 - to school'!J9,'Classroom 24 - to school'!J9,'Classroom 25 - to school'!J9,'Classroom 26 - to school'!J9,'Classroom 27 - to school'!J9,'Classroom 28 - to school'!J9,'Classroom 29 - to school'!J9,'Classroom 30 - to school'!J9,'Classroom 31 - to school'!J9,'Classroom 32 - to school'!J9,'Classroom 33 - to school'!J9,'Classroom 34 - to school'!J9,'Classroom 35 - to school'!J9)","v":0}]
["Wednesday",{"$f":"SUM('Classroom 21 - to school'!C10,'Classroom 22 - to school'!C10,'Classroom 23 - to school'!C10,'Classroom 24 - to school'!C10,'Classroom 25 - to school'!C10,'Classroom 26 - to school'!C10,'Classroom 27 - to school'!C10,'Classroom 28 - to school'!C10,'Classroom 29 - to school'!C10,'Classroom 30 - to school'!C10,'Classroom 31 - to school'!C10,'Classroom 32 - to school'!C10,'Classroom 33 - to school'!C10,'Classroom 34 - to school'!C10,'Classroom 35 - to school'!C10)","v":0},{"$f":"SUM('Classroom 21 - to school'!D10,'Classroom 22 - to school'!D10,'Classroom 23 - to school'!D10,'Classroom 24 - to school'!D10,'Classroom 25 - to school'!D10,'Classroom 26 - to school'!D10,'Classroom 27 - to school'!D10,'Classroom 28 - to school'!D10,'Classroom 29 - to school'!D10,'Classroom 30 - to school'!D10,'Classroom 31 - to school'!D10,'Classroom 32 - to school'!D10,'Classroom 33 - to school'!D10,'Classroom 34 - to school'!D10,'Classroom 35 - to school'!D10)","v":0},{"$f":"SUM('Classroom 21 - to school'!E10,'Classroom 22 - to school'!E10,'Classroom 23 - to school'!E10,'Classroom 24 - to school'!E10,'Classroom 25 - to school'!E10,'Classroom 26 - to school'!E10,'Classroom 27 - to school'!E10,'Classroom 28 - to school'!E10,'Classroom 29 - to school'!E10,'Classroom 30 - to school'!E10,'Classroom 31 - to school'!E10,'Classroom 32 - to school'!E10,'Classroom 33 - to school'!E10,'Classroom 34 - to school'!E10,'Classroom 35 - to school'!E10)","v":0},{"$f":"SUM('Classroom 21 - to school'!F10,'Classroom 22 - to school'!F10,'Classroom 23 - to school'!F10,'Classroom 24 - to school'!F10,'Classroom 25 - to school'!F10,'Classroom 26 - to school'!F10,'Classroom 27 - to school'!F10,'Classroom 28 - to school'!F10,'Classroom 29 - to school'!F10,'Classroom 30 - to school'!F10,'Classroom 31 - to school'!F10,'Classroom 32 - to school'!F10,'Classroom 33 - to school'!F10,'Classroom 34 - to school'!F10,'Classroom 35 - to school'!F10)","v":0},{"$f":"SUM('Classroom 21 - to school'!G10,'Classroom 22 - to school'!G10,'Classroom 23 - to school'!G10,'Classroom 24 - to school'!G10,'Classroom 25 - to school'!G10,'Classroom 26 - to school'!G10,'Classroom 27 - to school'!G10,'Classroom 28 - to school'!G10,'Classroom 29 - to school'!G10,'Classroom 30 - to school'!G10,'Classroom 31 - to school'!G10,'Classroom 32 - to school'!G10,'Classroom 33 - to school'!G10,'Classroom 34 - to school'!G10,'Classroom 35 - to school'!G10)","v":0},{"$f":"SUM('Classroom 21 - to school'!H10,'Classroom 22 - to school'!H10,'Classroom 23 - to school'!H10,'Classroom 24 - to school'!H10,'Classroom 25 - to school'!H10,'Classroom 26 - to school'!H10,'Classroom 27 - to school'!H10,'Classroom 28 - to school'!H10,'Classroom 29 - to school'!H10,'Classroom 30 - to school'!H10,'Classroom 31 - to school'!H10,'Classroom 32 - to school'!H10,'Classroom 33 - to school'!H10,'Classroom 34 - to school'!H10,'Classroom 35 - to school'!H10)","v":0},{"$f":"SUM('Classroom 21 - to school'!I10,'Classroom 22 - to school'!I10,'Classroom 23 - to school'!I10,'Classroom 24 - to school'!I10,'Classroom 25 - to school'!I10,'Classroom 26 - to school'!I10,'Classroom 27 - to school'!I10,'Classroom 28 - to school'!I10,'Classroom 29 - to school'!I10,'Classroom 30 - to school'!I10,'Classroom 31 - to school'!I10,'Classroom 32 - to school'!I10,'Classroom 33 - to school'!I10,'Classroom 34 - to school'!I10,'Classroom 35 - to school'!I10)","v":0},{"$f":"SUM('Classroom 21 - to school'!J10,'Classroom 22 - to school'!J10,'Classroom 23 - to school'!J10,'Classroom 24 - to school'!J10,'Classroom 25 - to school'!J10,'Classroom 26 - to school'!J10,'Classroom 27 - to school'!J10,'Classroom 28 - to school'!J10,'Classroom 29 - to school'!J10,'Classroom 30 - to school'!J10,'Classroom 31 - to school'!J10,'Classroom 32 - to school'!J10,'Classroom 33 - to school'!J10,'Classroom 34 - to school'!J10,'Classroom 35 - to school'!J10)","v":0}]
["Thursday",{"$f":"SUM('Classroom 21 - to school'!C11,'Classroom 22 - to school'!C11,'Classroom 23 - to school'!C11,'Classroom 24 - to school'!C11,'Classroom 25 - to school'!C11,'Classroom 26 - to school'!C11,'Classroom 27 - to school'!C11,'Classroom 28 - to school'!C11,'Classroom 29 - to school'!C11,'Classroom 30 - to school'!C11,'Classroom 31 - to school'!C11,'Classroom 32 - to school'!C11,'Classroom 33 - to school'!C11,'Classroom 34 - to school'!C11,'Classroom 35 - to school'!C11)","v":0},{"$f":"SUM('Classroom 21 - to school'!D11,'Classroom 22 - to school'!D11,'Classroom 23 - to school'!D11,'Classroom 24 - to school'!D11,'Classroom 25 - to school'!D11,'Classroom 26 - to school'!D11,'Classroom 27 - to school'!D11,'Classroom 28 - to school'!D11,'Classroom 29 - to school'!D11,'Classroom 30 - to school'!D11,'Classroom 31 - to school'!D11,'Classroom 32 - to school'!D11,'Classroom 33 - to school'!D11,'Classroom 34 - to school'!D11,'Classroom 35 - to school'!D11)","v":0},{"$f":"SUM('Classroom 21 - to school'!E11,'Classroom 22 - to school'!E11,'Classroom 23 - to school'!E11,'Classroom 24 - to school'!E11,'Classroom 25 - to school'!E11,'Classroom 26 - to school'!E11,'Classroom 27 - to school'!E11,'Classroom 28 - to school'!E11,'Classroom 29 - to school'!E11,'Classroom 30 - to school'!E11,'Classroom 31 - to school'!E11,'Classroom 32 - to school'!E11,'Classroom 33 - to school'!E11,'Classroom 34 - to school'!E11,'Classroom 35 - to school'!E11)","v":0},{"$f":"SUM('Classroom 21 - to school'!F11,'Classroom 22 - to school'!F11,'Classroom 23 - to school'!F11,'Classroom 24 - to school'!F11,'Classroom 25 - to school'!F11,'Classroom 26 - to school'!F11,'Classroom 27 - to school'!F11,'Classroom 28 - to school'!F11,'Classroom 29 - to school'!F11,'Classroom 30 - to school'!F11,'Classroom 31 - to school'!F11,'Classroom 32 - to school'!F11,'Classroom 33 - to school'!F11,'Classroom 34 - to school'!F11,'Classroom 35 - to school'!F11)","v":0},{"$f":"SUM('Classroom 21 - to school'!G11,'Classroom 22 - to school'!G11,'Classroom 23 - to school'!G11,'Classroom 24 - to school'!G11,'Classroom 25 - to school'!G11,'Classroom 26 - to school'!G11,'Classroom 27 - to school'!G11,'Classroom 28 - to school'!G11,'Classroom 29 - to school'!G11,'Classroom 30 - to school'!G11,'Classroom 31 - to school'!G11,'Classroom 32 - to school'!G11,'Classroom 33 - to school'!G11,'Classroom 34 - to school'!G11,'Classroom 35 - to school'!G11)","v":0},{"$f":"SUM('Classroom 21 - to school'!H11,'Classroom 22 - to school'!H11,'Classroom 23 - to school'!H11,'Classroom 24 - to school'!H11,'Classroom 25 - to school'!H11,'Classroom 26 - to school'!H11,'Classroom 27 - to school'!H11,'Classroom 28 - to school'!H11,'Classroom 29 - to school'!H11,'Classroom 30 - to school'!H11,'Classroom 31 - to school'!H11,'Classroom 32 - to school'!H11,'Classroom 33 - to school'!H11,'Classroom 34 - to school'!H11,'Classroom 35 - to school'!H11)","v":0},{"$f":"SUM('Classroom 21 - to school'!I11,'Classroom 22 - to school'!I11,'Classroom 23 - to school'!I11,'Classroom 24 - to school'!I11,'Classroom 25 - to school'!I11,'Classroom 26 - to school'!I11,'Classroom 27 - to school'!I11,'Classroom 28 - to school'!I11,'Classroom 29 - to school'!I11,'Classroom 30 - to school'!I11,'Classroom 31 - to school'!I11,'Classroom 32 - to school'!I11,'Classroom 33 - to school'!I11,'Classroom 34 - to school'!I11,'Classroom 35 - to school'!I11)","v":0},{"$f":"SUM('Classroom 21 - to school'!J11,'Classroom 22 - to school'!J11,'Classroom 23 - to school'!J11,'Classroom 24 - to school'!J11,'Classroom 25 - to school'!J11,'Classroom 26 - to school'!J11,'Classroom 27 - to school'!J11,'Classroom 28 - to school'!J11,'Classroom 29 - to school'!J11,'Classroom 30 - to school'!J11,'Classroom 31 - to school'!J11,'Classroom 32 - to school'!J11,'Classroom 33 - to school'!J11,'Classroom 34 - to school'!J11,'Classroom 35 - to school'!J11)","v":0}]
["Friday",{"$f":"SUM('Classroom 21 - to school'!C12,'Classroom 22 - to school'!C12,'Classroom 23 - to school'!C12,'Classroom 24 - to school'!C12,'Classroom 25 - to school'!C12,'Classroom 26 - to school'!C12,'Classroom 27 - to school'!C12,'Classroom 28 - to school'!C12,'Classroom 29 - to school'!C12,'Classroom 30 - to school'!C12,'Classroom 31 - to school'!C12,'Classroom 32 - to school'!C12,'Classroom 33 - to school'!C12,'Classroom 34 - to school'!C12,'Classroom 35 - to school'!C12)","v":0},{"$f":"SUM('Classroom 21 - to school'!D12,'Classroom 22 - to school'!D12,'Classroom 23 - to school'!D12,'Classroom 24 - to school'!D12,'Classroom 25 - to school'!D12,'Classroom 26 - to school'!D12,'Classroom 27 - to school'!D12,'Classroom 28 - to school'!D12,'Classroom 29 - to school'!D12,'Classroom 30 - to school'!D12,'Classroom 31 - to school'!D12,'Classroom 32 - to school'!D12,'Classroom 33 - to school'!D12,'Classroom 34 - to school'!D12,'Classroom 35 - to school'!D12)","v":0},{"$f":"SUM('Classroom 21 - to school'!E12,'Classroom 22 - to school'!E12,'Classroom 23 - to school'!E12,'Classroom 24 - to school'!E12,'Classroom 25 - to school'!E12,'Classroom 26 - to school'!E12,'Classroom 27 - to school'!E12,'Classroom 28 - to school'!E12,'Classroom 29 - to school'!E12,'Classroom 30 - to school'!E12,'Classroom 31 - to school'!E12,'Classroom 32 - to school'!E12,'Classroom 33 - to school'!E12,'Classroom 34 - to school'!E12,'Classroom 35 - to school'!E12)","v":0},{"$f":"SUM('Classroom 21 - to school'!F12,'Classroom 22 - to school'!F12,'Classroom 23 - to school'!F12,'Classroom 24 - to school'!F12,'Classroom 25 - to school'!F12,'Classroom 26 - to school'!F12,'Classroom 27 - to school'!F12,'Classroom 28 - to school'!F12,'Classroom 29 - to school'!F12,'Classroom 30 - to school'!F12,'Classroom 31 - to school'!F12,'Classroom 32 - to school'!F12,'Classroom 33 - to school'!F12,'Classroom 34 - to school'!F12,'Classroom 35 - to school'!F12)","v":0},{"$f":"SUM('Classroom 21 - to school'!G12,'Classroom 22 - to school'!G12,'Classroom 23 - to school'!G12,'Classroom 24 - to school'!G12,'Classroom 25 - to school'!G12,'Classroom 26 - to school'!G12,'Classroom 27 - to school'!G12,'Classroom 28 - to school'!G12,'Classroom 29 - to school'!G12,'Classroom 30 - to school'!G12,'Classroom 31 - to school'!G12,'Classroom 32 - to school'!G12,'Classroom 33 - to school'!G12,'Classroom 34 - to school'!G12,'Classroom 35 - to school'!G12)","v":0},{"$f":"SUM('Classroom 21 - to school'!H12,'Classroom 22 - to school'!H12,'Classroom 23 - to school'!H12,'Classroom 24 - to school'!H12,'Classroom 25 - to school'!H12,'Classroom 26 - to school'!H12,'Classroom 27 - to school'!H12,'Classroom 28 - to school'!H12,'Classroom 29 - to school'!H12,'Classroom 30 - to school'!H12,'Classroom 31 - to school'!H12,'Classroom 32 - to school'!H12,'Classroom 33 - to school'!H12,'Classroom 34 - to school'!H12,'Classroom 35 - to school'!H12)","v":0},{"$f":"SUM('Classroom 21 - to school'!I12,'Classroom 22 - to school'!I12,'Classroom 23 - to school'!I12,'Classroom 24 - to school'!I12,'Classroom 25 - to school'!I12,'Classroom 26 - to school'!I12,'Classroom 27 - to school'!I12,'Classroom 28 - to school'!I12,'Classroom 29 - to school'!I12,'Classroom 30 - to school'!I12,'Classroom 31 - to school'!I12,'Classroom 32 - to school'!I12,'Classroom 33 - to school'!I12,'Classroom 34 - to school'!I12,'Classroom 35 - to school'!I12)","v":0},{"$f":"SUM('Classroom 21 - to school'!J12,'Classroom 22 - to school'!J12,'Classroom 23 - to school'!J12,'Classroom 24 - to school'!J12,'Classroom 25 - to school'!J12,'Classroom 26 - to school'!J12,'Classroom 27 - to school'!J12,'Classroom 28 - to school'!J12,'Classroom 29 - to school'!J12,'Classroom 30 - to school'!J12,'Classroom 31 - to school'!J12,'Classroom 32 - to school'!J12,'Classroom 33 - to school'!J12,'Classroom 34 - to school'!J12,'Classroom 35 - to school'!J12)","v":0}]
[]
[]
["Ontario School Number","Weather","Biked (all or most of the way)","Walked (all or most of the way","Rolled (includes skateboard, wheelchair, scooter, etc.)","School Bus (includes any shared vehicles for students only)","Public Transit (all or most of the way. Includes trains, ferries, buses, etc.","Car","# Students absent today","Other","Total\nStudents"]
[{"$f":"'Classroom 1 - to school'!A7","v":"<enter 6-digit number from https://www.ontario.ca/data/ontario-public-school-contact-information> "},"(descriptive)"]
["Monday",null,{"$f":"SUM(B7,B16)","v":0},{"$f":"SUM(C7,C16)","v":0},0,0,{"$f":"SUM(F7,F16)","v":0},0,0,0,{"$f":"SUM(C25:J25)","v":0}]
["Tuesday",null,{"$f":"SUM(B8,B17)","v":0},{"$f":"SUM(C8,C17)","v":0},0,0,0,0,0,0,{"$f":"SUM(C26:J26)","v":0}]
["Wednesday",null,{"$f":"SUM(B9,B18)","v":0},{"$f":"SUM(C9,C18)","v":0},0,0,0,0,0,0,{"$f":"SUM(C27:J27)","v":0}]
["Thursday",null,{"$f":"SUM(B10,B19)","v":0},{"$f":"SUM(C10,C19)","v":0},0,{"$f":"SUM(E10,E19)","v":0},0,0,0,{"$f":"SUM(I10,I19)","v":0},{"$f":"SUM(C28:J28)","v":0}]
["Friday",null,{"$f":"SUM(B11,B20)","v":0},{"$f":"SUM(C11,C20)","v":0},0,0,0,0,0,0,{"$f":"SUM(C29:J29)","v":0}]
["Total",null,{"$f":"SUM(C25:C29)","v":0},0,0,0,0,0,{"$f":"SUM(I25:I29)","v":0},{"$f":"SUM(J25:J29)","v":0},{"$f":"SUM(K25:K29)","v":0}]
["Average",null,{"$f":"AVERAGE(C25:C29)","v":0},0,0,0,0,0,{"$f":"AVERAGE(I25:I29)","v":0},{"$f":"AVERAGE(J25:J29)","v":0},{"$f":"AVERAGE(K25:K29)","v":{"v":0,"d":"0.0"}}]
[]
["# students participating in total",null,null,{"$f":"K30","v":0}]
[]
[]
["SUMMARY - TO SCHOOL (Percentage)"]
[]
[]
["Ontario School Number","Weather","Biked (all or most of the way)","Walked (all or most of the way","Rolled (includes skateboard, wheelchair, scooter, etc.)","School Bus (includes any shared vehicles for students only)","Public Transit (all or most of the way. Includes trains, ferries, buses, etc.","Car","# Students absent today","Other","Total Students"]
[{"$f":"'Classroom 1 - to school'!A7","v":"<enter 6-digit number from https://www.ontario.ca/data/ontario-public-school-contact-information> "},"(descriptive)"]
["Monday",null,{"$f":"C25/$D$33","v":{"$error":"#DIV/0!"}},{"$f":"D25/$D$33","v":{"$error":"#DIV/0!"}},{"$error":"#DIV/0!"},{"$error":"#DIV/0!"},{"$error":"#DIV/0!"},{"$error":"#DIV/0!"},{"$error":"#DIV/0!"},{"$error":"#DIV/0!"},{"$f":"SUM(C41:J41)","v":{"$error":"#DIV/0!"}}]
["Tuesday",null,{"$f":"C26/$D$33","v":{"$error":"#DIV/0!"}},{"$error":"#DIV/0!"},{"$error":"#DIV/0!"},{"$error":"#DIV/0!"},{"$error":"#DIV/0!"},{"$error":"#DIV/0!"},{"$error":"#DIV/0!"},{"$error":"#DIV/0!"},{"$f":"SUM(C42:J42)","v":{"$error":"#DIV/0!"}}]
["Wednesday",null,{"$error":"#DIV/0!"},{"$error":"#DIV/0!"},{"$error":"#DIV/0!"},{"$error":"#DIV/0!"},{"$error":"#DIV/0!"},{"$error":"#DIV/0!"},{"$error":"#DIV/0!"},{"$error":"#DIV/0!"},{"$f":"SUM(C43:J43)","v":{"$error":"#DIV/0!"}}]
["Thursday",null,{"$error":"#DIV/0!"},{"$error":"#DIV/0!"},{"$error":"#DIV/0!"},{"$error":"#DIV/0!"},{"$error":"#DIV/0!"},{"$error":"#DIV/0!"},{"$error":"#DIV/0!"},{"$error":"#DIV/0!"},{"$f":"SUM(C44:J44)","v":{"$error":"#DIV/0!"}}]
["Friday",null,{"$error":"#DIV/0!"},{"$error":"#DIV/0!"},{"$error":"#DIV/0!"},{"$error":"#DIV/0!"},{"$error":"#DIV/0!"},{"$error":"#DIV/0!"},{"$error":"#DIV/0!"},{"$error":"#DIV/0!"},{"$f":"SUM(C45:J45)","v":{"$error":"#DIV/0!"}}]
["Total",null,{"$f":"SUM(C41:C45)","v":{"$error":"#DIV/0!"}},{"$error":"#DIV/0!"},{"$error":"#DIV/0!"},{"$error":"#DIV/0!"},{"$error":"#DIV/0!"},{"$error":"#DIV/0!"},{"$error":"#DIV/0!"},{"$error":"#DIV/0!"},{"$error":"#DIV/0!"}]
["Average",null,{"$f":"AVERAGE(C41:C45)","v":{"$error":"#DIV/0!"}},{"$error":"#DIV/0!"},{"$error":"#DIV/0!"},{"$error":"#DIV/0!"},{"$error":"#DIV/0!"},{"$error":"#DIV/0!"},{"$f":"AVERAGE(I41:I45)","v":{"$error":"#DIV/0!"}},{"$f":"AVERAGE(J41:J45)","v":{"$error":"#DIV/0!"}},{"$f":"AVERAGE(K41:K45)","v":{"$error":"#DIV/0!"}}]

{"sheet":"SUMMARY - FROM SCHOOL","index":72,"n_rows":47,"n_cols":11,"rows_kept":47,"merged":[[2,0,2,2],[22,2,23,2],[22,3,23,3],[22,4,23,4],[22,5,23,5],[22,6,23,6],[22,7,23,7],[22,8,23,8],[22,9,23,9],[22,10,23,10],[32,0,32,2],[38,2,39,2],[38,3,39,3],[38,4,39,4],[38,5,39,5],[38,6,39,6],[38,7,39,7],[38,8,39,8],[38,9,39,9],[38,10,39,10]]}
[]
["SUMMARY - FROM SCHOOL (Frequency)"]
[]
[]
[null,"Biked","Walked","Rolled","School Bus","Pub Trans","Car","#Absent","Other"]
[null,"Count1","Count1","Count1","Count1","Count1","Count1","Count1","Count1"]
["Monday",{"$f":"SUM('Classroom 1 - from school'!C8,'Classroom 2 - from school'!C8,'Classroom 3 - from school'!C8,'Classroom 4 - from school'!C8,'Classroom 5 - from school'!C8,'Classroom 6 - from school'!C8,'Classroom 7 - from school'!C8,'Classroom 8 - from school'!C8,'Classroom 9 - from school'!C8,'Classroom 10 - from school'!C8,'Classroom 11 - from school'!C8,'Classroom 12 - from school'!C8,'Classroom 13 - from school'!C8,'Classroom 14 - from school'!C8,'Classroom 15 - from school'!C8,'Classroom 16 - from school'!C8,'Classroom 17 - from school'!C8,'Classroom 18 - from school'!C8,'Classroom 19 - from school'!C8,'Classroom 20 - from school'!C8)","v":0},{"$f":"SUM('Classroom 1 - from school'!D8,'Classroom 2 - from school'!D8,'Classroom 3 - from school'!D8,'Classroom 4 - from school'!D8,'Classroom 5 - from school'!D8,'Classroom 6 - from school'!D8,'Classroom 7 - from school'!D8,'Classroom 8 - from school'!D8,'Classroom 9 - from school'!D8,'Classroom 10 - from school'!D8,'Classroom 11 - from school'!D8,'Classroom 12 - from school'!D8,'Classroom 13 - from school'!D8,'Classroom 14 - from school'!D8,'Classroom 15 - from school'!D8,'Classroom 16 - from school'!D8,'Classroom 17 - from school'!D8,'Classroom 18 - from school'!D8,'Classroom 19 - from school'!D8,'Classroom 20 - from school'!D8)","v":0},{"$f":"SUM('Classroom 1 - from school'!E8,'Classroom 2 - from school'!E8,'Classroom 3 - from school'!E8,'Classroom 4 - from school'!E8,'Classroom 5 - from school'!E8,'Classroom 6 - from school'!E8,'Classroom 7 - from school'!E8,'Classroom 8 - from school'!E8,'Classroom 9 - from school'!E8,'Classroom 10 - from school'!E8,'Classroom 11 - from school'!E8,'Classroom 12 - from school'!E8,'Classroom 13 - from school'!E8,'Classroom 14 - from school'!E8,'Classroom 15 - from school'!E8,'Classroom 16 - from school'!E8,'Classroom 17 - from school'!E8,'Classroom 18 - from school'!E8,'Classroom 19 - from school'!E8,'Classroom 20 - from school'!E8)","v":0},{"$f":"SUM('Classroom 1 - from school'!F8,'Classroom 2 - from school'!F8,'Classroom 3 - from school'!F8,'Classroom 4 - from school'!F8,'Classroom 5 - from school'!F8,'Classroom 6 - from school'!F8,'Classroom 7 - from school'!F8,'Classroom 8 - from school'!F8,'Classroom 9 - from school'!F8,'Classroom 10 - from school'!F8,'Classroom 11 - from school'!F8,'Classroom 12 - from school'!F8,'Classroom 13 - from school'!F8,'Classroom 14 - from school'!F8,'Classroom 15 - from school'!F8,'Classroom 16 - from school'!F8,'Classroom 17 - from school'!F8,'Classroom 18 - from school'!F8,'Classroom 19 - from school'!F8,'Classroom 20 - from school'!F8)","v":0},{"$f":"SUM('Classroom 1 - from school'!G8,'Classroom 2 - from school'!G8,'Classroom 3 - from school'!G8,'Classroom 4 - from school'!G8,'Classroom 5 - from school'!G8,'Classroom 6 - from school'!G8,'Classroom 7 - from school'!G8,'Classroom 8 - from school'!G8,'Classroom 9 - from school'!G8,'Classroom 10 - from school'!G8,'Classroom 11 - from school'!G8,'Classroom 12 - from school'!G8,'Classroom 13 - from school'!G8,'Classroom 14 - from school'!G8,'Classroom 15 - from school'!G8,'Classroom 16 - from school'!G8,'Classroom 17 - from school'!G8,'Classroom 18 - from school'!G8,'Classroom 19 - from school'!G8,'Classroom 20 - from school'!G8)","v":0},{"$f":"SUM('Classroom 1 - from school'!H8,'Classroom 2 - from school'!H8,'Classroom 3 - from school'!H8,'Classroom 4 - from school'!H8,'Classroom 5 - from school'!H8,'Classroom 6 - from school'!H8,'Classroom 7 - from school'!H8,'Classroom 8 - from school'!H8,'Classroom 9 - from school'!H8,'Classroom 10 - from school'!H8,'Classroom 11 - from school'!H8,'Classroom 12 - from school'!H8,'Classroom 13 - from school'!H8,'Classroom 14 - from school'!H8,'Classroom 15 - from school'!H8,'Classroom 16 - from school'!H8,'Classroom 17 - from school'!H8,'Classroom 18 - from school'!H8,'Classroom 19 - from school'!H8,'Classroom 20 - from school'!H8)","v":0},{"$f":"SUM('Classroom 1 - from school'!I8,'Classroom 2 - from school'!I8,'Classroom 3 - from school'!I8,'Classroom 4 - from school'!I8,'Classroom 5 - from school'!I8,'Classroom 6 - from school'!I8,'Classroom 7 - from school'!I8,'Classroom 8 - from school'!I8,'Classroom 9 - from school'!I8,'Classroom 10 - from school'!I8,'Classroom 11 - from school'!I8,'Classroom 12 - from school'!I8,'Classroom 13 - from school'!I8,'Classroom 14 - from school'!I8,'Classroom 15 - from school'!I8,'Classroom 16 - from school'!I8,'Classroom 17 - from school'!I8,'Classroom 18 - from school'!I8,'Classroom 19 - from school'!I8,'Classroom 20 - from school'!I8)","v":0},{"$f":"SUM('Classroom 1 - from school'!J8,'Classroom 2 - from school'!J8,'Classroom 3 - from school'!J8,'Classroom 4 - from school'!J8,'Classroom 5 - from school'!J8,'Classroom 6 - from school'!J8,'Classroom 7 - from school'!J8,'Classroom 8 - from school'!J8,'Classroom 9 - from school'!J8,'Classroom 10 - from school'!J8,'Classroom 11 - from school'!J8,'Classroom 12 - from school'!J8,'Classroom 13 - from school'!J8,'Classroom 14 - from school'!J8,'Classroom 15 - from school'!J8,'Classroom 16 - from school'!J8,'Classroom 17 - from school'!J8,'Classroom 18 - from school'!J8,'Classroom 19 - from school'!J8,'Classroom 20 - from school'!J8)","v":0}]
["Tuesday",{"$f":"SUM('Classroom 1 - from school'!C9,'Classroom 2 - from school'!C9,'Classroom 3 - from school'!C9,'Classroom 4 - from school'!C9,'Classroom 5 - from school'!C9,'Classroom 6 - from school'!C9,'Classroom 7 - from school'!C9,'Classroom 8 - from school'!C9,'Classroom 9 - from school'!C9,'Classroom 10 - from school'!C9,'Classroom 11 - from school'!C9,'Classroom 12 - from school'!C9,'Classroom 13 - from school'!C9,'Classroom 14 - from school'!C9,'Classroom 15 - from school'!C9,'Classroom 16 - from school'!C9,'Classroom 17 - from school'!C9,'Classroom 18 - from school'!C9,'Classroom 19 - from school'!C9,'Classroom 20 - from school'!C9)","v":0},{"$f":"SUM('Classroom 1 - from school'!D9,'Classroom 2 - from school'!D9,'Classroom 3 - from school'!D9,'Classroom 4 - from school'!D9,'Classroom 5 - from school'!D9,'Classroom 6 - from school'!D9,'Classroom 7 - from school'!D9,'Classroom 8 - from school'!D9,'Classroom 9 - from school'!D9,'Classroom 10 - from school'!D9,'Classroom 11 - from school'!D9,'Classroom 12 - from school'!D9,'Classroom 13 - from school'!D9,'Classroom 14 - from school'!D9,'Classroom 15 - from school'!D9,'Classroom 16 - from school'!D9,'Classroom 17 - from school'!D9,'Classroom 18 - from school'!D9,'Classroom 19 - from school'!D9,'Classroom 20 - from school'!D9)","v":0},{"$f":"SUM('Classroom 1 - from school'!E9,'Classroom 2 - from school'!E9,'Classroom 3 - from school'!E9,'Classroom 4 - from school'!E9,'Classroom 5 - from school'!E9,'Classroom 6 - from school'!E9,'Classroom 7 - from school'!E9,'Classroom 8 - from school'!E9,'Classroom 9 - from school'!E9,'Classroom 10 - from school'!E9,'Classroom 11 - from school'!E9,'Classroom 12 - from school'!E9,'Classroom 13 - from school'!E9,'Classroom 14 - from school'!E9,'Classroom 15 - from school'!E9,'Classroom 16 - from school'!E9,'Classroom 17 - from school'!E9,'Classroom 18 - from school'!E9,'Classroom 19 - from school'!E9,'Classroom 20 - from school'!E9)","v":0},{"$f":"SUM('Classroom 1 - from school'!F9,'Classroom 2 - from school'!F9,'Classroom 3 - from school'!F9,'Classroom 4 - from school'!F9,'Classroom 5 - from school'!F9,'Classroom 6 - from school'!F9,'Classroom 7 - from school'!F9,'Classroom 8 - from school'!F9,'Classroom 9 - from school'!F9,'Classroom 10 - from school'!F9,'Classroom 11 - from school'!F9,'Classroom 12 - from school'!F9,'Classroom 13 - from school'!F9,'Classroom 14 - from school'!F9,'Classroom 15 - from school'!F9,'Classroom 16 - from school'!F9,'Classroom 17 - from school'!F9,'Classroom 18 - from school'!F9,'Classroom 19 - from school'!F9,'Classroom 20 - from school'!F9)","v":0},{"$f":"SUM('Classroom 1 - from school'!G9,'Classroom 2 - from school'!G9,'Classroom 3 - from school'!G9,'Classroom 4 - from school'!G9,'Classroom 5 - from school'!G9,'Classroom 6 - from school'!G9,'Classroom 7 - from school'!G9,'Classroom 8 - from school'!G9,'Classroom 9 - from school'!G9,'Classroom 10 - from school'!G9,'Classroom 11 - from school'!G9,'Classroom 12 - from school'!G9,'Classroom 13 - from school'!G9,'Classroom 14 - from school'!G9,'Classroom 15 - from school'!G9,'Classroom 16 - from school'!G9,'Classroom 17 - from school'!G9,'Classroom 18 - from school'!G9,'Classroom 19 - from school'!G9,'Classroom 20 - from school'!G9)","v":0},{"$f":"SUM('Classroom 1 - from school'!H9,'Classroom 2 - from school'!H9,'Classroom 3 - from school'!H9,'Classroom 4 - from school'!H9,'Classroom 5 - from school'!H9,'Classroom 6 - from school'!H9,'Classroom 7 - from school'!H9,'Classroom 8 - from school'!H9,'Classroom 9 - from school'!H9,'Classroom 10 - from school'!H9,'Classroom 11 - from school'!H9,'Classroom 12 - from school'!H9,'Classroom 13 - from school'!H9,'Classroom 14 - from school'!H9,'Classroom 15 - from school'!H9,'Classroom 16 - from school'!H9,'Classroom 17 - from school'!H9,'Classroom 18 - from school'!H9,'Classroom 19 - from school'!H9,'Classroom 20 - from school'!H9)","v":0},{"$f":"SUM('Classroom 1 - from school'!I9,'Classroom 2 - from school'!I9,'Classroom 3 - from school'!I9,'Classroom 4 - from school'!I9,'Classroom 5 - from school'!I9,'Classroom 6 - from school'!I9,'Classroom 7 - from school'!I9,'Classroom 8 - from school'!I9,'Classroom 9 - from school'!I9,'Classroom 10 - from school'!I9,'Classroom 11 - from school'!I9,'Classroom 12 - from school'!I9,'Classroom 13 - from school'!I9,'Classroom 14 - from school'!I9,'Classroom 15 - from school'!I9,'Classroom 16 - from school'!I9,'Classroom 17 - from school'!I9,'Classroom 18 - from school'!I9,'Classroom 19 - from school'!I9,'Classroom 20 - from school'!I9)","v":0},{"$f":"SUM('Classroom 1 - from school'!J9,'Classroom 2 - from school'!J9,'Classroom 3 - from school'!J9,'Classroom 4 - from school'!J9,'Classroom 5 - from school'!J9,'Classroom 6 - from school'!J9,'Classroom 7 - from school'!J9,'Classroom 8 - from school'!J9,'Classroom 9 - from school'!J9,'Classroom 10 - from school'!J9,'Classroom 11 - from school'!J9,'Classroom 12 - from school'!J9,'Classroom 13 - from school'!J9,'Classroom 14 - from school'!J9,'Classroom 15 - from school'!J9,'Classroom 16 - from school'!J9,'Classroom 17 - from school'!J9,'Classroom 18 - from school'!J9,'Classroom 19 - from school'!J9,'Classroom 20 - from school'!J9)","v":0}]
["Wednesday",{"$f":"SUM('Classroom 1 - from school'!C10,'Classroom 2 - from school'!C10,'Classroom 3 - from school'!C10,'Classroom 4 - from school'!C10,'Classroom 5 - from school'!C10,'Classroom 6 - from school'!C10,'Classroom 7 - from school'!C10,'Classroom 8 - from school'!C10,'Classroom 9 - from school'!C10,'Classroom 10 - from school'!C10,'Classroom 11 - from school'!C10,'Classroom 12 - from school'!C10,'Classroom 13 - from school'!C10,'Classroom 14 - from school'!C10,'Classroom 15 - from school'!C10,'Classroom 16 - from school'!C10,'Classroom 17 - from school'!C10,'Classroom 18 - from school'!C10,'Classroom 19 - from school'!C10,'Classroom 20 - from school'!C10)","v":0},{"$f":"SUM('Classroom 1 - from school'!D10,'Classroom 2 - from school'!D10,'Classroom 3 - from school'!D10,'Classroom 4 - from school'!D10,'Classroom 5 - from school'!D10,'Classroom 6 - from school'!D10,'Classroom 7 - from school'!D10,'Classroom 8 - from school'!D10,'Classroom 9 - from school'!D10,'Classroom 10 - from school'!D10,'Classroom 11 - from school'!D10,'Classroom 12 - from school'!D10,'Classroom 13 - from school'!D10,'Classroom 14 - from school'!D10,'Classroom 15 - from school'!D10,'Classroom 16 - from school'!D10,'Classroom 17 - from school'!D10,'Classroom 18 - from school'!D10,'Classroom 19 - from school'!D10,'Classroom 20 - from school'!D10)","v":0},{"$f":"SUM('Classroom 1 - from school'!E10,'Classroom 2 - from school'!E10,'Classroom 3 - from school'!E10,'Classroom 4 - from school'!E10,'Classroom 5 - from school'!E10,'Classroom 6 - from school'!E10,'Classroom 7 - from school'!E10,'Classroom 8 - from school'!E10,'Classroom 9 - from school'!E10,'Classroom 10 - from school'!E10,'Classroom 11 - from school'!E10,'Classroom 12 - from school'!E10,'Classroom 13 - from school'!E10,'Classroom 14 - from school'!E10,'Classroom 15 - from school'!E10,'Classroom 16 - from school'!E10,'Classroom 17 - from school'!E10,'Classroom 18 - from school'!E10,'Classroom 19 - from school'!E10,'Classroom 20 - from school'!E10)","v":0},{"$f":"SUM('Classroom 1 - from school'!F10,'Classroom 2 - from school'!F10,'Classroom 3 - from school'!F10,'Classroom 4 - from school'!F10,'Classroom 5 - from school'!F10,'Classroom 6 - from school'!F10,'Classroom 7 - from school'!F10,'Classroom 8 - from school'!F10,'Classroom 9 - from school'!F10,'Classroom 10 - from school'!F10,'Classroom 11 - from school'!F10,'Classroom 12 - from school'!F10,'Classroom 13 - from school'!F10,'Classroom 14 - from school'!F10,'Classroom 15 - from school'!F10,'Classroom 16 - from school'!F10,'Classroom 17 - from school'!F10,'Classroom 18 - from school'!F10,'Classroom 19 - from school'!F10,'Classroom 20 - from school'!F10)","v":0},{"$f":"SUM('Classroom 1 - from school'!G10,'Classroom 2 - from school'!G10,'Classroom 3 - from school'!G10,'Classroom 4 - from school'!G10,'Classroom 5 - from school'!G10,'Classroom 6 - from school'!G10,'Classroom 7 - from school'!G10,'Classroom 8 - from school'!G10,'Classroom 9 - from school'!G10,'Classroom 10 - from school'!G10,'Classroom 11 - from school'!G10,'Classroom 12 - from school'!G10,'Classroom 13 - from school'!G10,'Classroom 14 - from school'!G10,'Classroom 15 - from school'!G10,'Classroom 16 - from school'!G10,'Classroom 17 - from school'!G10,'Classroom 18 - from school'!G10,'Classroom 19 - from school'!G10,'Classroom 20 - from school'!G10)","v":0},{"$f":"SUM('Classroom 1 - from school'!H10,'Classroom 2 - from school'!H10,'Classroom 3 - from school'!H10,'Classroom 4 - from school'!H10,'Classroom 5 - from school'!H10,'Classroom 6 - from school'!H10,'Classroom 7 - from school'!H10,'Classroom 8 - from school'!H10,'Classroom 9 - from school'!H10,'Classroom 10 - from school'!H10,'Classroom 11 - from school'!H10,'Classroom 12 - from school'!H10,'Classroom 13 - from school'!H10,'Classroom 14 - from school'!H10,'Classroom 15 - from school'!H10,'Classroom 16 - from school'!H10,'Classroom 17 - from school'!H10,'Classroom 18 - from school'!H10,'Classroom 19 - from school'!H10,'Classroom 20 - from school'!H10)","v":0},{"$f":"SUM('Classroom 1 - from school'!I10,'Classroom 2 - from school'!I10,'Classroom 3 - from school'!I10,'Classroom 4 - from school'!I10,'Classroom 5 - from school'!I10,'Classroom 6 - from school'!I10,'Classroom 7 - from school'!I10,'Classroom 8 - from school'!I10,'Classroom 9 - from school'!I10,'Classroom 10 - from school'!I10,'Classroom 11 - from school'!I10,'Classroom 12 - from school'!I10,'Classroom 13 - from school'!I10,'Classroom 14 - from school'!I10,'Classroom 15 - from school'!I10,'Classroom 16 - from school'!I10,'Classroom 17 - from school'!I10,'Classroom 18 - from school'!I10,'Classroom 19 - from school'!I10,'Classroom 20 - from school'!I10)","v":0},{"$f":"SUM('Classroom 1 - from school'!J10,'Classroom 2 - from school'!J10,'Classroom 3 - from school'!J10,'Classroom 4 - from school'!J10,'Classroom 5 - from school'!J10,'Classroom 6 - from school'!J10,'Classroom 7 - from school'!J10,'Classroom 8 - from school'!J10,'Classroom 9 - from school'!J10,'Classroom 10 - from school'!J10,'Classroom 11 - from school'!J10,'Classroom 12 - from school'!J10,'Classroom 13 - from school'!J10,'Classroom 14 - from school'!J10,'Classroom 15 - from school'!J10,'Classroom 16 - from school'!J10,'Classroom 17 - from school'!J10,'Classroom 18 - from school'!J10,'Classroom 19 - from school'!J10,'Classroom 20 - from school'!J10)","v":0}]
["Thursday",{"$f":"SUM('Classroom 1 - from school'!C11,'Classroom 2 - from school'!C11,'Classroom 3 - from school'!C11,'Classroom 4 - from school'!C11,'Classroom 5 - from school'!C11,'Classroom 6 - from school'!C11,'Classroom 7 - from school'!C11,'Classroom 8 - from school'!C11,'Classroom 9 - from school'!C11,'Classroom 10 - from school'!C11,'Classroom 11 - from school'!C11,'Classroom 12 - from school'!C11,'Classroom 13 - from school'!C11,'Classroom 14 - from school'!C11,'Classroom 15 - from school'!C11,'Classroom 16 - from school'!C11,'Classroom 17 - from school'!C11,'Classroom 18 - from school'!C11,'Classroom 19 - from school'!C11,'Classroom 20 - from school'!C11)","v":0},{"$f":"SUM('Classroom 1 - from school'!D11,'Classroom 2 - from school'!D11,'Classroom 3 - from school'!D11,'Classroom 4 - from school'!D11,'Classroom 5 - from school'!D11,'Classroom 6 - from school'!D11,'Classroom 7 - from school'!D11,'Classroom 8 - from school'!D11,'Classroom 9 - from school'!D11,'Classroom 10 - from school'!D11,'Classroom 11 - from school'!D11,'Classroom 12 - from school'!D11,'Classroom 13 - from school'!D11,'Classroom 14 - from school'!D11,'Classroom 15 - from school'!D11,'Classroom 16 - from school'!D11,'Classroom 17 - from school'!D11,'Classroom 18 - from school'!D11,'Classroom 19 - from school'!D11,'Classroom 20 - from school'!D11)","v":0},{"$f":"SUM('Classroom 1 - from school'!E11,'Classroom 2 - from school'!E11,'Classroom 3 - from school'!E11,'Classroom 4 - from school'!E11,'Classroom 5 - from school'!E11,'Classroom 6 - from school'!E11,'Classroom 7 - from school'!E11,'Classroom 8 - from school'!E11,'Classroom 9 - from school'!E11,'Classroom 10 - from school'!E11,'Classroom 11 - from school'!E11,'Classroom 12 - from school'!E11,'Classroom 13 - from school'!E11,'Classroom 14 - from school'!E11,'Classroom 15 - from school'!E11,'Classroom 16 - from school'!E11,'Classroom 17 - from school'!E11,'Classroom 18 - from school'!E11,'Classroom 19 - from school'!E11,'Classroom 20 - from school'!E11)","v":0},{"$f":"SUM('Classroom 1 - from school'!F11,'Classroom 2 - from school'!F11,'Classroom 3 - from school'!F11,'Classroom 4 - from school'!F11,'Classroom 5 - from school'!F11,'Classroom 6 - from school'!F11,'Classroom 7 - from school'!F11,'Classroom 8 - from school'!F11,'Classroom 9 - from school'!F11,'Classroom 10 - from school'!F11,'Classroom 11 - from school'!F11,'Classroom 12 - from school'!F11,'Classroom 13 - from school'!F11,'Classroom 14 - from school'!F11,'Classroom 15 - from school'!F11,'Classroom 16 - from school'!F11,'Classroom 17 - from school'!F11,'Classroom 18 - from school'!F11,'Classroom 19 - from school'!F11,'Classroom 20 - from school'!F11)","v":0},{"$f":"SUM('Classroom 1 - from school'!G11,'Classroom 2 - from school'!G11,'Classroom 3 - from school'!G11,'Classroom 4 - from school'!G11,'Classroom 5 - from school'!G11,'Classroom 6 - from school'!G11,'Classroom 7 - from school'!G11,'Classroom 8 - from school'!G11,'Classroom 9 - from school'!G11,'Classroom 10 - from school'!G11,'Classroom 11 - from school'!G11,'Classroom 12 - from school'!G11,'Classroom 13 - from school'!G11,'Classroom 14 - from school'!G11,'Classroom 15 - from school'!G11,'Classroom 16 - from school'!G11,'Classroom 17 - from school'!G11,'Classroom 18 - from school'!G11,'Classroom 19 - from school'!G11,'Classroom 20 - from school'!G11)","v":0},{"$f":"SUM('Classroom 1 - from school'!H11,'Classroom 2 - from school'!H11,'Classroom 3 - from school'!H11,'Classroom 4 - from school'!H11,'Classroom 5 - from school'!H11,'Classroom 6 - from school'!H11,'Classroom 7 - from school'!H11,'Classroom 8 - from school'!H11,'Classroom 9 - from school'!H11,'Classroom 10 - from school'!H11,'Classroom 11 - from school'!H11,'Classroom 12 - from school'!H11,'Classroom 13 - from school'!H11,'Classroom 14 - from school'!H11,'Classroom 15 - from school'!H11,'Classroom 16 - from school'!H11,'Classroom 17 - from school'!H11,'Classroom 18 - from school'!H11,'Classroom 19 - from school'!H11,'Classroom 20 - from school'!H11)","v":0},{"$f":"SUM('Classroom 1 - from school'!I11,'Classroom 2 - from school'!I11,'Classroom 3 - from school'!I11,'Classroom 4 - from school'!I11,'Classroom 5 - from school'!I11,'Classroom 6 - from school'!I11,'Classroom 7 - from school'!I11,'Classroom 8 - from school'!I11,'Classroom 9 - from school'!I11,'Classroom 10 - from school'!I11,'Classroom 11 - from school'!I11,'Classroom 12 - from school'!I11,'Classroom 13 - from school'!I11,'Classroom 14 - from school'!I11,'Classroom 15 - from school'!I11,'Classroom 16 - from school'!I11,'Classroom 17 - from school'!I11,'Classroom 18 - from school'!I11,'Classroom 19 - from school'!I11,'Classroom 20 - from school'!I11)","v":0},{"$f":"SUM('Classroom 1 - from school'!J11,'Classroom 2 - from school'!J11,'Classroom 3 - from school'!J11,'Classroom 4 - from school'!J11,'Classroom 5 - from school'!J11,'Classroom 6 - from school'!J11,'Classroom 7 - from school'!J11,'Classroom 8 - from school'!J11,'Classroom 9 - from school'!J11,'Classroom 10 - from school'!J11,'Classroom 11 - from school'!J11,'Classroom 12 - from school'!J11,'Classroom 13 - from school'!J11,'Classroom 14 - from school'!J11,'Classroom 15 - from school'!J11,'Classroom 16 - from school'!J11,'Classroom 17 - from school'!J11,'Classroom 18 - from school'!J11,'Classroom 19 - from school'!J11,'Classroom 20 - from school'!J11)","v":0}]
["Friday",{"$f":"SUM('Classroom 1 - from school'!C12,'Classroom 2 - from school'!C12,'Classroom 3 - from school'!C12,'Classroom 4 - from school'!C12,'Classroom 5 - from school'!C12,'Classroom 6 - from school'!C12,'Classroom 7 - from school'!C12,'Classroom 8 - from school'!C12,'Classroom 9 - from school'!C12,'Classroom 10 - from school'!C12,'Classroom 11 - from school'!C12,'Classroom 12 - from school'!C12,'Classroom 13 - from school'!C12,'Classroom 14 - from school'!C12,'Classroom 15 - from school'!C12,'Classroom 16 - from school'!C12,'Classroom 17 - from school'!C12,'Classroom 18 - from school'!C12,'Classroom 19 - from school'!C12,'Classroom 20 - from school'!C12)","v":0},{"$f":"SUM('Classroom 1 - from school'!D12,'Classroom 2 - from school'!D12,'Classroom 3 - from school'!D12,'Classroom 4 - from school'!D12,'Classroom 5 - from school'!D12,'Classroom 6 - from school'!D12,'Classroom 7 - from school'!D12,'Classroom 8 - from school'!D12,'Classroom 9 - from school'!D12,'Classroom 10 - from school'!D12,'Classroom 11 - from school'!D12,'Classroom 12 - from school'!D12,'Classroom 13 - from school'!D12,'Classroom 14 - from school'!D12,'Classroom 15 - from school'!D12,'Classroom 16 - from school'!D12,'Classroom 17 - from school'!D12,'Classroom 18 - from school'!D12,'Classroom 19 - from school'!D12,'Classroom 20 - from school'!D12)","v":0},{"$f":"SUM('Classroom 1 - from school'!E12,'Classroom 2 - from school'!E12,'Classroom 3 - from school'!E12,'Classroom 4 - from school'!E12,'Classroom 5 - from school'!E12,'Classroom 6 - from school'!E12,'Classroom 7 - from school'!E12,'Classroom 8 - from school'!E12,'Classroom 9 - from school'!E12,'Classroom 10 - from school'!E12,'Classroom 11 - from school'!E12,'Classroom 12 - from school'!E12,'Classroom 13 - from school'!E12,'Classroom 14 - from school'!E12,'Classroom 15 - from school'!E12,'Classroom 16 - from school'!E12,'Classroom 17 - from school'!E12,'Classroom 18 - from school'!E12,'Classroom 19 - from school'!E12,'Classroom 20 - from school'!E12)","v":0},{"$f":"SUM('Classroom 1 - from school'!F12,'Classroom 2 - from school'!F12,'Classroom 3 - from school'!F12,'Classroom 4 - from school'!F12,'Classroom 5 - from school'!F12,'Classroom 6 - from school'!F12,'Classroom 7 - from school'!F12,'Classroom 8 - from school'!F12,'Classroom 9 - from school'!F12,'Classroom 10 - from school'!F12,'Classroom 11 - from school'!F12,'Classroom 12 - from school'!F12,'Classroom 13 - from school'!F12,'Classroom 14 - from school'!F12,'Classroom 15 - from school'!F12,'Classroom 16 - from school'!F12,'Classroom 17 - from school'!F12,'Classroom 18 - from school'!F12,'Classroom 19 - from school'!F12,'Classroom 20 - from school'!F12)","v":0},{"$f":"SUM('Classroom 1 - from school'!G12,'Classroom 2 - from school'!G12,'Classroom 3 - from school'!G12,'Classroom 4 - from school'!G12,'Classroom 5 - from school'!G12,'Classroom 6 - from school'!G12,'Classroom 7 - from school'!G12,'Classroom 8 - from school'!G12,'Classroom 9 - from school'!G12,'Classroom 10 - from school'!G12,'Classroom 11 - from school'!G12,'Classroom 12 - from school'!G12,'Classroom 13 - from school'!G12,'Classroom 14 - from school'!G12,'Classroom 15 - from school'!G12,'Classroom 16 - from school'!G12,'Classroom 17 - from school'!G12,'Classroom 18 - from school'!G12,'Classroom 19 - from school'!G12,'Classroom 20 - from school'!G12)","v":0},{"$f":"SUM('Classroom 1 - from school'!H12,'Classroom 2 - from school'!H12,'Classroom 3 - from school'!H12,'Classroom 4 - from school'!H12,'Classroom 5 - from school'!H12,'Classroom 6 - from school'!H12,'Classroom 7 - from school'!H12,'Classroom 8 - from school'!H12,'Classroom 9 - from school'!H12,'Classroom 10 - from school'!H12,'Classroom 11 - from school'!H12,'Classroom 12 - from school'!H12,'Classroom 13 - from school'!H12,'Classroom 14 - from school'!H12,'Classroom 15 - from school'!H12,'Classroom 16 - from school'!H12,'Classroom 17 - from school'!H12,'Classroom 18 - from school'!H12,'Classroom 19 - from school'!H12,'Classroom 20 - from school'!H12)","v":0},{"$f":"SUM('Classroom 1 - from school'!I12,'Classroom 2 - from school'!I12,'Classroom 3 - from school'!I12,'Classroom 4 - from school'!I12,'Classroom 5 - from school'!I12,'Classroom 6 - from school'!I12,'Classroom 7 - from school'!I12,'Classroom 8 - from school'!I12,'Classroom 9 - from school'!I12,'Classroom 10 - from school'!I12,'Classroom 11 - from school'!I12,'Classroom 12 - from school'!I12,'Classroom 13 - from school'!I12,'Classroom 14 - from school'!I12,'Classroom 15 - from school'!I12,'Classroom 16 - from school'!I12,'Classroom 17 - from school'!I12,'Classroom 18 - from school'!I12,'Classroom 19 - from school'!I12,'Classroom 20 - from school'!I12)","v":0},{"$f":"SUM('Classroom 1 - from school'!J12,'Classroom 2 - from school'!J12,'Classroom 3 - from school'!J12,'Classroom 4 - from school'!J12,'Classroom 5 - from school'!J12,'Classroom 6 - from school'!J12,'Classroom 7 - from school'!J12,'Classroom 8 - from school'!J12,'Classroom 9 - from school'!J12,'Classroom 10 - from school'!J12,'Classroom 11 - from school'!J12,'Classroom 12 - from school'!J12,'Classroom 13 - from school'!J12,'Classroom 14 - from school'!J12,'Classroom 15 - from school'!J12,'Classroom 16 - from school'!J12,'Classroom 17 - from school'!J12,'Classroom 18 - from school'!J12,'Classroom 19 - from school'!J12,'Classroom 20 - from school'!J12)","v":0}]
[]
[]
[null,"Biked","Walked","Rolled","School Bus","Pub Trans","Car","#Absent","Other"]
[null,"Count2","Count2","Count2","Count2","Count2","Count2","Count2","Count2"]
["Monday",{"$f":"SUM('Classroom 21 - from school'!C8,'Classroom 22 - from school'!C8,'Classroom 23 - from school'!C8,'Classroom 24 - from school'!C8,'Classroom 25 - from school'!C8,'Classroom 26 - from school'!C8,'Classroom 27 - from school'!C8,'Classroom 28 - from school'!C8,'Classroom 29 - from school'!C8,'Classroom 30 - from school'!C8,'Classroom 31 - from school'!C8,'Classroom 32 - from school'!C8,'Classroom 33 - from school'!C8,'Classroom 34 - from school'!C8,'Classroom 35 - from school'!C8)","v":0},{"$f":"SUM('Classroom 21 - from school'!D8,'Classroom 22 - from school'!D8,'Classroom 23 - from school'!D8,'Classroom 24 - from school'!D8,'Classroom 25 - from school'!D8,'Classroom 26 - from school'!D8,'Classroom 27 - from school'!D8,'Classroom 28 - from school'!D8,'Classroom 29 - from school'!D8,'Classroom 30 - from school'!D8,'Classroom 31 - from school'!D8,'Classroom 32 - from school'!D8,'Classroom 33 - from school'!D8,'Classroom 34 - from school'!D8,'Classroom 35 - from school'!D8)","v":0},{"$f":"SUM('Classroom 21 - from school'!E8,'Classroom 22 - from school'!E8,'Classroom 23 - from school'!E8,'Classroom 24 - from school'!E8,'Classroom 25 - from school'!E8,'Classroom 26 - from school'!E8,'Classroom 27 - from school'!E8,'Classroom 28 - from school'!E8,'Classroom 29 - from school'!E8,'Classroom 30 - from school'!E8,'Classroom 31 - from school'!E8,'Classroom 32 - from school'!E8,'Classroom 33 - from school'!E8,'Classroom 34 - from school'!E8,'Classroom 35 - from school'!E8)","v":0},{"$f":"SUM('Classroom 21 - from school'!F8,'Classroom 22 - from school'!F8,'Classroom 23 - from school'!F8,'Classroom 24 - from school'!F8,'Classroom 25 - from school'!F8,'Classroom 26 - from school'!F8,'Classroom 27 - from school'!F8,'Classroom 28 - from school'!F8,'Classroom 29 - from school'!F8,'Classroom 30 - from school'!F8,'Classroom 31 - from school'!F8,'Classroom 32 - from school'!F8,'Classroom 33 - from school'!F8,'Classroom 34 - from school'!F8,'Classroom 35 - from school'!F8)","v":0},{"$f":"SUM('Classroom 21 - from school'!G8,'Classroom 22 - from school'!G8,'Classroom 23 - from school'!G8,'Classroom 24 - from school'!G8,'Classroom 25 - from school'!G8,'Classroom 26 - from school'!G8,'Classroom 27 - from school'!G8,'Classroom 28 - from school'!G8,'Classroom 29 - from school'!G8,'Classroom 30 - from school'!G8,'Classroom 31 - from school'!G8,'Classroom 32 - from school'!G8,'Classroom 33 - from school'!G8,'Classroom 34 - from school'!G8,'Classroom 35 - from school'!G8)","v":0},{"$f":"SUM('Classroom 21 - from school'!H8,'Classroom 22 - from school'!H8,'Classroom 23 - from school'!H8,'Classroom 24 - from school'!H8,'Classroom 25 - from school'!H8,'Classroom 26 - from school'!H8,'Classroom 27 - from school'!H8,'Classroom 28 - from school'!H8,'Classroom 29 - from school'!H8,'Classroom 30 - from school'!H8,'Classroom 31 - from school'!H8,'Classroom 32 - from school'!H8,'Classroom 33 - from school'!H8,'Classroom 34 - from school'!H8,'Classroom 35 - from school'!H8)","v":0},{"$f":"SUM('Classroom 21 - from school'!I8,'Classroom 22 - from school'!I8,'Classroom 23 - from school'!I8,'Classroom 24 - from school'!I8,'Classroom 25 - from school'!I8,'Classroom 26 - from school'!I8,'Classroom 27 - from school'!I8,'Classroom 28 - from school'!I8,'Classroom 29 - from school'!I8,'Classroom 30 - from school'!I8,'Classroom 31 - from school'!I8,'Classroom 32 - from school'!I8,'Classroom 33 - from school'!I8,'Classroom 34 - from school'!I8,'Classroom 35 - from school'!I8)","v":0},{"$f":"SUM('Classroom 21 - from school'!J8,'Classroom 22 - from school'!J8,'Classroom 23 - from school'!J8,'Classroom 24 - from school'!J8,'Classroom 25 - from school'!J8,'Classroom 26 - from school'!J8,'Classroom 27 - from school'!J8,'Classroom 28 - from school'!J8,'Classroom 29 - from school'!J8,'Classroom 30 - from school'!J8,'Classroom 31 - from school'!J8,'Classroom 32 - from school'!J8,'Classroom 33 - from school'!J8,'Classroom 34 - from school'!J8,'Classroom 35 - from school'!J8)","v":0}]
["Tuesday",{"$f":"SUM('Classroom 21 - from school'!C9,'Classroom 22 - from school'!C9,'Classroom 23 - from school'!C9,'Classroom 24 - from school'!C9,'Classroom 25 - from school'!C9,'Classroom 26 - from school'!C9,'Classroom 27 - from school'!C9,'Classroom 28 - from school'!C9,'Classroom 29 - from school'!C9,'Classroom 30 - from school'!C9,'Classroom 31 - from school'!C9,'Classroom 32 - from school'!C9,'Classroom 33 - from school'!C9,'Classroom 34 - from school'!C9,'Classroom 35 - from school'!C9)","v":0},{"$f":"SUM('Classroom 21 - from school'!D9,'Classroom 22 - from school'!D9,'Classroom 23 - from school'!D9,'Classroom 24 - from school'!D9,'Classroom 25 - from school'!D9,'Classroom 26 - from school'!D9,'Classroom 27 - from school'!D9,'Classroom 28 - from school'!D9,'Classroom 29 - from school'!D9,'Classroom 30 - from school'!D9,'Classroom 31 - from school'!D9,'Classroom 32 - from school'!D9,'Classroom 33 - from school'!D9,'Classroom 34 - from school'!D9,'Classroom 35 - from school'!D9)","v":0},{"$f":"SUM('Classroom 21 - from school'!E9,'Classroom 22 - from school'!E9,'Classroom 23 - from school'!E9,'Classroom 24 - from school'!E9,'Classroom 25 - from school'!E9,'Classroom 26 - from school'!E9,'Classroom 27 - from school'!E9,'Classroom 28 - from school'!E9,'Classroom 29 - from school'!E9,'Classroom 30 - from school'!E9,'Classroom 31 - from school'!E9,'Classroom 32 - from school'!E9,'Classroom 33 - from school'!E9,'Classroom 34 - from school'!E9,'Classroom 35 - from school'!E9)","v":0},{"$f":"SUM('Classroom 21 - from school'!F9,'Classroom 22 - from school'!F9,'Classroom 23 - from school'!F9,'Classroom 24 - from school'!F9,'Classroom 25 - from school'!F9,'Classroom 26 - from school'!F9,'Classroom 27 - from school'!F9,'Classroom 28 - from school'!F9,'Classroom 29 - from school'!F9,'Classroom 30 - from school'!F9,'Classroom 31 - from school'!F9,'Classroom 32 - from school'!F9,'Classroom 33 - from school'!F9,'Classroom 34 - from school'!F9,'Classroom 35 - from school'!F9)","v":0},{"$f":"SUM('Classroom 21 - from school'!G9,'Classroom 22 - from school'!G9,'Classroom 23 - from school'!G9,'Classroom 24 - from school'!G9,'Classroom 25 - from school'!G9,'Classroom 26 - from school'!G9,'Classroom 27 - from school'!G9,'Classroom 28 - from school'!G9,'Classroom 29 - from school'!G9,'Classroom 30 - from school'!G9,'Classroom 31 - from school'!G9,'Classroom 32 - from school'!G9,'Classroom 33 - from school'!G9,'Classroom 34 - from school'!G9,'Classroom 35 - from school'!G9)","v":0},{"$f":"SUM('Classroom 21 - from school'!H9,'Classroom 22 - from school'!H9,'Classroom 23 - from school'!H9,'Classroom 24 - from school'!H9,'Classroom 25 - from school'!H9,'Classroom 26 - from school'!H9,'Classroom 27 - from school'!H9,'Classroom 28 - from school'!H9,'Classroom 29 - from school'!H9,'Classroom 30 - from school'!H9,'Classroom 31 - from school'!H9,'Classroom 32 - from school'!H9,'Classroom 33 - from school'!H9,'Classroom 34 - from school'!H9,'Classroom 35 - from school'!H9)","v":0},{"$f":"SUM('Classroom 21 - from school'!I9,'Classroom 22 - from school'!I9,'Classroom 23 - from school'!I9,'Classroom 24 - from school'!I9,'Classroom 25 - from school'!I9,'Classroom 26 - from school'!I9,'Classroom 27 - from school'!I9,'Classroom 28 - from school'!I9,'Classroom 29 - from school'!I9,'Classroom 30 - from school'!I9,'Classroom 31 - from school'!I9,'Classroom 32 - from school'!I9,'Classroom 33 - from school'!I9,'Classroom 34 - from school'!I9,'Classroom 35 - from school'!I9)","v":0},{"$f":"SUM('Classroom 21 - from school'!J9,'Classroom 22 - from school'!J9,'Classroom 23 - from school'!J9,'Classroom 24 - from school'!J9,'Classroom 25 - from school'!J9,'Classroom 26 - from school'!J9,'Classroom 27 - from school'!J9,'Classroom 28 - from school'!J9,'Classroom 29 - from school'!J9,'Classroom 30 - from school'!J9,'Classroom 31 - from school'!J9,'Classroom 32 - from school'!J9,'Classroom 33 - from school'!J9,'Classroom 34 - from school'!J9,'Classroom 35 - from school'!J9)","v":0}]
["Wednesday",{"$f":"SUM('Classroom 21 - from school'!C10,'Classroom 22 - from school'!C10,'Classroom 23 - from school'!C10,'Classroom 24 - from school'!C10,'Classroom 25 - from school'!C10,'Classroom 26 - from school'!C10,'Classroom 27 - from school'!C10,'Classroom 28 - from school'!C10,'Classroom 29 - from school'!C10,'Classroom 30 - from school'!C10,'Classroom 31 - from school'!C10,'Classroom 32 - from school'!C10,'Classroom 33 - from school'!C10,'Classroom 34 - from school'!C10,'Classroom 35 - from school'!C10)","v":0},{"$f":"SUM('Classroom 21 - from school'!D10,'Classroom 22 - from school'!D10,'Classroom 23 - from school'!D10,'Classroom 24 - from school'!D10,'Classroom 25 - from school'!D10,'Classroom 26 - from school'!D10,'Classroom 27 - from school'!D10,'Classroom 28 - from school'!D10,'Classroom 29 - from school'!D10,'Classroom 30 - from school'!D10,'Classroom 31 - from school'!D10,'Classroom 32 - from school'!D10,'Classroom 33 - from school'!D10,'Classroom 34 - from school'!D10,'Classroom 35 - from school'!D10)","v":0},{"$f":"SUM('Classroom 21 - from school'!E10,'Classroom 22 - from school'!E10,'Classroom 23 - from school'!E10,'Classroom 24 - from school'!E10,'Classroom 25 - from school'!E10,'Classroom 26 - from school'!E10,'Classroom 27 - from school'!E10,'Classroom 28 - from school'!E10,'Classroom 29 - from school'!E10,'Classroom 30 - from school'!E10,'Classroom 31 - from school'!E10,'Classroom 32 - from school'!E10,'Classroom 33 - from school'!E10,'Classroom 34 - from school'!E10,'Classroom 35 - from school'!E10)","v":0},{"$f":"SUM('Classroom 21 - from school'!F10,'Classroom 22 - from school'!F10,'Classroom 23 - from school'!F10,'Classroom 24 - from school'!F10,'Classroom 25 - from school'!F10,'Classroom 26 - from school'!F10,'Classroom 27 - from school'!F10,'Classroom 28 - from school'!F10,'Classroom 29 - from school'!F10,'Classroom 30 - from school'!F10,'Classroom 31 - from school'!F10,'Classroom 32 - from school'!F10,'Classroom 33 - from school'!F10,'Classroom 34 - from school'!F10,'Classroom 35 - from school'!F10)","v":0},{"$f":"SUM('Classroom 21 - from school'!G10,'Classroom 22 - from school'!G10,'Classroom 23 - from school'!G10,'Classroom 24 - from school'!G10,'Classroom 25 - from school'!G10,'Classroom 26 - from school'!G10,'Classroom 27 - from school'!G10,'Classroom 28 - from school'!G10,'Classroom 29 - from school'!G10,'Classroom 30 - from school'!G10,'Classroom 31 - from school'!G10,'Classroom 32 - from school'!G10,'Classroom 33 - from school'!G10,'Classroom 34 - from school'!G10,'Classroom 35 - from school'!G10)","v":0},{"$f":"SUM('Classroom 21 - from school'!H10,'Classroom 22 - from school'!H10,'Classroom 23 - from school'!H10,'Classroom 24 - from school'!H10,'Classroom 25 - from school'!H10,'Classroom 26 - from school'!H10,'Classroom 27 - from school'!H10,'Classroom 28 - from school'!H10,'Classroom 29 - from school'!H10,'Classroom 30 - from school'!H10,'Classroom 31 - from school'!H10,'Classroom 32 - from school'!H10,'Classroom 33 - from school'!H10,'Classroom 34 - from school'!H10,'Classroom 35 - from school'!H10)","v":0},{"$f":"SUM('Classroom 21 - from school'!I10,'Classroom 22 - from school'!I10,'Classroom 23 - from school'!I10,'Classroom 24 - from school'!I10,'Classroom 25 - from school'!I10,'Classroom 26 - from school'!I10,'Classroom 27 - from school'!I10,'Classroom 28 - from school'!I10,'Classroom 29 - from school'!I10,'Classroom 30 - from school'!I10,'Classroom 31 - from school'!I10,'Classroom 32 - from school'!I10,'Classroom 33 - from school'!I10,'Classroom 34 - from school'!I10,'Classroom 35 - from school'!I10)","v":0},{"$f":"SUM('Classroom 21 - from school'!J10,'Classroom 22 - from school'!J10,'Classroom 23 - from school'!J10,'Classroom 24 - from school'!J10,'Classroom 25 - from school'!J10,'Classroom 26 - from school'!J10,'Classroom 27 - from school'!J10,'Classroom 28 - from school'!J10,'Classroom 29 - from school'!J10,'Classroom 30 - from school'!J10,'Classroom 31 - from school'!J10,'Classroom 32 - from school'!J10,'Classroom 33 - from school'!J10,'Classroom 34 - from school'!J10,'Classroom 35 - from school'!J10)","v":0}]
["Thursday",{"$f":"SUM('Classroom 21 - from school'!C11,'Classroom 22 - from school'!C11,'Classroom 23 - from school'!C11,'Classroom 24 - from school'!C11,'Classroom 25 - from school'!C11,'Classroom 26 - from school'!C11,'Classroom 27 - from school'!C11,'Classroom 28 - from school'!C11,'Classroom 29 - from school'!C11,'Classroom 30 - from school'!C11,'Classroom 31 - from school'!C11,'Classroom 32 - from school'!C11,'Classroom 33 - from school'!C11,'Classroom 34 - from school'!C11,'Classroom 35 - from school'!C11)","v":0},{"$f":"SUM('Classroom 21 - from school'!D11,'Classroom 22 - from school'!D11,'Classroom 23 - from school'!D11,'Classroom 24 - from school'!D11,'Classroom 25 - from school'!D11,'Classroom 26 - from school'!D11,'Classroom 27 - from school'!D11,'Classroom 28 - from school'!D11,'Classroom 29 - from school'!D11,'Classroom 30 - from school'!D11,'Classroom 31 - from school'!D11,'Classroom 32 - from school'!D11,'Classroom 33 - from school'!D11,'Classroom 34 - from school'!D11,'Classroom 35 - from school'!D11)","v":0},{"$f":"SUM('Classroom 21 - from school'!E11,'Classroom 22 - from school'!E11,'Classroom 23 - from school'!E11,'Classroom 24 - from school'!E11,'Classroom 25 - from school'!E11,'Classroom 26 - from school'!E11,'Classroom 27 - from school'!E11,'Classroom 28 - from school'!E11,'Classroom 29 - from school'!E11,'Classroom 30 - from school'!E11,'Classroom 31 - from school'!E11,'Classroom 32 - from school'!E11,'Classroom 33 - from school'!E11,'Classroom 34 - from school'!E11,'Classroom 35 - from school'!E11)","v":0},{"$f":"SUM('Classroom 21 - from school'!F11,'Classroom 22 - from school'!F11,'Classroom 23 - from school'!F11,'Classroom 24 - from school'!F11,'Classroom 25 - from school'!F11,'Classroom 26 - from school'!F11,'Classroom 27 - from school'!F11,'Classroom 28 - from school'!F11,'Classroom 29 - from school'!F11,'Classroom 30 - from school'!F11,'Classroom 31 - from school'!F11,'Classroom 32 - from school'!F11,'Classroom 33 - from school'!F11,'Classroom 34 - from school'!F11,'Classroom 35 - from school'!F11)","v":0},{"$f":"SUM('Classroom 21 - from school'!G11,'Classroom 22 - from school'!G11,'Classroom 23 - from school'!G11,'Classroom 24 - from school'!G11,'Classroom 25 - from school'!G11,'Classroom 26 - from school'!G11,'Classroom 27 - from school'!G11,'Classroom 28 - from school'!G11,'Classroom 29 - from school'!G11,'Classroom 30 - from school'!G11,'Classroom 31 - from school'!G11,'Classroom 32 - from school'!G11,'Classroom 33 - from school'!G11,'Classroom 34 - from school'!G11,'Classroom 35 - from school'!G11)","v":0},{"$f":"SUM('Classroom 21 - from school'!H11,'Classroom 22 - from school'!H11,'Classroom 23 - from school'!H11,'Classroom 24 - from school'!H11,'Classroom 25 - from school'!H11,'Classroom 26 - from school'!H11,'Classroom 27 - from school'!H11,'Classroom 28 - from school'!H11,'Classroom 29 - from school'!H11,'Classroom 30 - from school'!H11,'Classroom 31 - from school'!H11,'Classroom 32 - from school'!H11,'Classroom 33 - from school'!H11,'Classroom 34 - from school'!H11,'Classroom 35 - from school'!H11)","v":0},{"$f":"SUM('Classroom 21 - from school'!I11,'Classroom 22 - from school'!I11,'Classroom 23 - from school'!I11,'Classroom 24 - from school'!I11,'Classroom 25 - from school'!I11,'Classroom 26 - from school'!I11,'Classroom 27 - from school'!I11,'Classroom 28 - from school'!I11,'Classroom 29 - from school'!I11,'Classroom 30 - from school'!I11,'Classroom 31 - from school'!I11,'Classroom 32 - from school'!I11,'Classroom 33 - from school'!I11,'Classroom 34 - from school'!I11,'Classroom 35 - from school'!I11)","v":0},{"$f":"SUM('Classroom 21 - from school'!J11,'Classroom 22 - from school'!J11,'Classroom 23 - from school'!J11,'Classroom 24 - from school'!J11,'Classroom 25 - from school'!J11,'Classroom 26 - from school'!J11,'Classroom 27 - from school'!J11,'Classroom 28 - from school'!J11,'Classroom 29 - from school'!J11,'Classroom 30 - from school'!J11,'Classroom 31 - from school'!J11,'Classroom 32 - from school'!J11,'Classroom 33 - from school'!J11,'Classroom 34 - from school'!J11,'Classroom 35 - from school'!J11)","v":0}]
["Friday",{"$f":"SUM('Classroom 21 - from school'!C12,'Classroom 22 - from school'!C12,'Classroom 23 - from school'!C12,'Classroom 24 - from school'!C12,'Classroom 25 - from school'!C12,'Classroom 26 - from school'!C12,'Classroom 27 - from school'!C12,'Classroom 28 - from school'!C12,'Classroom 29 - from school'!C12,'Classroom 30 - from school'!C12,'Classroom 31 - from school'!C12,'Classroom 32 - from school'!C12,'Classroom 33 - from school'!C12,'Classroom 34 - from school'!C12,'Classroom 35 - from school'!C12)","v":0},{"$f":"SUM('Classroom 21 - from school'!D12,'Classroom 22 - from school'!D12,'Classroom 23 - from school'!D12,'Classroom 24 - from school'!D12,'Classroom 25 - from school'!D12,'Classroom 26 - from school'!D12,'Classroom 27 - from school'!D12,'Classroom 28 - from school'!D12,'Classroom 29 - from school'!D12,'Classroom 30 - from school'!D12,'Classroom 31 - from school'!D12,'Classroom 32 - from school'!D12,'Classroom 33 - from school'!D12,'Classroom 34 - from school'!D12,'Classroom 35 - from school'!D12)","v":0},{"$f":"SUM('Classroom 21 - from school'!E12,'Classroom 22 - from school'!E12,'Classroom 23 - from school'!E12,'Classroom 24 - from school'!E12,'Classroom 25 - from school'!E12,'Classroom 26 - from school'!E12,'Classroom 27 - from school'!E12,'Classroom 28 - from school'!E12,'Classroom 29 - from school'!E12,'Classroom 30 - from school'!E12,'Classroom 31 - from school'!E12,'Classroom 32 - from school'!E12,'Classroom 33 - from school'!E12,'Classroom 34 - from school'!E12,'Classroom 35 - from school'!E12)","v":0},{"$f":"SUM('Classroom 21 - from school'!F12,'Classroom 22 - from school'!F12,'Classroom 23 - from school'!F12,'Classroom 24 - from school'!F12,'Classroom 25 - from school'!F12,'Classroom 26 - from school'!F12,'Classroom 27 - from school'!F12,'Classroom 28 - from school'!F12,'Classroom 29 - from school'!F12,'Classroom 30 - from school'!F12,'Classroom 31 - from school'!F12,'Classroom 32 - from school'!F12,'Classroom 33 - from school'!F12,'Classroom 34 - from school'!F12,'Classroom 35 - from school'!F12)","v":0},{"$f":"SUM('Classroom 21 - from school'!G12,'Classroom 22 - from school'!G12,'Classroom 23 - from school'!G12,'Classroom 24 - from school'!G12,'Classroom 25 - from school'!G12,'Classroom 26 - from school'!G12,'Classroom 27 - from school'!G12,'Classroom 28 - from school'!G12,'Classroom 29 - from school'!G12,'Classroom 30 - from school'!G12,'Classroom 31 - from school'!G12,'Classroom 32 - from school'!G12,'Classroom 33 - from school'!G12,'Classroom 34 - from school'!G12,'Classroom 35 - from school'!G12)","v":0},{"$f":"SUM('Classroom 21 - from school'!H12,'Classroom 22 - from school'!H12,'Classroom 23 - from school'!H12,'Classroom 24 - from school'!H12,'Classroom 25 - from school'!H12,'Classroom 26 - from school'!H12,'Classroom 27 - from school'!H12,'Classroom 28 - from school'!H12,'Classroom 29 - from school'!H12,'Classroom 30 - from school'!H12,'Classroom 31 - from school'!H12,'Classroom 32 - from school'!H12,'Classroom 33 - from school'!H12,'Classroom 34 - from school'!H12,'Classroom 35 - from school'!H12)","v":0},{"$f":"SUM('Classroom 21 - from school'!I12,'Classroom 22 - from school'!I12,'Classroom 23 - from school'!I12,'Classroom 24 - from school'!I12,'Classroom 25 - from school'!I12,'Classroom 26 - from school'!I12,'Classroom 27 - from school'!I12,'Classroom 28 - from school'!I12,'Classroom 29 - from school'!I12,'Classroom 30 - from school'!I12,'Classroom 31 - from school'!I12,'Classroom 32 - from school'!I12,'Classroom 33 - from school'!I12,'Classroom 34 - from school'!I12,'Classroom 35 - from school'!I12)","v":0},{"$f":"SUM('Classroom 21 - from school'!J12,'Classroom 22 - from school'!J12,'Classroom 23 - from school'!J12,'Classroom 24 - from school'!J12,'Classroom 25 - from school'!J12,'Classroom 26 - from school'!J12,'Classroom 27 - from school'!J12,'Classroom 28 - from school'!J12,'Classroom 29 - from school'!J12,'Classroom 30 - from school'!J12,'Classroom 31 - from school'!J12,'Classroom 32 - from school'!J12,'Classroom 33 - from school'!J12,'Classroom 34 - from school'!J12,'Classroom 35 - from school'!J12)","v":0}]
[]
[]
["SCHOOL ID","Weather","Biked (all or most of the way)","Walked (all or most of the way","Rolled (includes skateboard, wheelchair, scooter, etc.)","School Bus (includes any shared vehicles for students only)","Public Transit (all or most of the way. Includes trains, ferries, buses, etc.","Car","# Students absent today","Other","Total Students"]
[{"$f":"'Classroom 1 - to school'!A7","v":"<enter 6-digit number from https://www.ontario.ca/data/ontario-public-school-contact-information> "},"(descriptive)"]
["Monday",null,{"$f":"SUM(B7,B16)","v":0},{"$f":"SUM(C7,C16)","v":0},0,0,0,0,0,0,{"$f":"SUM(C25:J25)","v":0}]
["Tuesday",null,0,0,0,0,0,0,0,0,{"$f":"SUM(C26:J26)","v":0}]
["Wednesday",null,0,0,0,0,0,{"$f":"SUM(G9,G18)","v":0},0,0,{"$f":"SUM(C27:J27)","v":0}]
["Thursday",null,0,0,{"$f":"SUM(D10,D19)","v":0},0,0,0,0,0,{"$f":"SUM(C28:J28)","v":0}]
["Friday",null,0,0,0,0,0,0,0,0,{"$f":"SUM(C29:J29)","v":0}]
["Total",null,{"$f":"SUM(C25:C29)","v":0},0,0,0,0,0,0,0,0]
["Average",null,{"$f":"AVERAGE(C25:C29)","v":0},0,0,0,0,0,0,0,{"v":0,"d":"0.0"}]
[]
["# students participating in total",null,null,{"$f":"K30","v":0}]
[]
[]
["SUMMARY - FROM SCHOOL (Percentage)"]
[]
[]
["SCHOOL ID","Weather","Biked (all or most of the way)","Walked (all or most of the way","Rolled (includes skateboard, wheelchair, scooter, etc.)","School Bus (includes any shared vehicles for students only)","Public Transit (all or most of the way. Includes trains, ferries, buses, etc.","Car","# Students absent today","Other","Total Students"]
[{"$f":"'Classroom 1 - to school'!A7","v":"<enter 6-digit number from https://www.ontario.ca/data/ontario-public-school-contact-information> "},"(descriptive)"]
["Monday",null,{"$f":"C25/$D$33","v":{"$error":"#DIV/0!"}},{"$f":"D25/$D$33","v":{"$error":"#DIV/0!"}},{"$error":"#DIV/0!"},{"$error":"#DIV/0!"},{"$error":"#DIV/0!"},{"$error":"#DIV/0!"},{"$error":"#DIV/0!"},{"$error":"#DIV/0!"},{"$f":"SUM(C41:J41)","v":{"$error":"#DIV/0!"}}]
["Tuesday",null,{"$f":"C26/$D$33","v":{"$error":"#DIV/0!"}},{"$error":"#DIV/0!"},{"$error":"#DIV/0!"},{"$error":"#DIV/0!"},{"$error":"#DIV/0!"},{"$error":"#DIV/0!"},{"$error":"#DIV/0!"},{"$error":"#DIV/0!"},{"$f":"SUM(C42:J42)","v":{"$error":"#DIV/0!"}}]
["Wednesday",null,{"$error":"#DIV/0!"},{"$error":"#DIV/0!"},{"$error":"#DIV/0!"},{"$error":"#DIV/0!"},{"$error":"#DIV/0!"},{"$error":"#DIV/0!"},{"$error":"#DIV/0!"},{"$error":"#DIV/0!"},{"$f":"SUM(C43:J43)","v":{"$error":"#DIV/0!"}}]
["Thursday",null,{"$error":"#DIV/0!"},{"$error":"#DIV/0!"},{"$error":"#DIV/0!"},{"$error":"#DIV/0!"},{"$error":"#DIV/0!"},{"$error":"#DIV/0!"},{"$error":"#DIV/0!"},{"$error":"#DIV/0!"},{"$f":"SUM(C44:J44)","v":{"$error":"#DIV/0!"}}]
["Friday",null,{"$error":"#DIV/0!"},{"$error":"#DIV/0!"},{"$error":"#DIV/0!"},{"$error":"#DIV/0!"},{"$error":"#DIV/0!"},{"$error":"#DIV/0!"},{"$error":"#DIV/0!"},{"$error":"#DIV/0!"},{"$f":"SUM(C45:J45)","v":{"$error":"#DIV/0!"}}]
["Total",null,{"$f":"SUM(C41:C45)","v":{"$error":"#DIV/0!"}},{"$error":"#DIV/0!"},{"$error":"#DIV/0!"},{"$error":"#DIV/0!"},{"$error":"#DIV/0!"},{"$error":"#DIV/0!"},{"$error":"#DIV/0!"},{"$error":"#DIV/0!"},{"$error":"#DIV/0!"}]
["Average",null,{"$f":"AVERAGE(C41:C45)","v":{"$error":"#DIV/0!"}},{"$error":"#DIV/0!"},{"$error":"#DIV/0!"},{"$error":"#DIV/0!"},{"$error":"#DIV/0!"},{"$error":"#DIV/0!"},{"$error":"#DIV/0!"},{"$error":"#DIV/0!"},{"$error":"#DIV/0!"}]